Workbook

Sheet Summary
I1: Only Green Cells are editable
B2: Contract Data
B3: Estimator: | C3: MO | D3: Contract No.: | E3: R-12345
B4: Letting: | C4: 2012-12-02 | D4: District: | E4: C
B5: Description: | C5: Testing
B7: LS Items Selected | I7: # of Selected LS Items: | K7: =COUNTIF('New Prices'!I:I,"yes") -> 2
B8: Item NO | C8: Item description | D8: Old Price | E8: % used | F8: New price | I8: # of Non Selected LS Items: | K8: =K9-K7 -> 9
B9: =IF(Pivot!A4="","",LEFT(Pivot!A4,9)) -> 105-06845 | C9: =IF(Pivot!B4="","",Pivot!B4) -> CONSTRUCTION ENGINEERING | D9: =IF(B9="","",Pivot!E4) -> 24269.77 | E9: =IF(B9="","",Pivot!G4) -> 0.04 | F9: =IF(Pivot!F4="","",Pivot!F4) -> 608716.5172 | I9: # of All LS Items above: | K9: =COUNTIF('New Prices'!O:O,1) -> 11
B10: =IF(Pivot!A5="","",LEFT(Pivot!A5,9)) -> 110-01001 | C10: =IF(Pivot!B5="","",Pivot!B5) -> MOBILIZATION AND DEMOBILIZATION | D10: =IF(B10="","",Pivot!E5) -> 104232.24 | E10: =IF(B10="","",Pivot!G5) -> 0.03 | F10: =IF(Pivot!F5="","",Pivot!F5) -> 456537.3879 | I10: # of All Other Items | K10: =COUNT('New Prices'!E2:E799)-K9 -> 167
B11: =IF(Pivot!A6="","",LEFT(Pivot!A6,9)) ->  | C11: =IF(Pivot!B6="","",Pivot!B6) ->  | D11: =IF(B11="","",Pivot!E6) ->  | E11: =IF(B11="","",Pivot!G6) ->  | F11: =IF(Pivot!F6="","",Pivot!F6) ->  | I11: Number Of pay Items in this Contract | K11: =K10+K8+K7 -> 178
B12: =IF(Pivot!A7="","",LEFT(Pivot!A7,9)) ->  | C12: =IF(Pivot!B7="","",Pivot!B7) ->  | D12: =IF(B12="","",Pivot!E7) ->  | E12: =IF(B12="","",Pivot!G7) ->  | F12: =IF(Pivot!F7="","",Pivot!F7) ->  | I12: Result Summary
B13: =IF(Pivot!A8="","",LEFT(Pivot!A8,9)) ->  | C13: =IF(Pivot!B8="","",Pivot!B8) ->  | D13: =IF(B13="","",Pivot!E8) ->  | E13: =IF(B13="","",Pivot!G8) ->  | F13: =IF(Pivot!F8="","",Pivot!F8) ->  | I13: Total Amount of Selected LS Items: | K13: =F18 -> 1065253.905 | L13: =K13/$K$16 -> 0.06542056075
B14: =IF(Pivot!A9="","",LEFT(Pivot!A9,9)) ->  | C14: =IF(Pivot!B9="","",Pivot!B9) ->  | D14: =IF(B14="","",Pivot!E9) ->  | E14: =IF(B14="","",Pivot!G9) ->  | F14: =IF(Pivot!F9="","",Pivot!F9) ->  | I14: Total Amount of Other LS Items: | K14: =SUM('New Prices'!P2:P805)-F18 -> 2017411.68 | L14: =K14/$K$16 -> 0.1238955358
B15: =IF(Pivot!A10="","",LEFT(Pivot!A10,9)) ->  | C15: =IF(Pivot!B10="","",Pivot!B10) ->  | D15: =IF(B15="","",Pivot!E10) ->  | E15: =IF(B15="","",Pivot!G10) ->  | F15: =IF(Pivot!F10="","",Pivot!F10) ->  | I15: Amount of None LS Items: | K15: =SUM('New Prices'!R2:R805) -> 13200501.25 | L15: =K15/$K$16 -> 0.8106839034
B16: =IF(Pivot!A11="","",LEFT(Pivot!A11,9)) ->  | C16: =IF(Pivot!B11="","",Pivot!B11) ->  | D16: =IF(B16="","",Pivot!E11) ->  | E16: =IF(B16="","",Pivot!G11) ->  | F16: =IF(Pivot!F11="","",Pivot!F11) ->  | I16: Grand Total | K16: =K14+K15+K13 -> 16283166.84
B17: =IF(Pivot!A12="","",LEFT(Pivot!A12,9)) ->  | C17: =IF(Pivot!B12="","",Pivot!B12) ->  | D17: =IF(B17="","",Pivot!E12) ->  | E17: =IF(B17="","",Pivot!G12) ->  | F17: =IF(Pivot!F12="","",Pivot!F12) ->  | I17: % Contingency | J17: 0.02 | K17: =J17*K16 -> 325663.3367
B18: =COUNT(D9:D17) -> 2 | C18: =IF(B18=0,"No Item Was Selected","Items Selected") -> Items Selected | D18: =SUM(D9:D17) -> 128502.01 | F18: =SUM(F9:F17) -> 1065253.905 | I18: % Others | J18: 0.01 | K18: =J18*K16 -> 162831.6684
E19: $ Changes: | F19: =F18-D18 -> 936751.8952 | K19: =K18+K17+K16 -> 16771661.84
B20: Original Amount From Oman Before any changes | D20: ='Oman Results'!AO1 -> 15346414.94
B21: Original Amount of Selected LS Items | D21: =D18 -> 128502.01
B22: Original Contract Amount - Selected LS Items Above | D22: ='Oman Results'!AQ1 -> 15217912.93

Sheet Pivot (hidden)
A1: LS Selected? | B1: Yes
A3: Item | B3: Description | C3: Total Quantity | D3: Unit | E3: Old Price | F3: Unit Price Used | G3: % Used
A4: 105-06845 | B4: CONSTRUCTION ENGINEERING | C4: 1 | D4: L.S. | E4: 24269.77 | F4: 608716.5172 | G4: 0.04
A5: 110-01001 | B5: MOBILIZATION AND DEMOBILIZATION | C5: 1 | D5: L.S. | E5: 104232.24 | F5: 456537.3879 | G5: 0.03

Sheet New Prices (hidden)
A1: Line | B1: Item | C1: Description | D1: Suppl. ? | E1: Total Quantity | F1: Unit | G1: Unit Price Used | H1: Amount | I1: LS Selected? | J1: Old Price | K1: % Used | L1: New Price | O1: =SUM(H2:H800) -> 16283166.84 | P1: =SUM(P2:P1000) -> 3082665.585 | Q1: =SUM(Q2:Q1000) -> 1065253.905 | R1: 13200501.25
A2: 1 | B2: =IF('Oman Results'!C2="","",'Oman Results'!C2) -> 105-06845 | C2: =IF(OR('Oman Results'!D2="",'Oman Results'!D2="Totals"),"",'Oman Results'!D2) -> CONSTRUCTION ENGINEERING | D2: =IF(ISNUMBER(SEARCH("{",C2)),"Yes", "") ->  | E2: =IF('Oman Results'!E2="","",'Oman Results'!E2) -> 1 | F2: =IF('Oman Results'!F2="","",'Oman Results'!F2) -> L.S. | G2: =IF(B2="","",IF(VLOOKUP(B2,'Oman Results'!C2:AI995,31)="x",'Oman Results'!AK2,'Oman Results'!G2)) -> 608716.5172 | H2: =IF(E2="","",E2*G2) -> 608716.5172 | I2: =IF(B2="","",IF(VLOOKUP(B2,'Oman Results'!C2:AI995,31)="x","Yes","")) -> Yes | J2: =IF(B2="","",IF(VLOOKUP(B2,'Oman Results'!C2:AI995,31)="x",'Oman Results'!G2,"")) -> 24269.77 | K2: =IF(B2="","",IF(VLOOKUP(B2,'Oman Results'!C2:AI995,31)="x",'Oman Results'!AJ2,"")) -> 0.04 | L2: =IF(B2="","",IF(VLOOKUP(B2,'Oman Results'!C2:AI995,31)="x",'Oman Results'!AK2,"")) -> 608716.5172 | O2: =IF(OR(LEFT(F2,3)="L.S",LEFT(F2,2)="LS"),1,"") -> 1 | P2: =IF(O2=1,G2,"") -> 608716.5172 | Q2: =IF(I2="Yes",G2,"") -> 608716.5172 | R2: =IF(O2=1,"",H2) -> 
A3: =IF(B3="","",1+A2) -> 2 | B3: =IF('Oman Results'!C3="","",'Oman Results'!C3) -> 110-01001 | C3: =IF(OR('Oman Results'!D3="",'Oman Results'!D3="Totals"),"",'Oman Results'!D3) -> MOBILIZATION AND DEMOBILIZATION | D3: =IF(ISNUMBER(SEARCH("{",C3)),"Yes", "") ->  | E3: =IF('Oman Results'!E3="","",'Oman Results'!E3) -> 1 | F3: =IF('Oman Results'!F3="","",'Oman Results'!F3) -> L.S. | G3: =IF(B3="","",IF(VLOOKUP(B3,'Oman Results'!C3:AI996,31)="x",'Oman Results'!AK3,'Oman Results'!G3)) -> 456537.3879 | H3: =IF(E3="","",E3*G3) -> 456537.3879 | I3: =IF(B3="","",IF(VLOOKUP(B3,'Oman Results'!C3:AI996,31)="x","Yes","")) -> Yes | J3: =IF(B3="","",IF(VLOOKUP(B3,'Oman Results'!C3:AI996,31)="x",'Oman Results'!G3,"")) -> 104232.24 | K3: =IF(B3="","",IF(VLOOKUP(B3,'Oman Results'!C3:AI996,31)="x",'Oman Results'!AJ3,"")) -> 0.03 | L3: =IF(B3="","",IF(VLOOKUP(B3,'Oman Results'!C3:AI996,31)="x",'Oman Results'!AK3,"")) -> 456537.3879 | O3: =IF(OR(LEFT(F3,3)="L.S",LEFT(F3,2)="LS"),1,"") -> 1 | P3: 456537.3879 | Q3: =IF(I3="Yes",G3,"") -> 456537.3879
A4: =IF(B4="","",1+A3) -> 3 | B4: =IF('Oman Results'!C4="","",'Oman Results'!C4) -> 201-52370 | C4: =IF(OR('Oman Results'!D4="",'Oman Results'!D4="Totals"),"",'Oman Results'!D4) -> CLEARING RIGHT OF WAY | E4: =IF('Oman Results'!E4="","",'Oman Results'!E4) -> 1 | F4: =IF('Oman Results'!F4="","",'Oman Results'!F4) -> L.S. | G4: =IF(B4="","",IF(VLOOKUP(B4,'Oman Results'!C4:AI997,31)="x",'Oman Results'!AK4,'Oman Results'!G4)) -> 47271.03 | H4: 47271.03 | I4: =IF(B4="","",IF(VLOOKUP(B4,'Oman Results'!C4:AI997,31)="x","Yes","")) ->  | J4: =IF(B4="","",IF(VLOOKUP(B4,'Oman Results'!C4:AI997,31)="x",'Oman Results'!G4,"")) ->  | K4: =IF(B4="","",IF(VLOOKUP(B4,'Oman Results'!C4:AI997,31)="x",'Oman Results'!AJ4,"")) ->  | L4: =IF(B4="","",IF(VLOOKUP(B4,'Oman Results'!C4:AI997,31)="x",'Oman Results'!AK4,"")) ->  | O4: 1 | P4: 47271.03
A5: 4 | B5: =IF('Oman Results'!C5="","",'Oman Results'!C5) -> 202-02240 | C5: =IF(OR('Oman Results'!D5="",'Oman Results'!D5="Totals"),"",'Oman Results'!D5) -> PAVEMENT REMOVAL | E5: =IF('Oman Results'!E5="","",'Oman Results'!E5) -> 10050 | F5: =IF('Oman Results'!F5="","",'Oman Results'!F5) -> S.Y. | G5: =IF(B5="","",IF(VLOOKUP(B5,'Oman Results'!C5:AI998,31)="x",'Oman Results'!AK5,'Oman Results'!G5)) -> 7.51 | H5: 75475.5 | I5: =IF(B5="","",IF(VLOOKUP(B5,'Oman Results'!C5:AI998,31)="x","Yes","")) ->  | J5: =IF(B5="","",IF(VLOOKUP(B5,'Oman Results'!C5:AI998,31)="x",'Oman Results'!G5,"")) ->  | K5: =IF(B5="","",IF(VLOOKUP(B5,'Oman Results'!C5:AI998,31)="x",'Oman Results'!AJ5,"")) ->  | L5: =IF(B5="","",IF(VLOOKUP(B5,'Oman Results'!C5:AI998,31)="x",'Oman Results'!AK5,"")) ->  | R5: 75475.5
A6: 5 | B6: =IF('Oman Results'!C6="","",'Oman Results'!C6) -> 202-51328 | C6: =IF(OR('Oman Results'!D6="",'Oman Results'!D6="Totals"),"",'Oman Results'!D6) -> PRESENT STRUCTURE, REMOVE PORTIONS | E6: =IF('Oman Results'!E6="","",'Oman Results'!E6) -> 1 | F6: =IF('Oman Results'!F6="","",'Oman Results'!F6) -> L.S. | G6: =IF(B6="","",IF(VLOOKUP(B6,'Oman Results'!C6:AI999,31)="x",'Oman Results'!AK6,'Oman Results'!G6)) -> 949288.28 | H6: 949288.28 | I6: =IF(B6="","",IF(VLOOKUP(B6,'Oman Results'!C6:AI999,31)="x","Yes","")) ->  | J6: =IF(B6="","",IF(VLOOKUP(B6,'Oman Results'!C6:AI999,31)="x",'Oman Results'!G6,"")) ->  | K6: =IF(B6="","",IF(VLOOKUP(B6,'Oman Results'!C6:AI999,31)="x",'Oman Results'!AJ6,"")) ->  | L6: =IF(B6="","",IF(VLOOKUP(B6,'Oman Results'!C6:AI999,31)="x",'Oman Results'!AK6,"")) ->  | O6: 1 | P6: 949288.28
A7: 6 | B7: =IF('Oman Results'!C7="","",'Oman Results'!C7) -> 202-51330 | C7: =IF(OR('Oman Results'!D7="",'Oman Results'!D7="Totals"),"",'Oman Results'!D7) -> PRESENT STRUCTURE, REMOVE | E7: =IF('Oman Results'!E7="","",'Oman Results'!E7) -> 1 | F7: =IF('Oman Results'!F7="","",'Oman Results'!F7) -> L.S. | G7: =IF(B7="","",IF(VLOOKUP(B7,'Oman Results'!C7:AI1000,31)="x",'Oman Results'!AK7,'Oman Results'!G7)) -> 65079.96 | H7: 65079.96 | I7: =IF(B7="","",IF(VLOOKUP(B7,'Oman Results'!C7:AI1000,31)="x","Yes","")) ->  | J7: =IF(B7="","",IF(VLOOKUP(B7,'Oman Results'!C7:AI1000,31)="x",'Oman Results'!G7,"")) ->  | K7: =IF(B7="","",IF(VLOOKUP(B7,'Oman Results'!C7:AI1000,31)="x",'Oman Results'!AJ7,"")) ->  | L7: =IF(B7="","",IF(VLOOKUP(B7,'Oman Results'!C7:AI1000,31)="x",'Oman Results'!AK7,"")) ->  | O7: 1 | P7: 65079.96
A8: 7 | B8: =IF('Oman Results'!C8="","",'Oman Results'!C8) -> 202-74035 | C8: =IF(OR('Oman Results'!D8="",'Oman Results'!D8="Totals"),"",'Oman Results'!D8) -> SIGN, REMOVE | E8: =IF('Oman Results'!E8="","",'Oman Results'!E8) -> 20 | F8: =IF('Oman Results'!F8="","",'Oman Results'!F8) -> EACH | G8: =IF(B8="","",IF(VLOOKUP(B8,'Oman Results'!C8:AI1001,31)="x",'Oman Results'!AK8,'Oman Results'!G8)) -> 82.19 | H8: 1643.8 | I8: =IF(B8="","",IF(VLOOKUP(B8,'Oman Results'!C8:AI1001,31)="x","Yes","")) ->  | J8: =IF(B8="","",IF(VLOOKUP(B8,'Oman Results'!C8:AI1001,31)="x",'Oman Results'!G8,"")) ->  | K8: =IF(B8="","",IF(VLOOKUP(B8,'Oman Results'!C8:AI1001,31)="x",'Oman Results'!AJ8,"")) ->  | L8: =IF(B8="","",IF(VLOOKUP(B8,'Oman Results'!C8:AI1001,31)="x",'Oman Results'!AK8,"")) ->  | R8: 1643.8
A9: 8 | B9: =IF('Oman Results'!C9="","",'Oman Results'!C9) -> 202-74055 | C9: =IF(OR('Oman Results'!D9="",'Oman Results'!D9="Totals"),"",'Oman Results'!D9) -> OVERHEAD SIGN STRUCTURE, BOX TRUSS, REMOVE | E9: =IF('Oman Results'!E9="","",'Oman Results'!E9) -> 5 | F9: =IF('Oman Results'!F9="","",'Oman Results'!F9) -> EACH | G9: =IF(B9="","",IF(VLOOKUP(B9,'Oman Results'!C9:AI1002,31)="x",'Oman Results'!AK9,'Oman Results'!G9)) -> 3035.57 | H9: 15177.85 | I9: =IF(B9="","",IF(VLOOKUP(B9,'Oman Results'!C9:AI1002,31)="x","Yes","")) ->  | J9: =IF(B9="","",IF(VLOOKUP(B9,'Oman Results'!C9:AI1002,31)="x",'Oman Results'!G9,"")) ->  | K9: =IF(B9="","",IF(VLOOKUP(B9,'Oman Results'!C9:AI1002,31)="x",'Oman Results'!AJ9,"")) ->  | L9: =IF(B9="","",IF(VLOOKUP(B9,'Oman Results'!C9:AI1002,31)="x",'Oman Results'!AK9,"")) ->  | R9: 15177.85
A10: 9 | B10: =IF('Oman Results'!C10="","",'Oman Results'!C10) -> 202-85996 | C10: =IF(OR('Oman Results'!D10="",'Oman Results'!D10="Totals"),"",'Oman Results'!D10) -> LIGHT STANDARD AND MAST ARM, REMOVE | E10: =IF('Oman Results'!E10="","",'Oman Results'!E10) -> 2 | F10: =IF('Oman Results'!F10="","",'Oman Results'!F10) -> EACH | G10: =IF(B10="","",IF(VLOOKUP(B10,'Oman Results'!C10:AI1003,31)="x",'Oman Results'!AK10,'Oman Results'!G10)) -> 401 | H10: 802 | I10: =IF(B10="","",IF(VLOOKUP(B10,'Oman Results'!C10:AI1003,31)="x","Yes","")) ->  | J10: =IF(B10="","",IF(VLOOKUP(B10,'Oman Results'!C10:AI1003,31)="x",'Oman Results'!G10,"")) ->  | K10: =IF(B10="","",IF(VLOOKUP(B10,'Oman Results'!C10:AI1003,31)="x",'Oman Results'!AJ10,"")) ->  | L10: =IF(B10="","",IF(VLOOKUP(B10,'Oman Results'!C10:AI1003,31)="x",'Oman Results'!AK10,"")) ->  | R10: 802
A11: 10 | B11: =IF('Oman Results'!C11="","",'Oman Results'!C11) -> 202-90413 | C11: =IF(OR('Oman Results'!D11="",'Oman Results'!D11="Totals"),"",'Oman Results'!D11) -> SLOPEWALL, CONCRETE, 4 IN, REMOVE | E11: =IF('Oman Results'!E11="","",'Oman Results'!E11) -> 400 | F11: =IF('Oman Results'!F11="","",'Oman Results'!F11) -> S.Y. | G11: =IF(B11="","",IF(VLOOKUP(B11,'Oman Results'!C11:AI1004,31)="x",'Oman Results'!AK11,'Oman Results'!G11)) -> 59 | H11: 23600 | I11: =IF(B11="","",IF(VLOOKUP(B11,'Oman Results'!C11:AI1004,31)="x","Yes","")) ->  | J11: =IF(B11="","",IF(VLOOKUP(B11,'Oman Results'!C11:AI1004,31)="x",'Oman Results'!G11,"")) ->  | K11: =IF(B11="","",IF(VLOOKUP(B11,'Oman Results'!C11:AI1004,31)="x",'Oman Results'!AJ11,"")) ->  | L11: =IF(B11="","",IF(VLOOKUP(B11,'Oman Results'!C11:AI1004,31)="x",'Oman Results'!AK11,"")) ->  | R11: 23600
A12: 11 | B12: =IF('Oman Results'!C12="","",'Oman Results'!C12) -> 202-93741 | C12: =IF(OR('Oman Results'!D12="",'Oman Results'!D12="Totals"),"",'Oman Results'!D12) -> GUARDRAIL END TREATMENT, REMOVE | E12: =IF('Oman Results'!E12="","",'Oman Results'!E12) -> 15 | F12: =IF('Oman Results'!F12="","",'Oman Results'!F12) -> EACH | G12: =IF(B12="","",IF(VLOOKUP(B12,'Oman Results'!C12:AI1005,31)="x",'Oman Results'!AK12,'Oman Results'!G12)) -> 362.69 | H12: 5440.35 | I12: =IF(B12="","",IF(VLOOKUP(B12,'Oman Results'!C12:AI1005,31)="x","Yes","")) ->  | J12: =IF(B12="","",IF(VLOOKUP(B12,'Oman Results'!C12:AI1005,31)="x",'Oman Results'!G12,"")) ->  | K12: =IF(B12="","",IF(VLOOKUP(B12,'Oman Results'!C12:AI1005,31)="x",'Oman Results'!AJ12,"")) ->  | L12: =IF(B12="","",IF(VLOOKUP(B12,'Oman Results'!C12:AI1005,31)="x",'Oman Results'!AK12,"")) ->  | R12: 5440.35
A13: 12 | B13: =IF('Oman Results'!C13="","",'Oman Results'!C13) -> 202-94954 | C13: =IF(OR('Oman Results'!D13="",'Oman Results'!D13="Totals"),"",'Oman Results'!D13) -> BARRIER WALL, CONCRETE, REMOVE | E13: =IF('Oman Results'!E13="","",'Oman Results'!E13) -> 750 | F13: =IF('Oman Results'!F13="","",'Oman Results'!F13) -> L.F. | G13: =IF(B13="","",IF(VLOOKUP(B13,'Oman Results'!C13:AI1006,31)="x",'Oman Results'!AK13,'Oman Results'!G13)) -> 18.31 | H13: 13732.5 | I13: =IF(B13="","",IF(VLOOKUP(B13,'Oman Results'!C13:AI1006,31)="x","Yes","")) ->  | J13: =IF(B13="","",IF(VLOOKUP(B13,'Oman Results'!C13:AI1006,31)="x",'Oman Results'!G13,"")) ->  | K13: =IF(B13="","",IF(VLOOKUP(B13,'Oman Results'!C13:AI1006,31)="x",'Oman Results'!AJ13,"")) ->  | L13: =IF(B13="","",IF(VLOOKUP(B13,'Oman Results'!C13:AI1006,31)="x",'Oman Results'!AK13,"")) ->  | R13: 13732.5
A14: 13 | B14: =IF('Oman Results'!C14="","",'Oman Results'!C14) -> 202-95027 | C14: =IF(OR('Oman Results'!D14="",'Oman Results'!D14="Totals"),"",'Oman Results'!D14) -> IMPACT ATTENUATOR, REMOVE | E14: =IF('Oman Results'!E14="","",'Oman Results'!E14) -> 2 | F14: =IF('Oman Results'!F14="","",'Oman Results'!F14) -> EACH | G14: =IF(B14="","",IF(VLOOKUP(B14,'Oman Results'!C14:AI1007,31)="x",'Oman Results'!AK14,'Oman Results'!G14)) -> 798 | H14: 1596 | I14: =IF(B14="","",IF(VLOOKUP(B14,'Oman Results'!C14:AI1007,31)="x","Yes","")) ->  | J14: =IF(B14="","",IF(VLOOKUP(B14,'Oman Results'!C14:AI1007,31)="x",'Oman Results'!G14,"")) ->  | K14: =IF(B14="","",IF(VLOOKUP(B14,'Oman Results'!C14:AI1007,31)="x",'Oman Results'!AJ14,"")) ->  | L14: =IF(B14="","",IF(VLOOKUP(B14,'Oman Results'!C14:AI1007,31)="x",'Oman Results'!AK14,"")) ->  | R14: 1596
A15: 14 | B15: =IF('Oman Results'!C15="","",'Oman Results'!C15) -> 202-96022 | C15: =IF(OR('Oman Results'!D15="",'Oman Results'!D15="Totals"),"",'Oman Results'!D15) -> CONCRETE FOUNDATION, REMOVE | E15: =IF('Oman Results'!E15="","",'Oman Results'!E15) -> 1 | F15: =IF('Oman Results'!F15="","",'Oman Results'!F15) -> EACH | G15: =IF(B15="","",IF(VLOOKUP(B15,'Oman Results'!C15:AI1008,31)="x",'Oman Results'!AK15,'Oman Results'!G15)) -> 389.52 | H15: 389.52 | I15: =IF(B15="","",IF(VLOOKUP(B15,'Oman Results'!C15:AI1008,31)="x","Yes","")) ->  | J15: =IF(B15="","",IF(VLOOKUP(B15,'Oman Results'!C15:AI1008,31)="x",'Oman Results'!G15,"")) ->  | K15: =IF(B15="","",IF(VLOOKUP(B15,'Oman Results'!C15:AI1008,31)="x",'Oman Results'!AJ15,"")) ->  | L15: =IF(B15="","",IF(VLOOKUP(B15,'Oman Results'!C15:AI1008,31)="x",'Oman Results'!AK15,"")) ->  | R15: 389.52
A16: 15 | B16: =IF('Oman Results'!C16="","",'Oman Results'!C16) -> 202-96328 | C16: =IF(OR('Oman Results'!D16="",'Oman Results'!D16="Totals"),"",'Oman Results'!D16) -> FOUNDATION, STREET LIGHT, REMOVE | E16: =IF('Oman Results'!E16="","",'Oman Results'!E16) -> 23 | F16: =IF('Oman Results'!F16="","",'Oman Results'!F16) -> EACH | G16: =IF(B16="","",IF(VLOOKUP(B16,'Oman Results'!C16:AI1009,31)="x",'Oman Results'!AK16,'Oman Results'!G16)) -> 961 | H16: 22103 | I16: =IF(B16="","",IF(VLOOKUP(B16,'Oman Results'!C16:AI1009,31)="x","Yes","")) ->  | J16: =IF(B16="","",IF(VLOOKUP(B16,'Oman Results'!C16:AI1009,31)="x",'Oman Results'!G16,"")) ->  | K16: =IF(B16="","",IF(VLOOKUP(B16,'Oman Results'!C16:AI1009,31)="x",'Oman Results'!AJ16,"")) ->  | L16: =IF(B16="","",IF(VLOOKUP(B16,'Oman Results'!C16:AI1009,31)="x",'Oman Results'!AK16,"")) ->  | R16: 22103
A17: 16 | B17: =IF('Oman Results'!C17="","",'Oman Results'!C17) -> 203-02000 | C17: =IF(OR('Oman Results'!D17="",'Oman Results'!D17="Totals"),"",'Oman Results'!D17) -> EXCAVATION, COMMON | E17: =IF('Oman Results'!E17="","",'Oman Results'!E17) -> 65200 | F17: =IF('Oman Results'!F17="","",'Oman Results'!F17) -> C.Y. | G17: =IF(B17="","",IF(VLOOKUP(B17,'Oman Results'!C17:AI1010,31)="x",'Oman Results'!AK17,'Oman Results'!G17)) -> 9.23 | H17: 601796 | I17: =IF(B17="","",IF(VLOOKUP(B17,'Oman Results'!C17:AI1010,31)="x","Yes","")) ->  | J17: =IF(B17="","",IF(VLOOKUP(B17,'Oman Results'!C17:AI1010,31)="x",'Oman Results'!G17,"")) ->  | K17: =IF(B17="","",IF(VLOOKUP(B17,'Oman Results'!C17:AI1010,31)="x",'Oman Results'!AJ17,"")) ->  | L17: =IF(B17="","",IF(VLOOKUP(B17,'Oman Results'!C17:AI1010,31)="x",'Oman Results'!AK17,"")) ->  | R17: 601796
A18: 17 | B18: =IF('Oman Results'!C18="","",'Oman Results'!C18) -> 203-02070 | C18: =IF(OR('Oman Results'!D18="",'Oman Results'!D18="Totals"),"",'Oman Results'!D18) -> BORROW | E18: =IF('Oman Results'!E18="","",'Oman Results'!E18) -> 20800 | F18: =IF('Oman Results'!F18="","",'Oman Results'!F18) -> C.Y. | G18: =IF(B18="","",IF(VLOOKUP(B18,'Oman Results'!C18:AI1011,31)="x",'Oman Results'!AK18,'Oman Results'!G18)) -> 5.84 | H18: 121472 | I18: =IF(B18="","",IF(VLOOKUP(B18,'Oman Results'!C18:AI1011,31)="x","Yes","")) ->  | J18: =IF(B18="","",IF(VLOOKUP(B18,'Oman Results'!C18:AI1011,31)="x",'Oman Results'!G18,"")) ->  | K18: =IF(B18="","",IF(VLOOKUP(B18,'Oman Results'!C18:AI1011,31)="x",'Oman Results'!AJ18,"")) ->  | L18: =IF(B18="","",IF(VLOOKUP(B18,'Oman Results'!C18:AI1011,31)="x",'Oman Results'!AK18,"")) ->  | R18: 121472
A19: 18 | B19: =IF('Oman Results'!C19="","",'Oman Results'!C19) -> 205-03371 | C19: =IF(OR('Oman Results'!D19="",'Oman Results'!D19="Totals"),"",'Oman Results'!D19) -> SEDIMENT, REMOVE | E19: =IF('Oman Results'!E19="","",'Oman Results'!E19) -> 65 | F19: =IF('Oman Results'!F19="","",'Oman Results'!F19) -> C.Y. | G19: =IF(B19="","",IF(VLOOKUP(B19,'Oman Results'!C19:AI1012,31)="x",'Oman Results'!AK19,'Oman Results'!G19)) -> 13.47 | H19: 875.55 | I19: =IF(B19="","",IF(VLOOKUP(B19,'Oman Results'!C19:AI1012,31)="x","Yes","")) ->  | J19: =IF(B19="","",IF(VLOOKUP(B19,'Oman Results'!C19:AI1012,31)="x",'Oman Results'!G19,"")) ->  | K19: =IF(B19="","",IF(VLOOKUP(B19,'Oman Results'!C19:AI1012,31)="x",'Oman Results'!AJ19,"")) ->  | L19: =IF(B19="","",IF(VLOOKUP(B19,'Oman Results'!C19:AI1012,31)="x",'Oman Results'!AK19,"")) ->  | R19: 875.55
A20: 19 | B20: =IF('Oman Results'!C20="","",'Oman Results'!C20) -> 205-06930 | C20: =IF(OR('Oman Results'!D20="",'Oman Results'!D20="Totals"),"",'Oman Results'!D20) -> SPLASHPAD, RIPRAP | E20: =IF('Oman Results'!E20="","",'Oman Results'!E20) -> 2.7 | F20: =IF('Oman Results'!F20="","",'Oman Results'!F20) -> TON | G20: =IF(B20="","",IF(VLOOKUP(B20,'Oman Results'!C20:AI1013,31)="x",'Oman Results'!AK20,'Oman Results'!G20)) -> 44.77 | H20: 120.879 | I20: =IF(B20="","",IF(VLOOKUP(B20,'Oman Results'!C20:AI1013,31)="x","Yes","")) ->  | J20: =IF(B20="","",IF(VLOOKUP(B20,'Oman Results'!C20:AI1013,31)="x",'Oman Results'!G20,"")) ->  | K20: =IF(B20="","",IF(VLOOKUP(B20,'Oman Results'!C20:AI1013,31)="x",'Oman Results'!AJ20,"")) ->  | L20: =IF(B20="","",IF(VLOOKUP(B20,'Oman Results'!C20:AI1013,31)="x",'Oman Results'!AK20,"")) ->  | R20: 120.879
A21: 20 | B21: =IF('Oman Results'!C21="","",'Oman Results'!C21) -> 205-06931 | C21: =IF(OR('Oman Results'!D21="",'Oman Results'!D21="Totals"),"",'Oman Results'!D21) -> TEMPORARY CHECK DAM, REVETMENT RIPRAP | E21: =IF('Oman Results'!E21="","",'Oman Results'!E21) -> 750 | F21: =IF('Oman Results'!F21="","",'Oman Results'!F21) -> TON | G21: =IF(B21="","",IF(VLOOKUP(B21,'Oman Results'!C21:AI1014,31)="x",'Oman Results'!AK21,'Oman Results'!G21)) -> 42.44 | H21: 31830 | I21: =IF(B21="","",IF(VLOOKUP(B21,'Oman Results'!C21:AI1014,31)="x","Yes","")) ->  | J21: =IF(B21="","",IF(VLOOKUP(B21,'Oman Results'!C21:AI1014,31)="x",'Oman Results'!G21,"")) ->  | K21: =IF(B21="","",IF(VLOOKUP(B21,'Oman Results'!C21:AI1014,31)="x",'Oman Results'!AJ21,"")) ->  | L21: =IF(B21="","",IF(VLOOKUP(B21,'Oman Results'!C21:AI1014,31)="x",'Oman Results'!AK21,"")) ->  | R21: 31830
A22: 21 | B22: =IF('Oman Results'!C22="","",'Oman Results'!C22) -> 205-06936 | C22: =IF(OR('Oman Results'!D22="",'Oman Results'!D22="Totals"),"",'Oman Results'!D22) -> TEMPORARY SEDIMENT TRAP | E22: =IF('Oman Results'!E22="","",'Oman Results'!E22) -> 80 | F22: =IF('Oman Results'!F22="","",'Oman Results'!F22) -> TON | G22: =IF(B22="","",IF(VLOOKUP(B22,'Oman Results'!C22:AI1015,31)="x",'Oman Results'!AK22,'Oman Results'!G22)) -> 40.58 | H22: 3246.4 | I22: =IF(B22="","",IF(VLOOKUP(B22,'Oman Results'!C22:AI1015,31)="x","Yes","")) ->  | J22: =IF(B22="","",IF(VLOOKUP(B22,'Oman Results'!C22:AI1015,31)="x",'Oman Results'!G22,"")) ->  | K22: =IF(B22="","",IF(VLOOKUP(B22,'Oman Results'!C22:AI1015,31)="x",'Oman Results'!AJ22,"")) ->  | L22: =IF(B22="","",IF(VLOOKUP(B22,'Oman Results'!C22:AI1015,31)="x",'Oman Results'!AK22,"")) ->  | R22: 3246.4
A23: 22 | B23: =IF('Oman Results'!C23="","",'Oman Results'!C23) -> 205-06937 | C23: =IF(OR('Oman Results'!D23="",'Oman Results'!D23="Totals"),"",'Oman Results'!D23) -> TEMPORARY SILT FENCE | E23: =IF('Oman Results'!E23="","",'Oman Results'!E23) -> 15160 | F23: =IF('Oman Results'!F23="","",'Oman Results'!F23) -> L.F. | G23: =IF(B23="","",IF(VLOOKUP(B23,'Oman Results'!C23:AI1016,31)="x",'Oman Results'!AK23,'Oman Results'!G23)) -> 1.58 | H23: 23952.8 | I23: =IF(B23="","",IF(VLOOKUP(B23,'Oman Results'!C23:AI1016,31)="x","Yes","")) ->  | J23: =IF(B23="","",IF(VLOOKUP(B23,'Oman Results'!C23:AI1016,31)="x",'Oman Results'!G23,"")) ->  | K23: =IF(B23="","",IF(VLOOKUP(B23,'Oman Results'!C23:AI1016,31)="x",'Oman Results'!AJ23,"")) ->  | L23: =IF(B23="","",IF(VLOOKUP(B23,'Oman Results'!C23:AI1016,31)="x",'Oman Results'!AK23,"")) ->  | R23: 23952.8
A24: 23 | B24: =IF('Oman Results'!C24="","",'Oman Results'!C24) -> 205-06938 | C24: =IF(OR('Oman Results'!D24="",'Oman Results'!D24="Totals"),"",'Oman Results'!D24) -> TEMPORARY SLOPE DRAIN | E24: =IF('Oman Results'!E24="","",'Oman Results'!E24) -> 175 | F24: =IF('Oman Results'!F24="","",'Oman Results'!F24) -> L.F. | G24: =IF(B24="","",IF(VLOOKUP(B24,'Oman Results'!C24:AI1017,31)="x",'Oman Results'!AK24,'Oman Results'!G24)) -> 16.92 | H24: 2961 | I24: =IF(B24="","",IF(VLOOKUP(B24,'Oman Results'!C24:AI1017,31)="x","Yes","")) ->  | J24: =IF(B24="","",IF(VLOOKUP(B24,'Oman Results'!C24:AI1017,31)="x",'Oman Results'!G24,"")) ->  | K24: =IF(B24="","",IF(VLOOKUP(B24,'Oman Results'!C24:AI1017,31)="x",'Oman Results'!AJ24,"")) ->  | L24: =IF(B24="","",IF(VLOOKUP(B24,'Oman Results'!C24:AI1017,31)="x",'Oman Results'!AK24,"")) ->  | R24: 2961
A25: 24 | B25: =IF('Oman Results'!C25="","",'Oman Results'!C25) -> 207-08263 | C25: =IF(OR('Oman Results'!D25="",'Oman Results'!D25="Totals"),"",'Oman Results'!D25) -> SUBGRADE TREATMENT, TYPE IA | E25: =IF('Oman Results'!E25="","",'Oman Results'!E25) -> 65400 | F25: =IF('Oman Results'!F25="","",'Oman Results'!F25) -> S.Y. | G25: =IF(B25="","",IF(VLOOKUP(B25,'Oman Results'!C25:AI1018,31)="x",'Oman Results'!AK25,'Oman Results'!G25)) -> 6.28 | H25: 410712 | I25: =IF(B25="","",IF(VLOOKUP(B25,'Oman Results'!C25:AI1018,31)="x","Yes","")) ->  | J25: =IF(B25="","",IF(VLOOKUP(B25,'Oman Results'!C25:AI1018,31)="x",'Oman Results'!G25,"")) ->  | K25: =IF(B25="","",IF(VLOOKUP(B25,'Oman Results'!C25:AI1018,31)="x",'Oman Results'!AJ25,"")) ->  | L25: =IF(B25="","",IF(VLOOKUP(B25,'Oman Results'!C25:AI1018,31)="x",'Oman Results'!AK25,"")) ->  | R25: 410712
A26: 25 | B26: =IF('Oman Results'!C26="","",'Oman Results'!C26) -> 211-02050 | C26: =IF(OR('Oman Results'!D26="",'Oman Results'!D26="Totals"),"",'Oman Results'!D26) -> B BORROW | E26: =IF('Oman Results'!E26="","",'Oman Results'!E26) -> 35850 | F26: =IF('Oman Results'!F26="","",'Oman Results'!F26) -> C.Y. | G26: =IF(B26="","",IF(VLOOKUP(B26,'Oman Results'!C26:AI1019,31)="x",'Oman Results'!AK26,'Oman Results'!G26)) -> 19.26 | H26: 690471 | I26: =IF(B26="","",IF(VLOOKUP(B26,'Oman Results'!C26:AI1019,31)="x","Yes","")) ->  | J26: =IF(B26="","",IF(VLOOKUP(B26,'Oman Results'!C26:AI1019,31)="x",'Oman Results'!G26,"")) ->  | K26: =IF(B26="","",IF(VLOOKUP(B26,'Oman Results'!C26:AI1019,31)="x",'Oman Results'!AJ26,"")) ->  | L26: =IF(B26="","",IF(VLOOKUP(B26,'Oman Results'!C26:AI1019,31)="x",'Oman Results'!AK26,"")) ->  | R26: 690471
A27: 26 | B27: =IF('Oman Results'!C27="","",'Oman Results'!C27) -> 211-09264 | C27: =IF(OR('Oman Results'!D27="",'Oman Results'!D27="Totals"),"",'Oman Results'!D27) -> STRUCTURAL BACKFILL, TYPE 1 | E27: =IF('Oman Results'!E27="","",'Oman Results'!E27) -> 80 | F27: =IF('Oman Results'!F27="","",'Oman Results'!F27) -> C.Y. | G27: =IF(B27="","",IF(VLOOKUP(B27,'Oman Results'!C27:AI1020,31)="x",'Oman Results'!AK27,'Oman Results'!G27)) -> 19.11 | H27: 1528.8 | I27: =IF(B27="","",IF(VLOOKUP(B27,'Oman Results'!C27:AI1020,31)="x","Yes","")) ->  | J27: =IF(B27="","",IF(VLOOKUP(B27,'Oman Results'!C27:AI1020,31)="x",'Oman Results'!G27,"")) ->  | K27: =IF(B27="","",IF(VLOOKUP(B27,'Oman Results'!C27:AI1020,31)="x",'Oman Results'!AJ27,"")) ->  | L27: =IF(B27="","",IF(VLOOKUP(B27,'Oman Results'!C27:AI1020,31)="x",'Oman Results'!AK27,"")) ->  | R27: 1528.8
A28: 27 | B28: =IF('Oman Results'!C28="","",'Oman Results'!C28) -> 211-09266 | C28: =IF(OR('Oman Results'!D28="",'Oman Results'!D28="Totals"),"",'Oman Results'!D28) -> STRUCTURAL BACKFILL, TYPE 3 | E28: =IF('Oman Results'!E28="","",'Oman Results'!E28) -> 50900 | F28: =IF('Oman Results'!F28="","",'Oman Results'!F28) -> C.Y. | G28: =IF(B28="","",IF(VLOOKUP(B28,'Oman Results'!C28:AI1021,31)="x",'Oman Results'!AK28,'Oman Results'!G28)) -> 22.07 | H28: 1123363 | I28: =IF(B28="","",IF(VLOOKUP(B28,'Oman Results'!C28:AI1021,31)="x","Yes","")) ->  | J28: =IF(B28="","",IF(VLOOKUP(B28,'Oman Results'!C28:AI1021,31)="x",'Oman Results'!G28,"")) ->  | K28: =IF(B28="","",IF(VLOOKUP(B28,'Oman Results'!C28:AI1021,31)="x",'Oman Results'!AJ28,"")) ->  | L28: =IF(B28="","",IF(VLOOKUP(B28,'Oman Results'!C28:AI1021,31)="x",'Oman Results'!AK28,"")) ->  | R28: 1123363
A29: 28 | B29: =IF('Oman Results'!C29="","",'Oman Results'!C29) -> 216-06397 | C29: =IF(OR('Oman Results'!D29="",'Oman Results'!D29="Totals"),"",'Oman Results'!D29) -> WIRE MESH | E29: =IF('Oman Results'!E29="","",'Oman Results'!E29) -> 415 | F29: =IF('Oman Results'!F29="","",'Oman Results'!F29) -> S.Y. | G29: =IF(B29="","",IF(VLOOKUP(B29,'Oman Results'!C29:AI1022,31)="x",'Oman Results'!AK29,'Oman Results'!G29)) -> 31.75 | H29: 13176.25 | I29: =IF(B29="","",IF(VLOOKUP(B29,'Oman Results'!C29:AI1022,31)="x","Yes","")) ->  | J29: =IF(B29="","",IF(VLOOKUP(B29,'Oman Results'!C29:AI1022,31)="x",'Oman Results'!G29,"")) ->  | K29: =IF(B29="","",IF(VLOOKUP(B29,'Oman Results'!C29:AI1022,31)="x",'Oman Results'!AJ29,"")) ->  | L29: =IF(B29="","",IF(VLOOKUP(B29,'Oman Results'!C29:AI1022,31)="x",'Oman Results'!AK29,"")) ->  | R29: 13176.25
A30: 29 | B30: =IF('Oman Results'!C30="","",'Oman Results'!C30) -> 302-07455 | C30: =IF(OR('Oman Results'!D30="",'Oman Results'!D30="Totals"),"",'Oman Results'!D30) -> DENSE GRADED SUBBASE | E30: =IF('Oman Results'!E30="","",'Oman Results'!E30) -> 148 | F30: =IF('Oman Results'!F30="","",'Oman Results'!F30) -> C.Y. | G30: =IF(B30="","",IF(VLOOKUP(B30,'Oman Results'!C30:AI1023,31)="x",'Oman Results'!AK30,'Oman Results'!G30)) -> 58.34 | H30: 8634.32 | I30: =IF(B30="","",IF(VLOOKUP(B30,'Oman Results'!C30:AI1023,31)="x","Yes","")) ->  | J30: =IF(B30="","",IF(VLOOKUP(B30,'Oman Results'!C30:AI1023,31)="x",'Oman Results'!G30,"")) ->  | K30: =IF(B30="","",IF(VLOOKUP(B30,'Oman Results'!C30:AI1023,31)="x",'Oman Results'!AJ30,"")) ->  | L30: =IF(B30="","",IF(VLOOKUP(B30,'Oman Results'!C30:AI1023,31)="x",'Oman Results'!AK30,"")) ->  | R30: 8634.32
A31: 30 | B31: =IF('Oman Results'!C31="","",'Oman Results'!C31) -> 302-08562 | C31: =IF(OR('Oman Results'!D31="",'Oman Results'!D31="Totals"),"",'Oman Results'!D31) -> COARSE AGGREGATE, NO 8 | E31: =IF('Oman Results'!E31="","",'Oman Results'!E31) -> 880 | F31: =IF('Oman Results'!F31="","",'Oman Results'!F31) -> TON | G31: =IF(B31="","",IF(VLOOKUP(B31,'Oman Results'!C31:AI1024,31)="x",'Oman Results'!AK31,'Oman Results'!G31)) -> 29.49 | H31: 25951.2 | I31: =IF(B31="","",IF(VLOOKUP(B31,'Oman Results'!C31:AI1024,31)="x","Yes","")) ->  | J31: =IF(B31="","",IF(VLOOKUP(B31,'Oman Results'!C31:AI1024,31)="x",'Oman Results'!G31,"")) ->  | K31: =IF(B31="","",IF(VLOOKUP(B31,'Oman Results'!C31:AI1024,31)="x",'Oman Results'!AJ31,"")) ->  | L31: =IF(B31="","",IF(VLOOKUP(B31,'Oman Results'!C31:AI1024,31)="x",'Oman Results'!AK31,"")) ->  | R31: 25951.2
A32: 31 | B32: =IF('Oman Results'!C32="","",'Oman Results'!C32) -> 303-01180 | C32: =IF(OR('Oman Results'!D32="",'Oman Results'!D32="Totals"),"",'Oman Results'!D32) -> COMPACTED AGGREGATE, NO. 53 | E32: =IF('Oman Results'!E32="","",'Oman Results'!E32) -> 6450 | F32: =IF('Oman Results'!F32="","",'Oman Results'!F32) -> TON | G32: =IF(B32="","",IF(VLOOKUP(B32,'Oman Results'!C32:AI1025,31)="x",'Oman Results'!AK32,'Oman Results'!G32)) -> 20.46 | H32: 131967 | I32: =IF(B32="","",IF(VLOOKUP(B32,'Oman Results'!C32:AI1025,31)="x","Yes","")) ->  | J32: =IF(B32="","",IF(VLOOKUP(B32,'Oman Results'!C32:AI1025,31)="x",'Oman Results'!G32,"")) ->  | K32: =IF(B32="","",IF(VLOOKUP(B32,'Oman Results'!C32:AI1025,31)="x",'Oman Results'!AJ32,"")) ->  | L32: =IF(B32="","",IF(VLOOKUP(B32,'Oman Results'!C32:AI1025,31)="x",'Oman Results'!AK32,"")) ->  | R32: 131967
A33: 32 | B33: =IF('Oman Results'!C33="","",'Oman Results'!C33) -> 306-08042 | C33: =IF(OR('Oman Results'!D33="",'Oman Results'!D33="Totals"),"",'Oman Results'!D33) -> MILLING, SCARIFICATION/PROFILE | E33: =IF('Oman Results'!E33="","",'Oman Results'!E33) -> 36100 | F33: =IF('Oman Results'!F33="","",'Oman Results'!F33) -> S.Y. | G33: =IF(B33="","",IF(VLOOKUP(B33,'Oman Results'!C33:AI1026,31)="x",'Oman Results'!AK33,'Oman Results'!G33)) -> 0.47 | H33: 16967 | I33: =IF(B33="","",IF(VLOOKUP(B33,'Oman Results'!C33:AI1026,31)="x","Yes","")) ->  | J33: =IF(B33="","",IF(VLOOKUP(B33,'Oman Results'!C33:AI1026,31)="x",'Oman Results'!G33,"")) ->  | K33: =IF(B33="","",IF(VLOOKUP(B33,'Oman Results'!C33:AI1026,31)="x",'Oman Results'!AJ33,"")) ->  | L33: =IF(B33="","",IF(VLOOKUP(B33,'Oman Results'!C33:AI1026,31)="x",'Oman Results'!AK33,"")) ->  | R33: 16967
A34: 33 | B34: =IF('Oman Results'!C34="","",'Oman Results'!C34) -> 401-06264 | C34: =IF(OR('Oman Results'!D34="",'Oman Results'!D34="Totals"),"",'Oman Results'!D34) -> PROFILOGRAPH, HMA | E34: =IF('Oman Results'!E34="","",'Oman Results'!E34) -> 1 | F34: =IF('Oman Results'!F34="","",'Oman Results'!F34) -> L.S. | G34: =IF(B34="","",IF(VLOOKUP(B34,'Oman Results'!C34:AI1027,31)="x",'Oman Results'!AK34,'Oman Results'!G34)) -> 5027.78 | H34: 5027.78 | I34: =IF(B34="","",IF(VLOOKUP(B34,'Oman Results'!C34:AI1027,31)="x","Yes","")) ->  | J34: =IF(B34="","",IF(VLOOKUP(B34,'Oman Results'!C34:AI1027,31)="x",'Oman Results'!G34,"")) ->  | K34: =IF(B34="","",IF(VLOOKUP(B34,'Oman Results'!C34:AI1027,31)="x",'Oman Results'!AJ34,"")) ->  | L34: =IF(B34="","",IF(VLOOKUP(B34,'Oman Results'!C34:AI1027,31)="x",'Oman Results'!AK34,"")) ->  | O34: 1 | P34: 5027.78
A35: 34 | B35: =IF('Oman Results'!C35="","",'Oman Results'!C35) -> 401-07335 | C35: =IF(OR('Oman Results'!D35="",'Oman Results'!D35="Totals"),"",'Oman Results'!D35) -> QC/QA-HMA, 4, 76, SURFACE, 9.5 mm | E35: =IF('Oman Results'!E35="","",'Oman Results'!E35) -> 7500 | F35: =IF('Oman Results'!F35="","",'Oman Results'!F35) -> TON | G35: =IF(B35="","",IF(VLOOKUP(B35,'Oman Results'!C35:AI1028,31)="x",'Oman Results'!AK35,'Oman Results'!G35)) -> 84 | H35: 630000 | I35: =IF(B35="","",IF(VLOOKUP(B35,'Oman Results'!C35:AI1028,31)="x","Yes","")) ->  | J35: =IF(B35="","",IF(VLOOKUP(B35,'Oman Results'!C35:AI1028,31)="x",'Oman Results'!G35,"")) ->  | K35: =IF(B35="","",IF(VLOOKUP(B35,'Oman Results'!C35:AI1028,31)="x",'Oman Results'!AJ35,"")) ->  | L35: =IF(B35="","",IF(VLOOKUP(B35,'Oman Results'!C35:AI1028,31)="x",'Oman Results'!AK35,"")) ->  | R35: 630000
A36: 35 | B36: =IF('Oman Results'!C36="","",'Oman Results'!C36) -> 401-07404 | C36: =IF(OR('Oman Results'!D36="",'Oman Results'!D36="Totals"),"",'Oman Results'!D36) -> QC/QA-HMA, 4, 76, INTERMEDIATE, 19.0 mm | E36: =IF('Oman Results'!E36="","",'Oman Results'!E36) -> 7900 | F36: =IF('Oman Results'!F36="","",'Oman Results'!F36) -> TON | G36: =IF(B36="","",IF(VLOOKUP(B36,'Oman Results'!C36:AI1029,31)="x",'Oman Results'!AK36,'Oman Results'!G36)) -> 63 | H36: 497700 | I36: =IF(B36="","",IF(VLOOKUP(B36,'Oman Results'!C36:AI1029,31)="x","Yes","")) ->  | J36: =IF(B36="","",IF(VLOOKUP(B36,'Oman Results'!C36:AI1029,31)="x",'Oman Results'!G36,"")) ->  | K36: =IF(B36="","",IF(VLOOKUP(B36,'Oman Results'!C36:AI1029,31)="x",'Oman Results'!AJ36,"")) ->  | L36: =IF(B36="","",IF(VLOOKUP(B36,'Oman Results'!C36:AI1029,31)="x",'Oman Results'!AK36,"")) ->  | R36: 497700
A37: 36 | B37: =IF('Oman Results'!C37="","",'Oman Results'!C37) -> 401-07409 | C37: =IF(OR('Oman Results'!D37="",'Oman Results'!D37="Totals"),"",'Oman Results'!D37) -> QC/QA-HMA, 4, 64, BASE, 25.0 mm | E37: =IF('Oman Results'!E37="","",'Oman Results'!E37) -> 28350 | F37: =IF('Oman Results'!F37="","",'Oman Results'!F37) -> TON | G37: =IF(B37="","",IF(VLOOKUP(B37,'Oman Results'!C37:AI1030,31)="x",'Oman Results'!AK37,'Oman Results'!G37)) -> 52.53 | H37: 1489225.5 | I37: =IF(B37="","",IF(VLOOKUP(B37,'Oman Results'!C37:AI1030,31)="x","Yes","")) ->  | J37: =IF(B37="","",IF(VLOOKUP(B37,'Oman Results'!C37:AI1030,31)="x",'Oman Results'!G37,"")) ->  | K37: =IF(B37="","",IF(VLOOKUP(B37,'Oman Results'!C37:AI1030,31)="x",'Oman Results'!AJ37,"")) ->  | L37: =IF(B37="","",IF(VLOOKUP(B37,'Oman Results'!C37:AI1030,31)="x",'Oman Results'!AK37,"")) ->  | R37: 1489225.5
A38: 37 | B38: =IF('Oman Results'!C38="","",'Oman Results'!C38) -> 401-07429 | C38: =IF(OR('Oman Results'!D38="",'Oman Results'!D38="Totals"),"",'Oman Results'!D38) -> QC/QA-HMA, 5, 76, INTERMEDIATE, OG, 19.0 mm | E38: =IF('Oman Results'!E38="","",'Oman Results'!E38) -> 10500 | F38: =IF('Oman Results'!F38="","",'Oman Results'!F38) -> TON | G38: =IF(B38="","",IF(VLOOKUP(B38,'Oman Results'!C38:AI1031,31)="x",'Oman Results'!AK38,'Oman Results'!G38)) -> 55.33 | H38: 580965 | I38: =IF(B38="","",IF(VLOOKUP(B38,'Oman Results'!C38:AI1031,31)="x","Yes","")) ->  | J38: =IF(B38="","",IF(VLOOKUP(B38,'Oman Results'!C38:AI1031,31)="x",'Oman Results'!G38,"")) ->  | K38: =IF(B38="","",IF(VLOOKUP(B38,'Oman Results'!C38:AI1031,31)="x",'Oman Results'!AJ38,"")) ->  | L38: =IF(B38="","",IF(VLOOKUP(B38,'Oman Results'!C38:AI1031,31)="x",'Oman Results'!AK38,"")) ->  | R38: 580965
A39: 38 | B39: =IF('Oman Results'!C39="","",'Oman Results'!C39) -> 406-05520 | C39: =IF(OR('Oman Results'!D39="",'Oman Results'!D39="Totals"),"",'Oman Results'!D39) -> ASPHALT FOR TACK COAT | E39: =IF('Oman Results'!E39="","",'Oman Results'!E39) -> 80 | F39: =IF('Oman Results'!F39="","",'Oman Results'!F39) -> TON | G39: =IF(B39="","",IF(VLOOKUP(B39,'Oman Results'!C39:AI1032,31)="x",'Oman Results'!AK39,'Oman Results'!G39)) -> 353.75 | H39: 28300 | I39: =IF(B39="","",IF(VLOOKUP(B39,'Oman Results'!C39:AI1032,31)="x","Yes","")) ->  | J39: =IF(B39="","",IF(VLOOKUP(B39,'Oman Results'!C39:AI1032,31)="x",'Oman Results'!G39,"")) ->  | K39: =IF(B39="","",IF(VLOOKUP(B39,'Oman Results'!C39:AI1032,31)="x",'Oman Results'!AJ39,"")) ->  | L39: =IF(B39="","",IF(VLOOKUP(B39,'Oman Results'!C39:AI1032,31)="x",'Oman Results'!AK39,"")) ->  | R39: 28300
A40: 39 | B40: =IF('Oman Results'!C40="","",'Oman Results'!C40) -> 601-01128 | C40: =IF(OR('Oman Results'!D40="",'Oman Results'!D40="Totals"),"",'Oman Results'!D40) -> GUARDRAIL, TRANSITION TYPE WGB | E40: =IF('Oman Results'!E40="","",'Oman Results'!E40) -> 6 | F40: =IF('Oman Results'!F40="","",'Oman Results'!F40) -> EACH | G40: =IF(B40="","",IF(VLOOKUP(B40,'Oman Results'!C40:AI1033,31)="x",'Oman Results'!AK40,'Oman Results'!G40)) -> 1328.82 | H40: 7972.92 | I40: =IF(B40="","",IF(VLOOKUP(B40,'Oman Results'!C40:AI1033,31)="x","Yes","")) ->  | J40: =IF(B40="","",IF(VLOOKUP(B40,'Oman Results'!C40:AI1033,31)="x",'Oman Results'!G40,"")) ->  | K40: =IF(B40="","",IF(VLOOKUP(B40,'Oman Results'!C40:AI1033,31)="x",'Oman Results'!AJ40,"")) ->  | L40: =IF(B40="","",IF(VLOOKUP(B40,'Oman Results'!C40:AI1033,31)="x",'Oman Results'!AK40,"")) ->  | R40: 7972.92
A41: 40 | B41: =IF('Oman Results'!C41="","",'Oman Results'!C41) -> 601-01522 | C41: =IF(OR('Oman Results'!D41="",'Oman Results'!D41="Totals"),"",'Oman Results'!D41) -> GUARDRAIL, TRANSITION TYPE TGB | E41: =IF('Oman Results'!E41="","",'Oman Results'!E41) -> 5 | F41: =IF('Oman Results'!F41="","",'Oman Results'!F41) -> EACH | G41: =IF(B41="","",IF(VLOOKUP(B41,'Oman Results'!C41:AI1034,31)="x",'Oman Results'!AK41,'Oman Results'!G41)) -> 2055.17 | H41: 10275.85 | I41: =IF(B41="","",IF(VLOOKUP(B41,'Oman Results'!C41:AI1034,31)="x","Yes","")) ->  | J41: =IF(B41="","",IF(VLOOKUP(B41,'Oman Results'!C41:AI1034,31)="x",'Oman Results'!G41,"")) ->  | K41: =IF(B41="","",IF(VLOOKUP(B41,'Oman Results'!C41:AI1034,31)="x",'Oman Results'!AJ41,"")) ->  | L41: =IF(B41="","",IF(VLOOKUP(B41,'Oman Results'!C41:AI1034,31)="x",'Oman Results'!AK41,"")) ->  | R41: 10275.85
A42: 41 | B42: =IF('Oman Results'!C42="","",'Oman Results'!C42) -> 601-02241 | C42: =IF(OR('Oman Results'!D42="",'Oman Results'!D42="Totals"),"",'Oman Results'!D42) -> GUARDRAIL, REMOVE | E42: =IF('Oman Results'!E42="","",'Oman Results'!E42) -> 4800 | F42: =IF('Oman Results'!F42="","",'Oman Results'!F42) -> L.F. | G42: =IF(B42="","",IF(VLOOKUP(B42,'Oman Results'!C42:AI1035,31)="x",'Oman Results'!AK42,'Oman Results'!G42)) -> 3.31 | H42: 15888 | I42: =IF(B42="","",IF(VLOOKUP(B42,'Oman Results'!C42:AI1035,31)="x","Yes","")) ->  | J42: =IF(B42="","",IF(VLOOKUP(B42,'Oman Results'!C42:AI1035,31)="x",'Oman Results'!G42,"")) ->  | K42: =IF(B42="","",IF(VLOOKUP(B42,'Oman Results'!C42:AI1035,31)="x",'Oman Results'!AJ42,"")) ->  | L42: =IF(B42="","",IF(VLOOKUP(B42,'Oman Results'!C42:AI1035,31)="x",'Oman Results'!AK42,"")) ->  | R42: 15888
A43: 42 | B43: =IF('Oman Results'!C43="","",'Oman Results'!C43) -> 601-06233 | C43: =IF(OR('Oman Results'!D43="",'Oman Results'!D43="Totals"),"",'Oman Results'!D43) -> IMPACT ATTENUATOR, ED, W1, TL-3 | E43: =IF('Oman Results'!E43="","",'Oman Results'!E43) -> 1 | F43: =IF('Oman Results'!F43="","",'Oman Results'!F43) -> EACH | G43: =IF(B43="","",IF(VLOOKUP(B43,'Oman Results'!C43:AI1036,31)="x",'Oman Results'!AK43,'Oman Results'!G43)) -> 8265.48 | H43: 8265.48 | I43: =IF(B43="","",IF(VLOOKUP(B43,'Oman Results'!C43:AI1036,31)="x","Yes","")) ->  | J43: =IF(B43="","",IF(VLOOKUP(B43,'Oman Results'!C43:AI1036,31)="x",'Oman Results'!G43,"")) ->  | K43: =IF(B43="","",IF(VLOOKUP(B43,'Oman Results'!C43:AI1036,31)="x",'Oman Results'!AJ43,"")) ->  | L43: =IF(B43="","",IF(VLOOKUP(B43,'Oman Results'!C43:AI1036,31)="x",'Oman Results'!AK43,"")) ->  | R43: 8265.48
A44: 43 | B44: =IF('Oman Results'!C44="","",'Oman Results'!C44) -> 601-06416 | C44: =IF(OR('Oman Results'!D44="",'Oman Results'!D44="Totals"),"",'Oman Results'!D44) -> IMPACT ATTENUATOR SPARE PARTS PACKAGE, ED, W1, TL-3 | E44: =IF('Oman Results'!E44="","",'Oman Results'!E44) -> 1 | F44: =IF('Oman Results'!F44="","",'Oman Results'!F44) -> EACH | G44: =IF(B44="","",IF(VLOOKUP(B44,'Oman Results'!C44:AI1037,31)="x",'Oman Results'!AK44,'Oman Results'!G44)) -> 659 | H44: 659 | I44: =IF(B44="","",IF(VLOOKUP(B44,'Oman Results'!C44:AI1037,31)="x","Yes","")) ->  | J44: =IF(B44="","",IF(VLOOKUP(B44,'Oman Results'!C44:AI1037,31)="x",'Oman Results'!G44,"")) ->  | K44: =IF(B44="","",IF(VLOOKUP(B44,'Oman Results'!C44:AI1037,31)="x",'Oman Results'!AJ44,"")) ->  | L44: =IF(B44="","",IF(VLOOKUP(B44,'Oman Results'!C44:AI1037,31)="x",'Oman Results'!AK44,"")) ->  | R44: 659
A45: 44 | B45: =IF('Oman Results'!C45="","",'Oman Results'!C45) -> 601-08433 | C45: =IF(OR('Oman Results'!D45="",'Oman Results'!D45="Totals"),"",'Oman Results'!D45) -> GUARDRAIL END TREATMENT, TYPE OS, SPARE PARTS PACKAGE, STAGE 1 | E45: =IF('Oman Results'!E45="","",'Oman Results'!E45) -> 11 | F45: =IF('Oman Results'!F45="","",'Oman Results'!F45) -> EACH | G45: =IF(B45="","",IF(VLOOKUP(B45,'Oman Results'!C45:AI1038,31)="x",'Oman Results'!AK45,'Oman Results'!G45)) -> 637.59 | H45: 7013.49 | I45: =IF(B45="","",IF(VLOOKUP(B45,'Oman Results'!C45:AI1038,31)="x","Yes","")) ->  | J45: =IF(B45="","",IF(VLOOKUP(B45,'Oman Results'!C45:AI1038,31)="x",'Oman Results'!G45,"")) ->  | K45: =IF(B45="","",IF(VLOOKUP(B45,'Oman Results'!C45:AI1038,31)="x",'Oman Results'!AJ45,"")) ->  | L45: =IF(B45="","",IF(VLOOKUP(B45,'Oman Results'!C45:AI1038,31)="x",'Oman Results'!AK45,"")) ->  | R45: 7013.49
A46: 45 | B46: =IF('Oman Results'!C46="","",'Oman Results'!C46) -> 601-08434 | C46: =IF(OR('Oman Results'!D46="",'Oman Results'!D46="Totals"),"",'Oman Results'!D46) -> GUARDRAIL END TREATMENT, TYPE OS, SPARE PARTS PACKAGE, STAGE 2 | E46: =IF('Oman Results'!E46="","",'Oman Results'!E46) -> 13 | F46: =IF('Oman Results'!F46="","",'Oman Results'!F46) -> EACH | G46: =IF(B46="","",IF(VLOOKUP(B46,'Oman Results'!C46:AI1039,31)="x",'Oman Results'!AK46,'Oman Results'!G46)) -> 1059.86 | H46: 13778.18 | I46: =IF(B46="","",IF(VLOOKUP(B46,'Oman Results'!C46:AI1039,31)="x","Yes","")) ->  | J46: =IF(B46="","",IF(VLOOKUP(B46,'Oman Results'!C46:AI1039,31)="x",'Oman Results'!G46,"")) ->  | K46: =IF(B46="","",IF(VLOOKUP(B46,'Oman Results'!C46:AI1039,31)="x",'Oman Results'!AJ46,"")) ->  | L46: =IF(B46="","",IF(VLOOKUP(B46,'Oman Results'!C46:AI1039,31)="x",'Oman Results'!AK46,"")) ->  | R46: 13778.18
A47: 46 | B47: =IF('Oman Results'!C47="","",'Oman Results'!C47) -> 601-09149 | C47: =IF(OR('Oman Results'!D47="",'Oman Results'!D47="Totals"),"",'Oman Results'!D47) -> IMPACT ATTENUATOR, CR1, W1, TL-3 | E47: =IF('Oman Results'!E47="","",'Oman Results'!E47) -> 3 | F47: =IF('Oman Results'!F47="","",'Oman Results'!F47) -> EACH | G47: =IF(B47="","",IF(VLOOKUP(B47,'Oman Results'!C47:AI1040,31)="x",'Oman Results'!AK47,'Oman Results'!G47)) -> 26133.33 | H47: 78399.99 | I47: =IF(B47="","",IF(VLOOKUP(B47,'Oman Results'!C47:AI1040,31)="x","Yes","")) ->  | J47: =IF(B47="","",IF(VLOOKUP(B47,'Oman Results'!C47:AI1040,31)="x",'Oman Results'!G47,"")) ->  | K47: =IF(B47="","",IF(VLOOKUP(B47,'Oman Results'!C47:AI1040,31)="x",'Oman Results'!AJ47,"")) ->  | L47: =IF(B47="","",IF(VLOOKUP(B47,'Oman Results'!C47:AI1040,31)="x",'Oman Results'!AK47,"")) ->  | R47: 78399.99
A48: 47 | B48: =IF('Oman Results'!C48="","",'Oman Results'!C48) -> 601-94689 | C48: =IF(OR('Oman Results'!D48="",'Oman Results'!D48="Totals"),"",'Oman Results'!D48) -> GUARDRAIL END TREATMENT, OS | E48: =IF('Oman Results'!E48="","",'Oman Results'!E48) -> 15 | F48: =IF('Oman Results'!F48="","",'Oman Results'!F48) -> EACH | G48: =IF(B48="","",IF(VLOOKUP(B48,'Oman Results'!C48:AI1041,31)="x",'Oman Results'!AK48,'Oman Results'!G48)) -> 2633.72 | H48: 39505.8 | I48: =IF(B48="","",IF(VLOOKUP(B48,'Oman Results'!C48:AI1041,31)="x","Yes","")) ->  | J48: =IF(B48="","",IF(VLOOKUP(B48,'Oman Results'!C48:AI1041,31)="x",'Oman Results'!G48,"")) ->  | K48: =IF(B48="","",IF(VLOOKUP(B48,'Oman Results'!C48:AI1041,31)="x",'Oman Results'!AJ48,"")) ->  | L48: =IF(B48="","",IF(VLOOKUP(B48,'Oman Results'!C48:AI1041,31)="x",'Oman Results'!AK48,"")) ->  | R48: 39505.8
A49: 48 | B49: =IF('Oman Results'!C49="","",'Oman Results'!C49) -> 601-99105 | C49: =IF(OR('Oman Results'!D49="",'Oman Results'!D49="Totals"),"",'Oman Results'!D49) -> GUARDRAIL, W-BEAM, 6 FT 3 IN SPACING | E49: =IF('Oman Results'!E49="","",'Oman Results'!E49) -> 5300 | F49: =IF('Oman Results'!F49="","",'Oman Results'!F49) -> L.F. | G49: =IF(B49="","",IF(VLOOKUP(B49,'Oman Results'!C49:AI1042,31)="x",'Oman Results'!AK49,'Oman Results'!G49)) -> 19.62 | H49: 103986 | I49: =IF(B49="","",IF(VLOOKUP(B49,'Oman Results'!C49:AI1042,31)="x","Yes","")) ->  | J49: =IF(B49="","",IF(VLOOKUP(B49,'Oman Results'!C49:AI1042,31)="x",'Oman Results'!G49,"")) ->  | K49: =IF(B49="","",IF(VLOOKUP(B49,'Oman Results'!C49:AI1042,31)="x",'Oman Results'!AJ49,"")) ->  | L49: =IF(B49="","",IF(VLOOKUP(B49,'Oman Results'!C49:AI1042,31)="x",'Oman Results'!AK49,"")) ->  | R49: 103986
A50: 49 | B50: =IF('Oman Results'!C50="","",'Oman Results'!C50) -> 602-06729 | C50: =IF(OR('Oman Results'!D50="",'Oman Results'!D50="Totals"),"",'Oman Results'!D50) -> BARRIER DELINEATOR | E50: =IF('Oman Results'!E50="","",'Oman Results'!E50) -> 131 | F50: =IF('Oman Results'!F50="","",'Oman Results'!F50) -> EACH | G50: =IF(B50="","",IF(VLOOKUP(B50,'Oman Results'!C50:AI1043,31)="x",'Oman Results'!AK50,'Oman Results'!G50)) -> 16.11 | H50: 2110.41 | I50: =IF(B50="","",IF(VLOOKUP(B50,'Oman Results'!C50:AI1043,31)="x","Yes","")) ->  | J50: =IF(B50="","",IF(VLOOKUP(B50,'Oman Results'!C50:AI1043,31)="x",'Oman Results'!G50,"")) ->  | K50: =IF(B50="","",IF(VLOOKUP(B50,'Oman Results'!C50:AI1043,31)="x",'Oman Results'!AJ50,"")) ->  | L50: =IF(B50="","",IF(VLOOKUP(B50,'Oman Results'!C50:AI1043,31)="x",'Oman Results'!AK50,"")) ->  | R50: 2110.41
A51: 50 | B51: =IF('Oman Results'!C51="","",'Oman Results'!C51) -> 602-08605 | C51: =IF(OR('Oman Results'!D51="",'Oman Results'!D51="Totals"),"",'Oman Results'!D51) -> CONCRETE BARRIER, 33 IN | E51: =IF('Oman Results'!E51="","",'Oman Results'!E51) -> 5900 | F51: =IF('Oman Results'!F51="","",'Oman Results'!F51) -> L.F. | G51: =IF(B51="","",IF(VLOOKUP(B51,'Oman Results'!C51:AI1044,31)="x",'Oman Results'!AK51,'Oman Results'!G51)) -> 86.92 | H51: 512828 | I51: =IF(B51="","",IF(VLOOKUP(B51,'Oman Results'!C51:AI1044,31)="x","Yes","")) ->  | J51: =IF(B51="","",IF(VLOOKUP(B51,'Oman Results'!C51:AI1044,31)="x",'Oman Results'!G51,"")) ->  | K51: =IF(B51="","",IF(VLOOKUP(B51,'Oman Results'!C51:AI1044,31)="x",'Oman Results'!AJ51,"")) ->  | L51: =IF(B51="","",IF(VLOOKUP(B51,'Oman Results'!C51:AI1044,31)="x",'Oman Results'!AK51,"")) ->  | R51: 512828
A52: 51 | B52: =IF('Oman Results'!C52="","",'Oman Results'!C52) -> 604-06411 | C52: =IF(OR('Oman Results'!D52="",'Oman Results'!D52="Totals"),"",'Oman Results'!D52) -> IMPACT ATTENUATOR SPARE PARTS PACKAGE, CR, W1, TL-3 | E52: =IF('Oman Results'!E52="","",'Oman Results'!E52) -> 3 | F52: =IF('Oman Results'!F52="","",'Oman Results'!F52) -> EACH | G52: =IF(B52="","",IF(VLOOKUP(B52,'Oman Results'!C52:AI1045,31)="x",'Oman Results'!AK52,'Oman Results'!G52)) -> 550 | H52: 1650 | I52: =IF(B52="","",IF(VLOOKUP(B52,'Oman Results'!C52:AI1045,31)="x","Yes","")) ->  | J52: =IF(B52="","",IF(VLOOKUP(B52,'Oman Results'!C52:AI1045,31)="x",'Oman Results'!G52,"")) ->  | K52: =IF(B52="","",IF(VLOOKUP(B52,'Oman Results'!C52:AI1045,31)="x",'Oman Results'!AJ52,"")) ->  | L52: =IF(B52="","",IF(VLOOKUP(B52,'Oman Results'!C52:AI1045,31)="x",'Oman Results'!AK52,"")) ->  | R52: 1650
A53: 52 | B53: =IF('Oman Results'!C53="","",'Oman Results'!C53) -> 605-06140 | C53: =IF(OR('Oman Results'!D53="",'Oman Results'!D53="Totals"),"",'Oman Results'!D53) -> CURB AND GUTTER, CONCRETE | E53: =IF('Oman Results'!E53="","",'Oman Results'!E53) -> 145 | F53: =IF('Oman Results'!F53="","",'Oman Results'!F53) -> L.F. | G53: =IF(B53="","",IF(VLOOKUP(B53,'Oman Results'!C53:AI1046,31)="x",'Oman Results'!AK53,'Oman Results'!G53)) -> 15.5 | H53: 2247.5 | I53: =IF(B53="","",IF(VLOOKUP(B53,'Oman Results'!C53:AI1046,31)="x","Yes","")) ->  | J53: =IF(B53="","",IF(VLOOKUP(B53,'Oman Results'!C53:AI1046,31)="x",'Oman Results'!G53,"")) ->  | K53: =IF(B53="","",IF(VLOOKUP(B53,'Oman Results'!C53:AI1046,31)="x",'Oman Results'!AJ53,"")) ->  | L53: =IF(B53="","",IF(VLOOKUP(B53,'Oman Results'!C53:AI1046,31)="x",'Oman Results'!AK53,"")) ->  | R53: 2247.5
A54: 53 | B54: =IF('Oman Results'!C54="","",'Oman Results'!C54) -> 606-07484 | C54: =IF(OR('Oman Results'!D54="",'Oman Results'!D54="Totals"),"",'Oman Results'!D54) -> MILLED HMA SHOULDER CORRUGATIONS | E54: =IF('Oman Results'!E54="","",'Oman Results'!E54) -> 39500 | F54: =IF('Oman Results'!F54="","",'Oman Results'!F54) -> L.F. | G54: =IF(B54="","",IF(VLOOKUP(B54,'Oman Results'!C54:AI1047,31)="x",'Oman Results'!AK54,'Oman Results'!G54)) -> 0.19 | H54: 7505 | I54: =IF(B54="","",IF(VLOOKUP(B54,'Oman Results'!C54:AI1047,31)="x","Yes","")) ->  | J54: =IF(B54="","",IF(VLOOKUP(B54,'Oman Results'!C54:AI1047,31)="x",'Oman Results'!G54,"")) ->  | K54: =IF(B54="","",IF(VLOOKUP(B54,'Oman Results'!C54:AI1047,31)="x",'Oman Results'!AJ54,"")) ->  | L54: =IF(B54="","",IF(VLOOKUP(B54,'Oman Results'!C54:AI1047,31)="x",'Oman Results'!AK54,"")) ->  | R54: 7505
A55: 54 | B55: =IF('Oman Results'!C55="","",'Oman Results'!C55) -> 609-06259 | C55: =IF(OR('Oman Results'!D55="",'Oman Results'!D55="Totals"),"",'Oman Results'!D55) -> REINFORCED CONCRETE BRIDGE APPROACH 12 IN | E55: =IF('Oman Results'!E55="","",'Oman Results'!E55) -> 880 | F55: =IF('Oman Results'!F55="","",'Oman Results'!F55) -> S.Y. | G55: =IF(B55="","",IF(VLOOKUP(B55,'Oman Results'!C55:AI1048,31)="x",'Oman Results'!AK55,'Oman Results'!G55)) -> 78.3 | H55: 68904 | I55: =IF(B55="","",IF(VLOOKUP(B55,'Oman Results'!C55:AI1048,31)="x","Yes","")) ->  | J55: =IF(B55="","",IF(VLOOKUP(B55,'Oman Results'!C55:AI1048,31)="x",'Oman Results'!G55,"")) ->  | K55: =IF(B55="","",IF(VLOOKUP(B55,'Oman Results'!C55:AI1048,31)="x",'Oman Results'!AJ55,"")) ->  | L55: =IF(B55="","",IF(VLOOKUP(B55,'Oman Results'!C55:AI1048,31)="x",'Oman Results'!AK55,"")) ->  | R55: 68904
A56: 55 | B56: =IF('Oman Results'!C56="","",'Oman Results'!C56) -> 615-06505 | C56: =IF(OR('Oman Results'!D56="",'Oman Results'!D56="Totals"),"",'Oman Results'!D56) -> MONUMENT, B | E56: =IF('Oman Results'!E56="","",'Oman Results'!E56) -> 45 | F56: =IF('Oman Results'!F56="","",'Oman Results'!F56) -> EACH | G56: =IF(B56="","",IF(VLOOKUP(B56,'Oman Results'!C56:AI1049,31)="x",'Oman Results'!AK56,'Oman Results'!G56)) -> 671.47 | H56: 30216.15 | I56: =IF(B56="","",IF(VLOOKUP(B56,'Oman Results'!C56:AI1049,31)="x","Yes","")) ->  | J56: =IF(B56="","",IF(VLOOKUP(B56,'Oman Results'!C56:AI1049,31)="x",'Oman Results'!G56,"")) ->  | K56: =IF(B56="","",IF(VLOOKUP(B56,'Oman Results'!C56:AI1049,31)="x",'Oman Results'!AJ56,"")) ->  | L56: =IF(B56="","",IF(VLOOKUP(B56,'Oman Results'!C56:AI1049,31)="x",'Oman Results'!AK56,"")) ->  | R56: 30216.15
A57: 56 | B57: =IF('Oman Results'!C57="","",'Oman Results'!C57) -> 615-06510 | C57: =IF(OR('Oman Results'!D57="",'Oman Results'!D57="Totals"),"",'Oman Results'!D57) -> MONUMENT, C | E57: =IF('Oman Results'!E57="","",'Oman Results'!E57) -> 6 | F57: =IF('Oman Results'!F57="","",'Oman Results'!F57) -> EACH | G57: =IF(B57="","",IF(VLOOKUP(B57,'Oman Results'!C57:AI1050,31)="x",'Oman Results'!AK57,'Oman Results'!G57)) -> 470.75 | H57: 2824.5 | I57: =IF(B57="","",IF(VLOOKUP(B57,'Oman Results'!C57:AI1050,31)="x","Yes","")) ->  | J57: =IF(B57="","",IF(VLOOKUP(B57,'Oman Results'!C57:AI1050,31)="x",'Oman Results'!G57,"")) ->  | K57: =IF(B57="","",IF(VLOOKUP(B57,'Oman Results'!C57:AI1050,31)="x",'Oman Results'!AJ57,"")) ->  | L57: =IF(B57="","",IF(VLOOKUP(B57,'Oman Results'!C57:AI1050,31)="x",'Oman Results'!AK57,"")) ->  | R57: 2824.5
A58: 57 | B58: =IF('Oman Results'!C58="","",'Oman Results'!C58) -> 615-06527 | C58: =IF(OR('Oman Results'!D58="",'Oman Results'!D58="Totals"),"",'Oman Results'!D58) -> MONUMENT, SECTION CORNER | E58: =IF('Oman Results'!E58="","",'Oman Results'!E58) -> 2 | F58: =IF('Oman Results'!F58="","",'Oman Results'!F58) -> EACH | G58: =IF(B58="","",IF(VLOOKUP(B58,'Oman Results'!C58:AI1051,31)="x",'Oman Results'!AK58,'Oman Results'!G58)) -> 609.65 | H58: 1219.3 | I58: =IF(B58="","",IF(VLOOKUP(B58,'Oman Results'!C58:AI1051,31)="x","Yes","")) ->  | J58: =IF(B58="","",IF(VLOOKUP(B58,'Oman Results'!C58:AI1051,31)="x",'Oman Results'!G58,"")) ->  | K58: =IF(B58="","",IF(VLOOKUP(B58,'Oman Results'!C58:AI1051,31)="x",'Oman Results'!AJ58,"")) ->  | L58: =IF(B58="","",IF(VLOOKUP(B58,'Oman Results'!C58:AI1051,31)="x",'Oman Results'!AK58,"")) ->  | R58: 1219.3
A59: 58 | B59: =IF('Oman Results'!C59="","",'Oman Results'!C59) -> 615-92498 | C59: =IF(OR('Oman Results'!D59="",'Oman Results'!D59="Totals"),"",'Oman Results'!D59) -> BENCH MARK | E59: =IF('Oman Results'!E59="","",'Oman Results'!E59) -> 1 | F59: =IF('Oman Results'!F59="","",'Oman Results'!F59) -> EACH | G59: =IF(B59="","",IF(VLOOKUP(B59,'Oman Results'!C59:AI1052,31)="x",'Oman Results'!AK59,'Oman Results'!G59)) -> 388.33 | H59: 388.33 | I59: =IF(B59="","",IF(VLOOKUP(B59,'Oman Results'!C59:AI1052,31)="x","Yes","")) ->  | J59: =IF(B59="","",IF(VLOOKUP(B59,'Oman Results'!C59:AI1052,31)="x",'Oman Results'!G59,"")) ->  | K59: =IF(B59="","",IF(VLOOKUP(B59,'Oman Results'!C59:AI1052,31)="x",'Oman Results'!AJ59,"")) ->  | L59: =IF(B59="","",IF(VLOOKUP(B59,'Oman Results'!C59:AI1052,31)="x",'Oman Results'!AK59,"")) ->  | R59: 388.33
A60: 59 | B60: =IF('Oman Results'!C60="","",'Oman Results'!C60) -> 621-01004 | C60: =IF(OR('Oman Results'!D60="",'Oman Results'!D60="Totals"),"",'Oman Results'!D60) -> MOBILIZATION AND DEMOBILIZATION FOR SEEDING | E60: =IF('Oman Results'!E60="","",'Oman Results'!E60) -> 18 | F60: =IF('Oman Results'!F60="","",'Oman Results'!F60) -> EACH | G60: =IF(B60="","",IF(VLOOKUP(B60,'Oman Results'!C60:AI1053,31)="x",'Oman Results'!AK60,'Oman Results'!G60)) -> 425.45 | H60: 7658.1 | I60: =IF(B60="","",IF(VLOOKUP(B60,'Oman Results'!C60:AI1053,31)="x","Yes","")) ->  | J60: =IF(B60="","",IF(VLOOKUP(B60,'Oman Results'!C60:AI1053,31)="x",'Oman Results'!G60,"")) ->  | K60: =IF(B60="","",IF(VLOOKUP(B60,'Oman Results'!C60:AI1053,31)="x",'Oman Results'!AJ60,"")) ->  | L60: =IF(B60="","",IF(VLOOKUP(B60,'Oman Results'!C60:AI1053,31)="x",'Oman Results'!AK60,"")) ->  | R60: 7658.1
A61: 60 | B61: =IF('Oman Results'!C61="","",'Oman Results'!C61) -> 621-06545 | C61: =IF(OR('Oman Results'!D61="",'Oman Results'!D61="Totals"),"",'Oman Results'!D61) -> FERTILIZER | E61: =IF('Oman Results'!E61="","",'Oman Results'!E61) -> 7.2 | F61: =IF('Oman Results'!F61="","",'Oman Results'!F61) -> TON | G61: =IF(B61="","",IF(VLOOKUP(B61,'Oman Results'!C61:AI1054,31)="x",'Oman Results'!AK61,'Oman Results'!G61)) -> 341.51 | H61: 2458.872 | I61: =IF(B61="","",IF(VLOOKUP(B61,'Oman Results'!C61:AI1054,31)="x","Yes","")) ->  | J61: =IF(B61="","",IF(VLOOKUP(B61,'Oman Results'!C61:AI1054,31)="x",'Oman Results'!G61,"")) ->  | K61: =IF(B61="","",IF(VLOOKUP(B61,'Oman Results'!C61:AI1054,31)="x",'Oman Results'!AJ61,"")) ->  | L61: =IF(B61="","",IF(VLOOKUP(B61,'Oman Results'!C61:AI1054,31)="x",'Oman Results'!AK61,"")) ->  | R61: 2458.872
A62: 61 | B62: =IF('Oman Results'!C62="","",'Oman Results'!C62) -> 621-06554 | C62: =IF(OR('Oman Results'!D62="",'Oman Results'!D62="Totals"),"",'Oman Results'!D62) -> SEED MIXTURE, U | E62: =IF('Oman Results'!E62="","",'Oman Results'!E62) -> 2275 | F62: =IF('Oman Results'!F62="","",'Oman Results'!F62) -> LBS | G62: =IF(B62="","",IF(VLOOKUP(B62,'Oman Results'!C62:AI1055,31)="x",'Oman Results'!AK62,'Oman Results'!G62)) -> 4.27 | H62: 9714.25 | I62: =IF(B62="","",IF(VLOOKUP(B62,'Oman Results'!C62:AI1055,31)="x","Yes","")) ->  | J62: =IF(B62="","",IF(VLOOKUP(B62,'Oman Results'!C62:AI1055,31)="x",'Oman Results'!G62,"")) ->  | K62: =IF(B62="","",IF(VLOOKUP(B62,'Oman Results'!C62:AI1055,31)="x",'Oman Results'!AJ62,"")) ->  | L62: =IF(B62="","",IF(VLOOKUP(B62,'Oman Results'!C62:AI1055,31)="x",'Oman Results'!AK62,"")) ->  | R62: 9714.25
A63: 62 | B63: =IF('Oman Results'!C63="","",'Oman Results'!C63) -> 621-06557 | C63: =IF(OR('Oman Results'!D63="",'Oman Results'!D63="Totals"),"",'Oman Results'!D63) -> SEED MIXTURE, T | E63: =IF('Oman Results'!E63="","",'Oman Results'!E63) -> 1045 | F63: =IF('Oman Results'!F63="","",'Oman Results'!F63) -> LBS | G63: =IF(B63="","",IF(VLOOKUP(B63,'Oman Results'!C63:AI1056,31)="x",'Oman Results'!AK63,'Oman Results'!G63)) -> 2.33 | H63: 2434.85 | I63: =IF(B63="","",IF(VLOOKUP(B63,'Oman Results'!C63:AI1056,31)="x","Yes","")) ->  | J63: =IF(B63="","",IF(VLOOKUP(B63,'Oman Results'!C63:AI1056,31)="x",'Oman Results'!G63,"")) ->  | K63: =IF(B63="","",IF(VLOOKUP(B63,'Oman Results'!C63:AI1056,31)="x",'Oman Results'!AJ63,"")) ->  | L63: =IF(B63="","",IF(VLOOKUP(B63,'Oman Results'!C63:AI1056,31)="x",'Oman Results'!AK63,"")) ->  | R63: 2434.85
A64: 63 | B64: =IF('Oman Results'!C64="","",'Oman Results'!C64) -> 621-06565 | C64: =IF(OR('Oman Results'!D64="",'Oman Results'!D64="Totals"),"",'Oman Results'!D64) -> MULCHING MATERIAL | E64: =IF('Oman Results'!E64="","",'Oman Results'!E64) -> 42 | F64: =IF('Oman Results'!F64="","",'Oman Results'!F64) -> TON | G64: =IF(B64="","",IF(VLOOKUP(B64,'Oman Results'!C64:AI1057,31)="x",'Oman Results'!AK64,'Oman Results'!G64)) -> 278.57 | H64: 11699.94 | I64: =IF(B64="","",IF(VLOOKUP(B64,'Oman Results'!C64:AI1057,31)="x","Yes","")) ->  | J64: =IF(B64="","",IF(VLOOKUP(B64,'Oman Results'!C64:AI1057,31)="x",'Oman Results'!G64,"")) ->  | K64: =IF(B64="","",IF(VLOOKUP(B64,'Oman Results'!C64:AI1057,31)="x",'Oman Results'!AJ64,"")) ->  | L64: =IF(B64="","",IF(VLOOKUP(B64,'Oman Results'!C64:AI1057,31)="x",'Oman Results'!AK64,"")) ->  | R64: 11699.94
A65: 64 | B65: =IF('Oman Results'!C65="","",'Oman Results'!C65) -> 621-06574 | C65: =IF(OR('Oman Results'!D65="",'Oman Results'!D65="Totals"),"",'Oman Results'!D65) -> SODDING | E65: =IF('Oman Results'!E65="","",'Oman Results'!E65) -> 1675 | F65: =IF('Oman Results'!F65="","",'Oman Results'!F65) -> S.Y. | G65: =IF(B65="","",IF(VLOOKUP(B65,'Oman Results'!C65:AI1058,31)="x",'Oman Results'!AK65,'Oman Results'!G65)) -> 3.15 | H65: 5276.25 | I65: =IF(B65="","",IF(VLOOKUP(B65,'Oman Results'!C65:AI1058,31)="x","Yes","")) ->  | J65: =IF(B65="","",IF(VLOOKUP(B65,'Oman Results'!C65:AI1058,31)="x",'Oman Results'!G65,"")) ->  | K65: =IF(B65="","",IF(VLOOKUP(B65,'Oman Results'!C65:AI1058,31)="x",'Oman Results'!AJ65,"")) ->  | L65: =IF(B65="","",IF(VLOOKUP(B65,'Oman Results'!C65:AI1058,31)="x",'Oman Results'!AK65,"")) ->  | R65: 5276.25
A66: 65 | B66: =IF('Oman Results'!C66="","",'Oman Results'!C66) -> 628-09403 | C66: =IF(OR('Oman Results'!D66="",'Oman Results'!D66="Totals"),"",'Oman Results'!D66) -> FIELD OFFICE, C | E66: =IF('Oman Results'!E66="","",'Oman Results'!E66) -> 18 | F66: =IF('Oman Results'!F66="","",'Oman Results'!F66) -> MONTH | G66: =IF(B66="","",IF(VLOOKUP(B66,'Oman Results'!C66:AI1059,31)="x",'Oman Results'!AK66,'Oman Results'!G66)) -> 2376.11 | H66: 42769.98 | I66: =IF(B66="","",IF(VLOOKUP(B66,'Oman Results'!C66:AI1059,31)="x","Yes","")) ->  | J66: =IF(B66="","",IF(VLOOKUP(B66,'Oman Results'!C66:AI1059,31)="x",'Oman Results'!G66,"")) ->  | K66: =IF(B66="","",IF(VLOOKUP(B66,'Oman Results'!C66:AI1059,31)="x",'Oman Results'!AJ66,"")) ->  | L66: =IF(B66="","",IF(VLOOKUP(B66,'Oman Results'!C66:AI1059,31)="x",'Oman Results'!AK66,"")) ->  | P66: =IF(O66=1,G66,"") ->  | R66: =IF(O66=1,"",H66) -> 42769.98
A67: 66 | B67: =IF('Oman Results'!C67="","",'Oman Results'!C67) -> 701-01814 | C67: =IF(OR('Oman Results'!D67="",'Oman Results'!D67="Totals"),"",'Oman Results'!D67) -> MOBILIZATION FOR DYNAMIC PILE MONITORING AND EQUIPMENT | D67: =IF(ISNUMBER(SEARCH("{",C67)),"Yes", "") ->  | E67: =IF('Oman Results'!E67="","",'Oman Results'!E67) -> 2 | F67: =IF('Oman Results'!F67="","",'Oman Results'!F67) -> EACH | G67: =IF(B67="","",IF(VLOOKUP(B67,'Oman Results'!C67:AI1060,31)="x",'Oman Results'!AK67,'Oman Results'!G67)) -> 1264.76 | H67: =IF(E67="","",E67*G67) -> 2529.52 | I67: =IF(B67="","",IF(VLOOKUP(B67,'Oman Results'!C67:AI1060,31)="x","Yes","")) ->  | J67: =IF(B67="","",IF(VLOOKUP(B67,'Oman Results'!C67:AI1060,31)="x",'Oman Results'!G67,"")) ->  | K67: =IF(B67="","",IF(VLOOKUP(B67,'Oman Results'!C67:AI1060,31)="x",'Oman Results'!AJ67,"")) ->  | L67: =IF(B67="","",IF(VLOOKUP(B67,'Oman Results'!C67:AI1060,31)="x",'Oman Results'!AK67,"")) ->  | O67: =IF(OR(LEFT(F67,3)="L.S",LEFT(F67,2)="LS"),1,"") ->  | Q67: =IF(I67="Yes",G67,"") ->  | R67: 2529.52
A68: =IF(B68="","",1+A67) -> 67 | B68: =IF('Oman Results'!C68="","",'Oman Results'!C68) -> 701-05780 | C68: =IF(OR('Oman Results'!D68="",'Oman Results'!D68="Totals"),"",'Oman Results'!D68) -> DRILLED SHAFT CONCRETE | E68: =IF('Oman Results'!E68="","",'Oman Results'!E68) -> 350 | F68: =IF('Oman Results'!F68="","",'Oman Results'!F68) -> C.Y. | G68: =IF(B68="","",IF(VLOOKUP(B68,'Oman Results'!C68:AI1061,31)="x",'Oman Results'!AK68,'Oman Results'!G68)) -> 526 | H68: 184100 | I68: =IF(B68="","",IF(VLOOKUP(B68,'Oman Results'!C68:AI1061,31)="x","Yes","")) ->  | J68: =IF(B68="","",IF(VLOOKUP(B68,'Oman Results'!C68:AI1061,31)="x",'Oman Results'!G68,"")) ->  | K68: =IF(B68="","",IF(VLOOKUP(B68,'Oman Results'!C68:AI1061,31)="x",'Oman Results'!AJ68,"")) ->  | L68: =IF(B68="","",IF(VLOOKUP(B68,'Oman Results'!C68:AI1061,31)="x",'Oman Results'!AK68,"")) ->  | R68: 184100
A69: 68 | B69: =IF('Oman Results'!C69="","",'Oman Results'!C69) -> 701-05781 | C69: =IF(OR('Oman Results'!D69="",'Oman Results'!D69="Totals"),"",'Oman Results'!D69) -> UNCLASSIFIED SHAFT EXCAVATION | E69: =IF('Oman Results'!E69="","",'Oman Results'!E69) -> 180 | F69: =IF('Oman Results'!F69="","",'Oman Results'!F69) -> C.Y. | G69: =IF(B69="","",IF(VLOOKUP(B69,'Oman Results'!C69:AI1062,31)="x",'Oman Results'!AK69,'Oman Results'!G69)) -> 345 | H69: 62100 | I69: =IF(B69="","",IF(VLOOKUP(B69,'Oman Results'!C69:AI1062,31)="x","Yes","")) ->  | J69: =IF(B69="","",IF(VLOOKUP(B69,'Oman Results'!C69:AI1062,31)="x",'Oman Results'!G69,"")) ->  | K69: =IF(B69="","",IF(VLOOKUP(B69,'Oman Results'!C69:AI1062,31)="x",'Oman Results'!AJ69,"")) ->  | L69: =IF(B69="","",IF(VLOOKUP(B69,'Oman Results'!C69:AI1062,31)="x",'Oman Results'!AK69,"")) ->  | R69: 62100
A70: 69 | B70: =IF('Oman Results'!C70="","",'Oman Results'!C70) -> 701-05782 | C70: =IF(OR('Oman Results'!D70="",'Oman Results'!D70="Totals"),"",'Oman Results'!D70) -> UNCLASSIFIED EXTRA DEPTH EXCAVATION | E70: =IF('Oman Results'!E70="","",'Oman Results'!E70) -> 50 | F70: =IF('Oman Results'!F70="","",'Oman Results'!F70) -> C.Y. | G70: =IF(B70="","",IF(VLOOKUP(B70,'Oman Results'!C70:AI1063,31)="x",'Oman Results'!AK70,'Oman Results'!G70)) -> 509 | H70: 25450 | I70: =IF(B70="","",IF(VLOOKUP(B70,'Oman Results'!C70:AI1063,31)="x","Yes","")) ->  | J70: =IF(B70="","",IF(VLOOKUP(B70,'Oman Results'!C70:AI1063,31)="x",'Oman Results'!G70,"")) ->  | K70: =IF(B70="","",IF(VLOOKUP(B70,'Oman Results'!C70:AI1063,31)="x",'Oman Results'!AJ70,"")) ->  | L70: =IF(B70="","",IF(VLOOKUP(B70,'Oman Results'!C70:AI1063,31)="x",'Oman Results'!AK70,"")) ->  | R70: 25450
A71: 70 | B71: =IF('Oman Results'!C71="","",'Oman Results'!C71) -> 701-05783 | C71: =IF(OR('Oman Results'!D71="",'Oman Results'!D71="Totals"),"",'Oman Results'!D71) -> OBSTRUCTIONS | E71: =IF('Oman Results'!E71="","",'Oman Results'!E71) -> 30 | F71: =IF('Oman Results'!F71="","",'Oman Results'!F71) -> HOUR | G71: =IF(B71="","",IF(VLOOKUP(B71,'Oman Results'!C71:AI1064,31)="x",'Oman Results'!AK71,'Oman Results'!G71)) -> 703 | H71: 21090 | I71: =IF(B71="","",IF(VLOOKUP(B71,'Oman Results'!C71:AI1064,31)="x","Yes","")) ->  | J71: =IF(B71="","",IF(VLOOKUP(B71,'Oman Results'!C71:AI1064,31)="x",'Oman Results'!G71,"")) ->  | K71: =IF(B71="","",IF(VLOOKUP(B71,'Oman Results'!C71:AI1064,31)="x",'Oman Results'!AJ71,"")) ->  | L71: =IF(B71="","",IF(VLOOKUP(B71,'Oman Results'!C71:AI1064,31)="x",'Oman Results'!AK71,"")) ->  | R71: 21090
A72: 71 | B72: =IF('Oman Results'!C72="","",'Oman Results'!C72) -> 701-06011 | C72: =IF(OR('Oman Results'!D72="",'Oman Results'!D72="Totals"),"",'Oman Results'!D72) -> DYNAMIC PILE LOAD TEST | E72: =IF('Oman Results'!E72="","",'Oman Results'!E72) -> 4 | F72: =IF('Oman Results'!F72="","",'Oman Results'!F72) -> EACH | G72: =IF(B72="","",IF(VLOOKUP(B72,'Oman Results'!C72:AI1065,31)="x",'Oman Results'!AK72,'Oman Results'!G72)) -> 1829.48 | H72: 7317.92 | I72: =IF(B72="","",IF(VLOOKUP(B72,'Oman Results'!C72:AI1065,31)="x","Yes","")) ->  | J72: =IF(B72="","",IF(VLOOKUP(B72,'Oman Results'!C72:AI1065,31)="x",'Oman Results'!G72,"")) ->  | K72: =IF(B72="","",IF(VLOOKUP(B72,'Oman Results'!C72:AI1065,31)="x",'Oman Results'!AJ72,"")) ->  | L72: =IF(B72="","",IF(VLOOKUP(B72,'Oman Results'!C72:AI1065,31)="x",'Oman Results'!AK72,"")) ->  | R72: 7317.92
A73: 72 | B73: =IF('Oman Results'!C73="","",'Oman Results'!C73) -> 701-09557 | C73: =IF(OR('Oman Results'!D73="",'Oman Results'!D73="Totals"),"",'Oman Results'!D73) -> TEST PILE, DYNAMIC, PRODUCTION | E73: =IF('Oman Results'!E73="","",'Oman Results'!E73) -> 350 | F73: =IF('Oman Results'!F73="","",'Oman Results'!F73) -> L.F. | G73: =IF(B73="","",IF(VLOOKUP(B73,'Oman Results'!C73:AI1066,31)="x",'Oman Results'!AK73,'Oman Results'!G73)) -> 48.69 | H73: 17041.5 | I73: =IF(B73="","",IF(VLOOKUP(B73,'Oman Results'!C73:AI1066,31)="x","Yes","")) ->  | J73: =IF(B73="","",IF(VLOOKUP(B73,'Oman Results'!C73:AI1066,31)="x",'Oman Results'!G73,"")) ->  | K73: =IF(B73="","",IF(VLOOKUP(B73,'Oman Results'!C73:AI1066,31)="x",'Oman Results'!AJ73,"")) ->  | L73: =IF(B73="","",IF(VLOOKUP(B73,'Oman Results'!C73:AI1066,31)="x",'Oman Results'!AK73,"")) ->  | R73: 17041.5
A74: 73 | B74: =IF('Oman Results'!C74="","",'Oman Results'!C74) -> 701-09559 | C74: =IF(OR('Oman Results'!D74="",'Oman Results'!D74="Totals"),"",'Oman Results'!D74) -> TEST PILE, DYNAMIC, RESTRIKE | E74: =IF('Oman Results'!E74="","",'Oman Results'!E74) -> 5 | F74: =IF('Oman Results'!F74="","",'Oman Results'!F74) -> EACH | G74: =IF(B74="","",IF(VLOOKUP(B74,'Oman Results'!C74:AI1067,31)="x",'Oman Results'!AK74,'Oman Results'!G74)) -> 1356.13 | H74: 6780.65 | I74: =IF(B74="","",IF(VLOOKUP(B74,'Oman Results'!C74:AI1067,31)="x","Yes","")) ->  | J74: =IF(B74="","",IF(VLOOKUP(B74,'Oman Results'!C74:AI1067,31)="x",'Oman Results'!G74,"")) ->  | K74: =IF(B74="","",IF(VLOOKUP(B74,'Oman Results'!C74:AI1067,31)="x",'Oman Results'!AJ74,"")) ->  | L74: =IF(B74="","",IF(VLOOKUP(B74,'Oman Results'!C74:AI1067,31)="x",'Oman Results'!AK74,"")) ->  | R74: 6780.65
A75: 74 | B75: =IF('Oman Results'!C75="","",'Oman Results'!C75) -> 701-09683 | C75: =IF(OR('Oman Results'!D75="",'Oman Results'!D75="Totals"),"",'Oman Results'!D75) -> PILE SHOE, HP 12 X 74 | E75: =IF('Oman Results'!E75="","",'Oman Results'!E75) -> 85 | F75: =IF('Oman Results'!F75="","",'Oman Results'!F75) -> EACH | G75: =IF(B75="","",IF(VLOOKUP(B75,'Oman Results'!C75:AI1068,31)="x",'Oman Results'!AK75,'Oman Results'!G75)) -> 150 | H75: 12750 | I75: =IF(B75="","",IF(VLOOKUP(B75,'Oman Results'!C75:AI1068,31)="x","Yes","")) ->  | J75: =IF(B75="","",IF(VLOOKUP(B75,'Oman Results'!C75:AI1068,31)="x",'Oman Results'!G75,"")) ->  | K75: =IF(B75="","",IF(VLOOKUP(B75,'Oman Results'!C75:AI1068,31)="x",'Oman Results'!AJ75,"")) ->  | L75: =IF(B75="","",IF(VLOOKUP(B75,'Oman Results'!C75:AI1068,31)="x",'Oman Results'!AK75,"")) ->  | R75: 12750
A76: 75 | B76: =IF('Oman Results'!C76="","",'Oman Results'!C76) -> 701-95780 | C76: =IF(OR('Oman Results'!D76="",'Oman Results'!D76="Totals"),"",'Oman Results'!D76) -> PILE, STEEL H, HP 12 IN X 74 | E76: =IF('Oman Results'!E76="","",'Oman Results'!E76) -> 5780 | F76: =IF('Oman Results'!F76="","",'Oman Results'!F76) -> L.F. | G76: =IF(B76="","",IF(VLOOKUP(B76,'Oman Results'!C76:AI1069,31)="x",'Oman Results'!AK76,'Oman Results'!G76)) -> 27.33 | H76: 157967.4 | I76: =IF(B76="","",IF(VLOOKUP(B76,'Oman Results'!C76:AI1069,31)="x","Yes","")) ->  | J76: =IF(B76="","",IF(VLOOKUP(B76,'Oman Results'!C76:AI1069,31)="x",'Oman Results'!G76,"")) ->  | K76: =IF(B76="","",IF(VLOOKUP(B76,'Oman Results'!C76:AI1069,31)="x",'Oman Results'!AJ76,"")) ->  | L76: =IF(B76="","",IF(VLOOKUP(B76,'Oman Results'!C76:AI1069,31)="x",'Oman Results'!AK76,"")) ->  | R76: 157967.4
A77: 76 | B77: =IF('Oman Results'!C77="","",'Oman Results'!C77) -> 702-51005 | C77: =IF(OR('Oman Results'!D77="",'Oman Results'!D77="Totals"),"",'Oman Results'!D77) -> CONCRETE, A, SUBSTRUCTURE | E77: =IF('Oman Results'!E77="","",'Oman Results'!E77) -> 815 | F77: =IF('Oman Results'!F77="","",'Oman Results'!F77) -> C.Y. | G77: =IF(B77="","",IF(VLOOKUP(B77,'Oman Results'!C77:AI1070,31)="x",'Oman Results'!AK77,'Oman Results'!G77)) -> 545.87 | H77: 444884.05 | I77: =IF(B77="","",IF(VLOOKUP(B77,'Oman Results'!C77:AI1070,31)="x","Yes","")) ->  | J77: =IF(B77="","",IF(VLOOKUP(B77,'Oman Results'!C77:AI1070,31)="x",'Oman Results'!G77,"")) ->  | K77: =IF(B77="","",IF(VLOOKUP(B77,'Oman Results'!C77:AI1070,31)="x",'Oman Results'!AJ77,"")) ->  | L77: =IF(B77="","",IF(VLOOKUP(B77,'Oman Results'!C77:AI1070,31)="x",'Oman Results'!AK77,"")) ->  | R77: 444884.05
A78: 77 | B78: =IF('Oman Results'!C78="","",'Oman Results'!C78) -> 702-51110 | C78: =IF(OR('Oman Results'!D78="",'Oman Results'!D78="Totals"),"",'Oman Results'!D78) -> GRATES, BASINS, AND FITTINGS, CAST IRON | E78: =IF('Oman Results'!E78="","",'Oman Results'!E78) -> 10200 | F78: =IF('Oman Results'!F78="","",'Oman Results'!F78) -> LBS | G78: =IF(B78="","",IF(VLOOKUP(B78,'Oman Results'!C78:AI1071,31)="x",'Oman Results'!AK78,'Oman Results'!G78)) -> 5.15 | H78: 52530 | I78: =IF(B78="","",IF(VLOOKUP(B78,'Oman Results'!C78:AI1071,31)="x","Yes","")) ->  | J78: =IF(B78="","",IF(VLOOKUP(B78,'Oman Results'!C78:AI1071,31)="x",'Oman Results'!G78,"")) ->  | K78: =IF(B78="","",IF(VLOOKUP(B78,'Oman Results'!C78:AI1071,31)="x",'Oman Results'!AJ78,"")) ->  | L78: =IF(B78="","",IF(VLOOKUP(B78,'Oman Results'!C78:AI1071,31)="x",'Oman Results'!AK78,"")) ->  | R78: 52530
A79: 78 | B79: =IF('Oman Results'!C79="","",'Oman Results'!C79) -> 703-06028 | C79: =IF(OR('Oman Results'!D79="",'Oman Results'!D79="Totals"),"",'Oman Results'!D79) -> REINFORCING BARS | E79: =IF('Oman Results'!E79="","",'Oman Results'!E79) -> 89175 | F79: =IF('Oman Results'!F79="","",'Oman Results'!F79) -> LBS | G79: =IF(B79="","",IF(VLOOKUP(B79,'Oman Results'!C79:AI1072,31)="x",'Oman Results'!AK79,'Oman Results'!G79)) -> 0.9 | H79: 80257.5 | I79: =IF(B79="","",IF(VLOOKUP(B79,'Oman Results'!C79:AI1072,31)="x","Yes","")) ->  | J79: =IF(B79="","",IF(VLOOKUP(B79,'Oman Results'!C79:AI1072,31)="x",'Oman Results'!G79,"")) ->  | K79: =IF(B79="","",IF(VLOOKUP(B79,'Oman Results'!C79:AI1072,31)="x",'Oman Results'!AJ79,"")) ->  | L79: =IF(B79="","",IF(VLOOKUP(B79,'Oman Results'!C79:AI1072,31)="x",'Oman Results'!AK79,"")) ->  | R79: 80257.5
A80: 79 | B80: =IF('Oman Results'!C80="","",'Oman Results'!C80) -> 703-06029 | C80: =IF(OR('Oman Results'!D80="",'Oman Results'!D80="Totals"),"",'Oman Results'!D80) -> REINFORCING BARS, EPOXY COATED | E80: =IF('Oman Results'!E80="","",'Oman Results'!E80) -> 388200 | F80: =IF('Oman Results'!F80="","",'Oman Results'!F80) -> LBS | G80: =IF(B80="","",IF(VLOOKUP(B80,'Oman Results'!C80:AI1073,31)="x",'Oman Results'!AK80,'Oman Results'!G80)) -> 0.94 | H80: 364908 | I80: =IF(B80="","",IF(VLOOKUP(B80,'Oman Results'!C80:AI1073,31)="x","Yes","")) ->  | J80: =IF(B80="","",IF(VLOOKUP(B80,'Oman Results'!C80:AI1073,31)="x",'Oman Results'!G80,"")) ->  | K80: =IF(B80="","",IF(VLOOKUP(B80,'Oman Results'!C80:AI1073,31)="x",'Oman Results'!AJ80,"")) ->  | L80: =IF(B80="","",IF(VLOOKUP(B80,'Oman Results'!C80:AI1073,31)="x",'Oman Results'!AK80,"")) ->  | R80: 364908
A81: 80 | B81: =IF('Oman Results'!C81="","",'Oman Results'!C81) -> 704-51002 | C81: =IF(OR('Oman Results'!D81="",'Oman Results'!D81="Totals"),"",'Oman Results'!D81) -> CONCRETE, C, SUPERSTRUCTURE | E81: =IF('Oman Results'!E81="","",'Oman Results'!E81) -> 955 | F81: =IF('Oman Results'!F81="","",'Oman Results'!F81) -> C.Y. | G81: =IF(B81="","",IF(VLOOKUP(B81,'Oman Results'!C81:AI1074,31)="x",'Oman Results'!AK81,'Oman Results'!G81)) -> 558.25 | H81: 533128.75 | I81: =IF(B81="","",IF(VLOOKUP(B81,'Oman Results'!C81:AI1074,31)="x","Yes","")) ->  | J81: =IF(B81="","",IF(VLOOKUP(B81,'Oman Results'!C81:AI1074,31)="x",'Oman Results'!G81,"")) ->  | K81: =IF(B81="","",IF(VLOOKUP(B81,'Oman Results'!C81:AI1074,31)="x",'Oman Results'!AJ81,"")) ->  | L81: =IF(B81="","",IF(VLOOKUP(B81,'Oman Results'!C81:AI1074,31)="x",'Oman Results'!AK81,"")) ->  | R81: 533128.75
A82: 81 | B82: =IF('Oman Results'!C82="","",'Oman Results'!C82) -> 706-05734 | C82: =IF(OR('Oman Results'!D82="",'Oman Results'!D82="Totals"),"",'Oman Results'!D82) -> CONCRETE BRIDGE RAILING TRANSITION, TBT | E82: =IF('Oman Results'!E82="","",'Oman Results'!E82) -> 8 | F82: =IF('Oman Results'!F82="","",'Oman Results'!F82) -> EACH | G82: =IF(B82="","",IF(VLOOKUP(B82,'Oman Results'!C82:AI1075,31)="x",'Oman Results'!AK82,'Oman Results'!G82)) -> 1836 | H82: 14688 | I82: =IF(B82="","",IF(VLOOKUP(B82,'Oman Results'!C82:AI1075,31)="x","Yes","")) ->  | J82: =IF(B82="","",IF(VLOOKUP(B82,'Oman Results'!C82:AI1075,31)="x",'Oman Results'!G82,"")) ->  | K82: =IF(B82="","",IF(VLOOKUP(B82,'Oman Results'!C82:AI1075,31)="x",'Oman Results'!AJ82,"")) ->  | L82: =IF(B82="","",IF(VLOOKUP(B82,'Oman Results'!C82:AI1075,31)="x",'Oman Results'!AK82,"")) ->  | R82: 14688
A83: 82 | B83: =IF('Oman Results'!C83="","",'Oman Results'!C83) -> 706-08496 | C83: =IF(OR('Oman Results'!D83="",'Oman Results'!D83="Totals"),"",'Oman Results'!D83) -> REINFORCED CONCRETE MOMENT SLAB, 12 IN | E83: =IF('Oman Results'!E83="","",'Oman Results'!E83) -> 3350 | F83: =IF('Oman Results'!F83="","",'Oman Results'!F83) -> S.Y. | G83: =IF(B83="","",IF(VLOOKUP(B83,'Oman Results'!C83:AI1076,31)="x",'Oman Results'!AK83,'Oman Results'!G83)) -> 85.42 | H83: 286157 | I83: =IF(B83="","",IF(VLOOKUP(B83,'Oman Results'!C83:AI1076,31)="x","Yes","")) ->  | J83: =IF(B83="","",IF(VLOOKUP(B83,'Oman Results'!C83:AI1076,31)="x",'Oman Results'!G83,"")) ->  | K83: =IF(B83="","",IF(VLOOKUP(B83,'Oman Results'!C83:AI1076,31)="x",'Oman Results'!AJ83,"")) ->  | L83: =IF(B83="","",IF(VLOOKUP(B83,'Oman Results'!C83:AI1076,31)="x",'Oman Results'!AK83,"")) ->  | R83: 286157
A84: 83 | B84: =IF('Oman Results'!C84="","",'Oman Results'!C84) -> 706-51020 | C84: =IF(OR('Oman Results'!D84="",'Oman Results'!D84="Totals"),"",'Oman Results'!D84) -> RAILING, CONCRETE, C | E84: =IF('Oman Results'!E84="","",'Oman Results'!E84) -> 240 | F84: =IF('Oman Results'!F84="","",'Oman Results'!F84) -> C.Y. | G84: =IF(B84="","",IF(VLOOKUP(B84,'Oman Results'!C84:AI1077,31)="x",'Oman Results'!AK84,'Oman Results'!G84)) -> 496.11 | H84: 119066.4 | I84: =IF(B84="","",IF(VLOOKUP(B84,'Oman Results'!C84:AI1077,31)="x","Yes","")) ->  | J84: =IF(B84="","",IF(VLOOKUP(B84,'Oman Results'!C84:AI1077,31)="x",'Oman Results'!G84,"")) ->  | K84: =IF(B84="","",IF(VLOOKUP(B84,'Oman Results'!C84:AI1077,31)="x",'Oman Results'!AJ84,"")) ->  | L84: =IF(B84="","",IF(VLOOKUP(B84,'Oman Results'!C84:AI1077,31)="x",'Oman Results'!AK84,"")) ->  | R84: 119066.4
A85: 84 | B85: =IF('Oman Results'!C85="","",'Oman Results'!C85) -> 707-01065 | C85: =IF(OR('Oman Results'!D85="",'Oman Results'!D85="Totals"),"",'Oman Results'!D85) -> POST-TENSIONING | E85: =IF('Oman Results'!E85="","",'Oman Results'!E85) -> 1 | F85: =IF('Oman Results'!F85="","",'Oman Results'!F85) -> L.S. | G85: =IF(B85="","",IF(VLOOKUP(B85,'Oman Results'!C85:AI1078,31)="x",'Oman Results'!AK85,'Oman Results'!G85)) -> 324000 | H85: 324000 | I85: =IF(B85="","",IF(VLOOKUP(B85,'Oman Results'!C85:AI1078,31)="x","Yes","")) ->  | J85: =IF(B85="","",IF(VLOOKUP(B85,'Oman Results'!C85:AI1078,31)="x",'Oman Results'!G85,"")) ->  | K85: =IF(B85="","",IF(VLOOKUP(B85,'Oman Results'!C85:AI1078,31)="x",'Oman Results'!AJ85,"")) ->  | L85: =IF(B85="","",IF(VLOOKUP(B85,'Oman Results'!C85:AI1078,31)="x",'Oman Results'!AK85,"")) ->  | O85: 1 | P85: 324000
A86: 85 | B86: =IF('Oman Results'!C86="","",'Oman Results'!C86) -> 709-51821 | C86: =IF(OR('Oman Results'!D86="",'Oman Results'!D86="Totals"),"",'Oman Results'!D86) -> SURFACE SEAL | E86: =IF('Oman Results'!E86="","",'Oman Results'!E86) -> 1 | F86: =IF('Oman Results'!F86="","",'Oman Results'!F86) -> L.S. | G86: =IF(B86="","",IF(VLOOKUP(B86,'Oman Results'!C86:AI1079,31)="x",'Oman Results'!AK86,'Oman Results'!G86)) -> 9377.93 | H86: 9377.93 | I86: =IF(B86="","",IF(VLOOKUP(B86,'Oman Results'!C86:AI1079,31)="x","Yes","")) ->  | J86: =IF(B86="","",IF(VLOOKUP(B86,'Oman Results'!C86:AI1079,31)="x",'Oman Results'!G86,"")) ->  | K86: =IF(B86="","",IF(VLOOKUP(B86,'Oman Results'!C86:AI1079,31)="x",'Oman Results'!AJ86,"")) ->  | L86: =IF(B86="","",IF(VLOOKUP(B86,'Oman Results'!C86:AI1079,31)="x",'Oman Results'!AK86,"")) ->  | O86: 1 | P86: 9377.93
A87: 86 | B87: =IF('Oman Results'!C87="","",'Oman Results'!C87) -> 711-51038 | C87: =IF(OR('Oman Results'!D87="",'Oman Results'!D87="Totals"),"",'Oman Results'!D87) -> STRUCTURAL STEEL | E87: =IF('Oman Results'!E87="","",'Oman Results'!E87) -> 1 | F87: =IF('Oman Results'!F87="","",'Oman Results'!F87) -> L.S. | G87: =IF(B87="","",IF(VLOOKUP(B87,'Oman Results'!C87:AI1080,31)="x",'Oman Results'!AK87,'Oman Results'!G87)) -> 569071.25 | H87: 569071.25 | I87: =IF(B87="","",IF(VLOOKUP(B87,'Oman Results'!C87:AI1080,31)="x","Yes","")) ->  | J87: =IF(B87="","",IF(VLOOKUP(B87,'Oman Results'!C87:AI1080,31)="x",'Oman Results'!G87,"")) ->  | K87: =IF(B87="","",IF(VLOOKUP(B87,'Oman Results'!C87:AI1080,31)="x",'Oman Results'!AJ87,"")) ->  | L87: =IF(B87="","",IF(VLOOKUP(B87,'Oman Results'!C87:AI1080,31)="x",'Oman Results'!AK87,"")) ->  | O87: 1 | P87: 569071.25
A88: 87 | B88: =IF('Oman Results'!C88="","",'Oman Results'!C88) -> 713-51820 | C88: =IF(OR('Oman Results'!D88="",'Oman Results'!D88="Totals"),"",'Oman Results'!D88) -> TEMPORARY SUPPORT | E88: =IF('Oman Results'!E88="","",'Oman Results'!E88) -> 1 | F88: =IF('Oman Results'!F88="","",'Oman Results'!F88) -> L.S. | G88: =IF(B88="","",IF(VLOOKUP(B88,'Oman Results'!C88:AI1081,31)="x",'Oman Results'!AK88,'Oman Results'!G88)) -> 962.56 | H88: 962.56 | I88: =IF(B88="","",IF(VLOOKUP(B88,'Oman Results'!C88:AI1081,31)="x","Yes","")) ->  | J88: =IF(B88="","",IF(VLOOKUP(B88,'Oman Results'!C88:AI1081,31)="x",'Oman Results'!G88,"")) ->  | K88: =IF(B88="","",IF(VLOOKUP(B88,'Oman Results'!C88:AI1081,31)="x",'Oman Results'!AJ88,"")) ->  | L88: =IF(B88="","",IF(VLOOKUP(B88,'Oman Results'!C88:AI1081,31)="x",'Oman Results'!AK88,"")) ->  | O88: 1 | P88: 962.56
A89: 88 | B89: =IF('Oman Results'!C89="","",'Oman Results'!C89) -> 714-44240 | C89: =IF(OR('Oman Results'!D89="",'Oman Results'!D89="Totals"),"",'Oman Results'!D89) -> Item Not Found in the Current Pay Item | E89: =IF('Oman Results'!E89="","",'Oman Results'!E89) -> 150 | F89: =IF('Oman Results'!F89="","",'Oman Results'!F89) -> C.Y. | G89: =IF(B89="","",IF(VLOOKUP(B89,'Oman Results'!C89:AI1082,31)="x",'Oman Results'!AK89,'Oman Results'!G89)) -> 635.64 | H89: 95346 | I89: =IF(B89="","",IF(VLOOKUP(B89,'Oman Results'!C89:AI1082,31)="x","Yes","")) ->  | J89: =IF(B89="","",IF(VLOOKUP(B89,'Oman Results'!C89:AI1082,31)="x",'Oman Results'!G89,"")) ->  | K89: =IF(B89="","",IF(VLOOKUP(B89,'Oman Results'!C89:AI1082,31)="x",'Oman Results'!AJ89,"")) ->  | L89: =IF(B89="","",IF(VLOOKUP(B89,'Oman Results'!C89:AI1082,31)="x",'Oman Results'!AK89,"")) ->  | R89: 95346
A90: 89 | B90: =IF('Oman Results'!C90="","",'Oman Results'!C90) -> 715-02246 | C90: =IF(OR('Oman Results'!D90="",'Oman Results'!D90="Totals"),"",'Oman Results'!D90) -> PIPE END SECTION, 48 IN | E90: =IF('Oman Results'!E90="","",'Oman Results'!E90) -> 2 | F90: =IF('Oman Results'!F90="","",'Oman Results'!F90) -> EACH | G90: =IF(B90="","",IF(VLOOKUP(B90,'Oman Results'!C90:AI1083,31)="x",'Oman Results'!AK90,'Oman Results'!G90)) -> 2547.81 | H90: 5095.62 | I90: =IF(B90="","",IF(VLOOKUP(B90,'Oman Results'!C90:AI1083,31)="x","Yes","")) ->  | J90: =IF(B90="","",IF(VLOOKUP(B90,'Oman Results'!C90:AI1083,31)="x",'Oman Results'!G90,"")) ->  | K90: =IF(B90="","",IF(VLOOKUP(B90,'Oman Results'!C90:AI1083,31)="x",'Oman Results'!AJ90,"")) ->  | L90: =IF(B90="","",IF(VLOOKUP(B90,'Oman Results'!C90:AI1083,31)="x",'Oman Results'!AK90,"")) ->  | R90: 5095.62
A91: 90 | B91: =IF('Oman Results'!C91="","",'Oman Results'!C91) -> 715-05048 | C91: =IF(OR('Oman Results'!D91="",'Oman Results'!D91="Totals"),"",'Oman Results'!D91) -> PIPE, TYPE 4 CIRCULAR 6 IN | E91: =IF('Oman Results'!E91="","",'Oman Results'!E91) -> 25000 | F91: =IF('Oman Results'!F91="","",'Oman Results'!F91) -> L.F. | G91: =IF(B91="","",IF(VLOOKUP(B91,'Oman Results'!C91:AI1084,31)="x",'Oman Results'!AK91,'Oman Results'!G91)) -> 3.49 | H91: 87250 | I91: =IF(B91="","",IF(VLOOKUP(B91,'Oman Results'!C91:AI1084,31)="x","Yes","")) ->  | J91: =IF(B91="","",IF(VLOOKUP(B91,'Oman Results'!C91:AI1084,31)="x",'Oman Results'!G91,"")) ->  | K91: =IF(B91="","",IF(VLOOKUP(B91,'Oman Results'!C91:AI1084,31)="x",'Oman Results'!AJ91,"")) ->  | L91: =IF(B91="","",IF(VLOOKUP(B91,'Oman Results'!C91:AI1084,31)="x",'Oman Results'!AK91,"")) ->  | R91: 87250
A92: 91 | B92: =IF('Oman Results'!C92="","",'Oman Results'!C92) -> 715-05053 | C92: =IF(OR('Oman Results'!D92="",'Oman Results'!D92="Totals"),"",'Oman Results'!D92) -> PIPE, UNDERDRAIN, OUTLET 6 IN | E92: =IF('Oman Results'!E92="","",'Oman Results'!E92) -> 1100 | F92: =IF('Oman Results'!F92="","",'Oman Results'!F92) -> L.F. | G92: =IF(B92="","",IF(VLOOKUP(B92,'Oman Results'!C92:AI1085,31)="x",'Oman Results'!AK92,'Oman Results'!G92)) -> 14.15 | H92: 15565 | I92: =IF(B92="","",IF(VLOOKUP(B92,'Oman Results'!C92:AI1085,31)="x","Yes","")) ->  | J92: =IF(B92="","",IF(VLOOKUP(B92,'Oman Results'!C92:AI1085,31)="x",'Oman Results'!G92,"")) ->  | K92: =IF(B92="","",IF(VLOOKUP(B92,'Oman Results'!C92:AI1085,31)="x",'Oman Results'!AJ92,"")) ->  | L92: =IF(B92="","",IF(VLOOKUP(B92,'Oman Results'!C92:AI1085,31)="x",'Oman Results'!AK92,"")) ->  | R92: 15565
A93: 92 | B93: =IF('Oman Results'!C93="","",'Oman Results'!C93) -> 715-05152 | C93: =IF(OR('Oman Results'!D93="",'Oman Results'!D93="Totals"),"",'Oman Results'!D93) -> PIPE, TYPE 2 CIRCULAR 18 IN | E93: =IF('Oman Results'!E93="","",'Oman Results'!E93) -> 55 | F93: =IF('Oman Results'!F93="","",'Oman Results'!F93) -> L.F. | G93: =IF(B93="","",IF(VLOOKUP(B93,'Oman Results'!C93:AI1086,31)="x",'Oman Results'!AK93,'Oman Results'!G93)) -> 39.62 | H93: 2179.1 | I93: =IF(B93="","",IF(VLOOKUP(B93,'Oman Results'!C93:AI1086,31)="x","Yes","")) ->  | J93: =IF(B93="","",IF(VLOOKUP(B93,'Oman Results'!C93:AI1086,31)="x",'Oman Results'!G93,"")) ->  | K93: =IF(B93="","",IF(VLOOKUP(B93,'Oman Results'!C93:AI1086,31)="x",'Oman Results'!AJ93,"")) ->  | L93: =IF(B93="","",IF(VLOOKUP(B93,'Oman Results'!C93:AI1086,31)="x",'Oman Results'!AK93,"")) ->  | R93: 2179.1
A94: 93 | B94: =IF('Oman Results'!C94="","",'Oman Results'!C94) -> 715-05161 | C94: =IF(OR('Oman Results'!D94="",'Oman Results'!D94="Totals"),"",'Oman Results'!D94) -> PIPE, TYPE 2 CIRCULAR 48 IN | E94: =IF('Oman Results'!E94="","",'Oman Results'!E94) -> 125 | F94: =IF('Oman Results'!F94="","",'Oman Results'!F94) -> L.F. | G94: =IF(B94="","",IF(VLOOKUP(B94,'Oman Results'!C94:AI1087,31)="x",'Oman Results'!AK94,'Oman Results'!G94)) -> 156.57 | H94: 19571.25 | I94: =IF(B94="","",IF(VLOOKUP(B94,'Oman Results'!C94:AI1087,31)="x","Yes","")) ->  | J94: =IF(B94="","",IF(VLOOKUP(B94,'Oman Results'!C94:AI1087,31)="x",'Oman Results'!G94,"")) ->  | K94: =IF(B94="","",IF(VLOOKUP(B94,'Oman Results'!C94:AI1087,31)="x",'Oman Results'!AJ94,"")) ->  | L94: =IF(B94="","",IF(VLOOKUP(B94,'Oman Results'!C94:AI1087,31)="x",'Oman Results'!AK94,"")) ->  | R94: 19571.25
A95: 94 | B95: =IF('Oman Results'!C95="","",'Oman Results'!C95) -> 715-05177 | C95: =IF(OR('Oman Results'!D95="",'Oman Results'!D95="Totals"),"",'Oman Results'!D95) -> PIPE, TYPE 3 CIRCULAR 36 IN | E95: =IF('Oman Results'!E95="","",'Oman Results'!E95) -> 200 | F95: =IF('Oman Results'!F95="","",'Oman Results'!F95) -> L.F. | G95: =IF(B95="","",IF(VLOOKUP(B95,'Oman Results'!C95:AI1088,31)="x",'Oman Results'!AK95,'Oman Results'!G95)) -> 94 | H95: 18800 | I95: =IF(B95="","",IF(VLOOKUP(B95,'Oman Results'!C95:AI1088,31)="x","Yes","")) ->  | J95: =IF(B95="","",IF(VLOOKUP(B95,'Oman Results'!C95:AI1088,31)="x",'Oman Results'!G95,"")) ->  | K95: =IF(B95="","",IF(VLOOKUP(B95,'Oman Results'!C95:AI1088,31)="x",'Oman Results'!AJ95,"")) ->  | L95: =IF(B95="","",IF(VLOOKUP(B95,'Oman Results'!C95:AI1088,31)="x",'Oman Results'!AK95,"")) ->  | R95: 18800
A96: 95 | B96: =IF('Oman Results'!C96="","",'Oman Results'!C96) -> 715-05422 | C96: =IF(OR('Oman Results'!D96="",'Oman Results'!D96="Totals"),"",'Oman Results'!D96) -> PIPE, SLOTTED DRAIN, 12 IN | E96: =IF('Oman Results'!E96="","",'Oman Results'!E96) -> 1500 | F96: =IF('Oman Results'!F96="","",'Oman Results'!F96) -> L.F. | G96: =IF(B96="","",IF(VLOOKUP(B96,'Oman Results'!C96:AI1089,31)="x",'Oman Results'!AK96,'Oman Results'!G96)) -> 62.62 | H96: 93930 | I96: =IF(B96="","",IF(VLOOKUP(B96,'Oman Results'!C96:AI1089,31)="x","Yes","")) ->  | J96: =IF(B96="","",IF(VLOOKUP(B96,'Oman Results'!C96:AI1089,31)="x",'Oman Results'!G96,"")) ->  | K96: =IF(B96="","",IF(VLOOKUP(B96,'Oman Results'!C96:AI1089,31)="x",'Oman Results'!AJ96,"")) ->  | L96: =IF(B96="","",IF(VLOOKUP(B96,'Oman Results'!C96:AI1089,31)="x",'Oman Results'!AK96,"")) ->  | R96: 93930
A97: 96 | B97: =IF('Oman Results'!C97="","",'Oman Results'!C97) -> 715-05428 | C97: =IF(OR('Oman Results'!D97="",'Oman Results'!D97="Totals"),"",'Oman Results'!D97) -> PIPE SLOTTED VANE DRAIN, 12 IN | E97: =IF('Oman Results'!E97="","",'Oman Results'!E97) -> 2775 | F97: =IF('Oman Results'!F97="","",'Oman Results'!F97) -> L.F. | G97: =IF(B97="","",IF(VLOOKUP(B97,'Oman Results'!C97:AI1090,31)="x",'Oman Results'!AK97,'Oman Results'!G97)) -> 112.15 | H97: 311216.25 | I97: =IF(B97="","",IF(VLOOKUP(B97,'Oman Results'!C97:AI1090,31)="x","Yes","")) ->  | J97: =IF(B97="","",IF(VLOOKUP(B97,'Oman Results'!C97:AI1090,31)="x",'Oman Results'!G97,"")) ->  | K97: =IF(B97="","",IF(VLOOKUP(B97,'Oman Results'!C97:AI1090,31)="x",'Oman Results'!AJ97,"")) ->  | L97: =IF(B97="","",IF(VLOOKUP(B97,'Oman Results'!C97:AI1090,31)="x",'Oman Results'!AK97,"")) ->  | R97: 311216.25
A98: 97 | B98: =IF('Oman Results'!C98="","",'Oman Results'!C98) -> 715-05756 | C98: =IF(OR('Oman Results'!D98="",'Oman Results'!D98="Totals"),"",'Oman Results'!D98) -> PIPE EXTENSION, CIRCULAR 12 IN | E98: =IF('Oman Results'!E98="","",'Oman Results'!E98) -> 450 | F98: =IF('Oman Results'!F98="","",'Oman Results'!F98) -> L.F. | G98: =IF(B98="","",IF(VLOOKUP(B98,'Oman Results'!C98:AI1091,31)="x",'Oman Results'!AK98,'Oman Results'!G98)) -> 35 | H98: 15750 | I98: =IF(B98="","",IF(VLOOKUP(B98,'Oman Results'!C98:AI1091,31)="x","Yes","")) ->  | J98: =IF(B98="","",IF(VLOOKUP(B98,'Oman Results'!C98:AI1091,31)="x",'Oman Results'!G98,"")) ->  | K98: =IF(B98="","",IF(VLOOKUP(B98,'Oman Results'!C98:AI1091,31)="x",'Oman Results'!AJ98,"")) ->  | L98: =IF(B98="","",IF(VLOOKUP(B98,'Oman Results'!C98:AI1091,31)="x",'Oman Results'!AK98,"")) ->  | R98: 15750
A99: 98 | B99: =IF('Oman Results'!C99="","",'Oman Results'!C99) -> 715-05757 | C99: =IF(OR('Oman Results'!D99="",'Oman Results'!D99="Totals"),"",'Oman Results'!D99) -> PIPE EXTENSION, CIRCULAR 36 IN | E99: =IF('Oman Results'!E99="","",'Oman Results'!E99) -> 75 | F99: =IF('Oman Results'!F99="","",'Oman Results'!F99) -> L.F. | G99: =IF(B99="","",IF(VLOOKUP(B99,'Oman Results'!C99:AI1092,31)="x",'Oman Results'!AK99,'Oman Results'!G99)) -> 61 | H99: 4575 | I99: =IF(B99="","",IF(VLOOKUP(B99,'Oman Results'!C99:AI1092,31)="x","Yes","")) ->  | J99: =IF(B99="","",IF(VLOOKUP(B99,'Oman Results'!C99:AI1092,31)="x",'Oman Results'!G99,"")) ->  | K99: =IF(B99="","",IF(VLOOKUP(B99,'Oman Results'!C99:AI1092,31)="x",'Oman Results'!AJ99,"")) ->  | L99: =IF(B99="","",IF(VLOOKUP(B99,'Oman Results'!C99:AI1092,31)="x",'Oman Results'!AK99,"")) ->  | R99: 4575
A100: 99 | B100: =IF('Oman Results'!C100="","",'Oman Results'!C100) -> 715-06337 | C100: =IF(OR('Oman Results'!D100="",'Oman Results'!D100="Totals"),"",'Oman Results'!D100) -> PIPE EXTENSION, CIRCULAR, 48 IN | E100: =IF('Oman Results'!E100="","",'Oman Results'!E100) -> 35 | F100: =IF('Oman Results'!F100="","",'Oman Results'!F100) -> L.F. | G100: =IF(B100="","",IF(VLOOKUP(B100,'Oman Results'!C100:AI1093,31)="x",'Oman Results'!AK100,'Oman Results'!G100)) -> 215 | H100: 7525 | I100: =IF(B100="","",IF(VLOOKUP(B100,'Oman Results'!C100:AI1093,31)="x","Yes","")) ->  | J100: =IF(B100="","",IF(VLOOKUP(B100,'Oman Results'!C100:AI1093,31)="x",'Oman Results'!G100,"")) ->  | K100: =IF(B100="","",IF(VLOOKUP(B100,'Oman Results'!C100:AI1093,31)="x",'Oman Results'!AJ100,"")) ->  | L100: =IF(B100="","",IF(VLOOKUP(B100,'Oman Results'!C100:AI1093,31)="x",'Oman Results'!AK100,"")) ->  | R100: 7525
A101: 100 | B101: =IF('Oman Results'!C101="","",'Oman Results'!C101) -> 715-46000 | C101: =IF(OR('Oman Results'!D101="",'Oman Results'!D101="Totals"),"",'Oman Results'!D101) -> PIPE END SECTION, 12 IN | E101: =IF('Oman Results'!E101="","",'Oman Results'!E101) -> 8 | F101: =IF('Oman Results'!F101="","",'Oman Results'!F101) -> EACH | G101: =IF(B101="","",IF(VLOOKUP(B101,'Oman Results'!C101:AI1094,31)="x",'Oman Results'!AK101,'Oman Results'!G101)) -> 403.07 | H101: 3224.56 | I101: =IF(B101="","",IF(VLOOKUP(B101,'Oman Results'!C101:AI1094,31)="x","Yes","")) ->  | J101: =IF(B101="","",IF(VLOOKUP(B101,'Oman Results'!C101:AI1094,31)="x",'Oman Results'!G101,"")) ->  | K101: =IF(B101="","",IF(VLOOKUP(B101,'Oman Results'!C101:AI1094,31)="x",'Oman Results'!AJ101,"")) ->  | L101: =IF(B101="","",IF(VLOOKUP(B101,'Oman Results'!C101:AI1094,31)="x",'Oman Results'!AK101,"")) ->  | R101: 3224.56
A102: 101 | B102: =IF('Oman Results'!C102="","",'Oman Results'!C102) -> 715-46010 | C102: =IF(OR('Oman Results'!D102="",'Oman Results'!D102="Totals"),"",'Oman Results'!D102) -> PIPE END SECTION, 18 IN | E102: =IF('Oman Results'!E102="","",'Oman Results'!E102) -> 1 | F102: =IF('Oman Results'!F102="","",'Oman Results'!F102) -> EACH | G102: =IF(B102="","",IF(VLOOKUP(B102,'Oman Results'!C102:AI1095,31)="x",'Oman Results'!AK102,'Oman Results'!G102)) -> 477.62 | H102: 477.62 | I102: =IF(B102="","",IF(VLOOKUP(B102,'Oman Results'!C102:AI1095,31)="x","Yes","")) ->  | J102: =IF(B102="","",IF(VLOOKUP(B102,'Oman Results'!C102:AI1095,31)="x",'Oman Results'!G102,"")) ->  | K102: =IF(B102="","",IF(VLOOKUP(B102,'Oman Results'!C102:AI1095,31)="x",'Oman Results'!AJ102,"")) ->  | L102: =IF(B102="","",IF(VLOOKUP(B102,'Oman Results'!C102:AI1095,31)="x",'Oman Results'!AK102,"")) ->  | R102: 477.62
A103: 102 | B103: =IF('Oman Results'!C103="","",'Oman Results'!C103) -> 715-46040 | C103: =IF(OR('Oman Results'!D103="",'Oman Results'!D103="Totals"),"",'Oman Results'!D103) -> PIPE END SECTION, 36 IN | E103: =IF('Oman Results'!E103="","",'Oman Results'!E103) -> 3 | F103: =IF('Oman Results'!F103="","",'Oman Results'!F103) -> EACH | G103: =IF(B103="","",IF(VLOOKUP(B103,'Oman Results'!C103:AI1096,31)="x",'Oman Results'!AK103,'Oman Results'!G103)) -> 1056.89 | H103: 3170.67 | I103: =IF(B103="","",IF(VLOOKUP(B103,'Oman Results'!C103:AI1096,31)="x","Yes","")) ->  | J103: =IF(B103="","",IF(VLOOKUP(B103,'Oman Results'!C103:AI1096,31)="x",'Oman Results'!G103,"")) ->  | K103: =IF(B103="","",IF(VLOOKUP(B103,'Oman Results'!C103:AI1096,31)="x",'Oman Results'!AJ103,"")) ->  | L103: =IF(B103="","",IF(VLOOKUP(B103,'Oman Results'!C103:AI1096,31)="x",'Oman Results'!AK103,"")) ->  | R103: 3170.67
A104: 103 | B104: =IF('Oman Results'!C104="","",'Oman Results'!C104) -> 718-06528 | C104: =IF(OR('Oman Results'!D104="",'Oman Results'!D104="Totals"),"",'Oman Results'!D104) -> OUTLET PROTECTOR, 1 | E104: =IF('Oman Results'!E104="","",'Oman Results'!E104) -> 35 | F104: =IF('Oman Results'!F104="","",'Oman Results'!F104) -> EACH | G104: =IF(B104="","",IF(VLOOKUP(B104,'Oman Results'!C104:AI1097,31)="x",'Oman Results'!AK104,'Oman Results'!G104)) -> 592.49 | H104: 20737.15 | I104: =IF(B104="","",IF(VLOOKUP(B104,'Oman Results'!C104:AI1097,31)="x","Yes","")) ->  | J104: =IF(B104="","",IF(VLOOKUP(B104,'Oman Results'!C104:AI1097,31)="x",'Oman Results'!G104,"")) ->  | K104: =IF(B104="","",IF(VLOOKUP(B104,'Oman Results'!C104:AI1097,31)="x",'Oman Results'!AJ104,"")) ->  | L104: =IF(B104="","",IF(VLOOKUP(B104,'Oman Results'!C104:AI1097,31)="x",'Oman Results'!AK104,"")) ->  | R104: 20737.15
A105: 104 | B105: =IF('Oman Results'!C105="","",'Oman Results'!C105) -> 718-06529 | C105: =IF(OR('Oman Results'!D105="",'Oman Results'!D105="Totals"),"",'Oman Results'!D105) -> OUTLET PROTECTOR, 2 | E105: =IF('Oman Results'!E105="","",'Oman Results'!E105) -> 34 | F105: =IF('Oman Results'!F105="","",'Oman Results'!F105) -> EACH | G105: =IF(B105="","",IF(VLOOKUP(B105,'Oman Results'!C105:AI1098,31)="x",'Oman Results'!AK105,'Oman Results'!G105)) -> 561.63 | H105: 19095.42 | I105: =IF(B105="","",IF(VLOOKUP(B105,'Oman Results'!C105:AI1098,31)="x","Yes","")) ->  | J105: =IF(B105="","",IF(VLOOKUP(B105,'Oman Results'!C105:AI1098,31)="x",'Oman Results'!G105,"")) ->  | K105: =IF(B105="","",IF(VLOOKUP(B105,'Oman Results'!C105:AI1098,31)="x",'Oman Results'!AJ105,"")) ->  | L105: =IF(B105="","",IF(VLOOKUP(B105,'Oman Results'!C105:AI1098,31)="x",'Oman Results'!AK105,"")) ->  | R105: 19095.42
A106: 105 | B106: =IF('Oman Results'!C106="","",'Oman Results'!C106) -> 718-06532 | C106: =IF(OR('Oman Results'!D106="",'Oman Results'!D106="Totals"),"",'Oman Results'!D106) -> VIDEO INSPECTION FOR UNDERDRAINS | E106: =IF('Oman Results'!E106="","",'Oman Results'!E106) -> 9000 | F106: =IF('Oman Results'!F106="","",'Oman Results'!F106) -> L.F. | G106: =IF(B106="","",IF(VLOOKUP(B106,'Oman Results'!C106:AI1099,31)="x",'Oman Results'!AK106,'Oman Results'!G106)) -> 0.99 | H106: 8910 | I106: =IF(B106="","",IF(VLOOKUP(B106,'Oman Results'!C106:AI1099,31)="x","Yes","")) ->  | J106: =IF(B106="","",IF(VLOOKUP(B106,'Oman Results'!C106:AI1099,31)="x",'Oman Results'!G106,"")) ->  | K106: =IF(B106="","",IF(VLOOKUP(B106,'Oman Results'!C106:AI1099,31)="x",'Oman Results'!AJ106,"")) ->  | L106: =IF(B106="","",IF(VLOOKUP(B106,'Oman Results'!C106:AI1099,31)="x",'Oman Results'!AK106,"")) ->  | R106: 8910
A107: 106 | B107: =IF('Oman Results'!C107="","",'Oman Results'!C107) -> 718-52610 | C107: =IF(OR('Oman Results'!D107="",'Oman Results'!D107="Totals"),"",'Oman Results'!D107) -> AGGREGATE FOR UNDERDRAINS | E107: =IF('Oman Results'!E107="","",'Oman Results'!E107) -> 2310 | F107: =IF('Oman Results'!F107="","",'Oman Results'!F107) -> C.Y. | G107: =IF(B107="","",IF(VLOOKUP(B107,'Oman Results'!C107:AI1100,31)="x",'Oman Results'!AK107,'Oman Results'!G107)) -> 33.68 | H107: 77800.8 | I107: =IF(B107="","",IF(VLOOKUP(B107,'Oman Results'!C107:AI1100,31)="x","Yes","")) ->  | J107: =IF(B107="","",IF(VLOOKUP(B107,'Oman Results'!C107:AI1100,31)="x",'Oman Results'!G107,"")) ->  | K107: =IF(B107="","",IF(VLOOKUP(B107,'Oman Results'!C107:AI1100,31)="x",'Oman Results'!AJ107,"")) ->  | L107: =IF(B107="","",IF(VLOOKUP(B107,'Oman Results'!C107:AI1100,31)="x",'Oman Results'!AK107,"")) ->  | R107: 77800.8
A108: 107 | B108: =IF('Oman Results'!C108="","",'Oman Results'!C108) -> 718-99153 | C108: =IF(OR('Oman Results'!D108="",'Oman Results'!D108="Totals"),"",'Oman Results'!D108) -> GEOTEXTILES FOR UNDERDRAIN | E108: =IF('Oman Results'!E108="","",'Oman Results'!E108) -> 22550 | F108: =IF('Oman Results'!F108="","",'Oman Results'!F108) -> S.Y. | G108: =IF(B108="","",IF(VLOOKUP(B108,'Oman Results'!C108:AI1101,31)="x",'Oman Results'!AK108,'Oman Results'!G108)) -> 1.14 | H108: 25707 | I108: =IF(B108="","",IF(VLOOKUP(B108,'Oman Results'!C108:AI1101,31)="x","Yes","")) ->  | J108: =IF(B108="","",IF(VLOOKUP(B108,'Oman Results'!C108:AI1101,31)="x",'Oman Results'!G108,"")) ->  | K108: =IF(B108="","",IF(VLOOKUP(B108,'Oman Results'!C108:AI1101,31)="x",'Oman Results'!AJ108,"")) ->  | L108: =IF(B108="","",IF(VLOOKUP(B108,'Oman Results'!C108:AI1101,31)="x",'Oman Results'!AK108,"")) ->  | R108: 25707
A109: 108 | B109: =IF('Oman Results'!C109="","",'Oman Results'!C109) -> 720-07302 | C109: =IF(OR('Oman Results'!D109="",'Oman Results'!D109="Totals"),"",'Oman Results'!D109) -> INLET, TYPE HA, WITH SLOTTED DRAIN | E109: =IF('Oman Results'!E109="","",'Oman Results'!E109) -> 28 | F109: =IF('Oman Results'!F109="","",'Oman Results'!F109) -> EACH | G109: =IF(B109="","",IF(VLOOKUP(B109,'Oman Results'!C109:AI1102,31)="x",'Oman Results'!AK109,'Oman Results'!G109)) -> 3150 | H109: 88200 | I109: =IF(B109="","",IF(VLOOKUP(B109,'Oman Results'!C109:AI1102,31)="x","Yes","")) ->  | J109: =IF(B109="","",IF(VLOOKUP(B109,'Oman Results'!C109:AI1102,31)="x",'Oman Results'!G109,"")) ->  | K109: =IF(B109="","",IF(VLOOKUP(B109,'Oman Results'!C109:AI1102,31)="x",'Oman Results'!AJ109,"")) ->  | L109: =IF(B109="","",IF(VLOOKUP(B109,'Oman Results'!C109:AI1102,31)="x",'Oman Results'!AK109,"")) ->  | R109: 88200
A110: 109 | B110: =IF('Oman Results'!C110="","",'Oman Results'!C110) -> 720-45030 | C110: =IF(OR('Oman Results'!D110="",'Oman Results'!D110="Totals"),"",'Oman Results'!D110) -> INLET, E7 | E110: =IF('Oman Results'!E110="","",'Oman Results'!E110) -> 2 | F110: =IF('Oman Results'!F110="","",'Oman Results'!F110) -> EACH | G110: =IF(B110="","",IF(VLOOKUP(B110,'Oman Results'!C110:AI1103,31)="x",'Oman Results'!AK110,'Oman Results'!G110)) -> 1415.55 | H110: 2831.1 | I110: =IF(B110="","",IF(VLOOKUP(B110,'Oman Results'!C110:AI1103,31)="x","Yes","")) ->  | J110: =IF(B110="","",IF(VLOOKUP(B110,'Oman Results'!C110:AI1103,31)="x",'Oman Results'!G110,"")) ->  | K110: =IF(B110="","",IF(VLOOKUP(B110,'Oman Results'!C110:AI1103,31)="x",'Oman Results'!AJ110,"")) ->  | L110: =IF(B110="","",IF(VLOOKUP(B110,'Oman Results'!C110:AI1103,31)="x",'Oman Results'!AK110,"")) ->  | R110: 2831.1
A111: 110 | B111: =IF('Oman Results'!C111="","",'Oman Results'!C111) -> 720-45065 | C111: =IF(OR('Oman Results'!D111="",'Oman Results'!D111="Totals"),"",'Oman Results'!D111) -> INLET, N12 | E111: =IF('Oman Results'!E111="","",'Oman Results'!E111) -> 1 | F111: =IF('Oman Results'!F111="","",'Oman Results'!F111) -> EACH | G111: =IF(B111="","",IF(VLOOKUP(B111,'Oman Results'!C111:AI1104,31)="x",'Oman Results'!AK111,'Oman Results'!G111)) -> 2793.57 | H111: 2793.57 | I111: =IF(B111="","",IF(VLOOKUP(B111,'Oman Results'!C111:AI1104,31)="x","Yes","")) ->  | J111: =IF(B111="","",IF(VLOOKUP(B111,'Oman Results'!C111:AI1104,31)="x",'Oman Results'!G111,"")) ->  | K111: =IF(B111="","",IF(VLOOKUP(B111,'Oman Results'!C111:AI1104,31)="x",'Oman Results'!AJ111,"")) ->  | L111: =IF(B111="","",IF(VLOOKUP(B111,'Oman Results'!C111:AI1104,31)="x",'Oman Results'!AK111,"")) ->  | R111: 2793.57
A112: 111 | B112: =IF('Oman Results'!C112="","",'Oman Results'!C112) -> 722-51842 | C112: =IF(OR('Oman Results'!D112="",'Oman Results'!D112="Totals"),"",'Oman Results'!D112) -> BRIDGE DECK OVERLAY | E112: =IF('Oman Results'!E112="","",'Oman Results'!E112) -> 1200 | F112: =IF('Oman Results'!F112="","",'Oman Results'!F112) -> S.Y. | G112: =IF(B112="","",IF(VLOOKUP(B112,'Oman Results'!C112:AI1105,31)="x",'Oman Results'!AK112,'Oman Results'!G112)) -> 68.3 | H112: 81960 | I112: =IF(B112="","",IF(VLOOKUP(B112,'Oman Results'!C112:AI1105,31)="x","Yes","")) ->  | J112: =IF(B112="","",IF(VLOOKUP(B112,'Oman Results'!C112:AI1105,31)="x",'Oman Results'!G112,"")) ->  | K112: =IF(B112="","",IF(VLOOKUP(B112,'Oman Results'!C112:AI1105,31)="x",'Oman Results'!AJ112,"")) ->  | L112: =IF(B112="","",IF(VLOOKUP(B112,'Oman Results'!C112:AI1105,31)="x",'Oman Results'!AK112,"")) ->  | R112: 81960
A113: 112 | B113: =IF('Oman Results'!C113="","",'Oman Results'!C113) -> 722-51846 | C113: =IF(OR('Oman Results'!D113="",'Oman Results'!D113="Totals"),"",'Oman Results'!D113) -> BRIDGE DECK OVERLAY, ADDITIONAL | E113: =IF('Oman Results'!E113="","",'Oman Results'!E113) -> 4 | F113: =IF('Oman Results'!F113="","",'Oman Results'!F113) -> C.Y. | G113: =IF(B113="","",IF(VLOOKUP(B113,'Oman Results'!C113:AI1106,31)="x",'Oman Results'!AK113,'Oman Results'!G113)) -> 530.42 | H113: 2121.68 | I113: =IF(B113="","",IF(VLOOKUP(B113,'Oman Results'!C113:AI1106,31)="x","Yes","")) ->  | J113: =IF(B113="","",IF(VLOOKUP(B113,'Oman Results'!C113:AI1106,31)="x",'Oman Results'!G113,"")) ->  | K113: =IF(B113="","",IF(VLOOKUP(B113,'Oman Results'!C113:AI1106,31)="x",'Oman Results'!AJ113,"")) ->  | L113: =IF(B113="","",IF(VLOOKUP(B113,'Oman Results'!C113:AI1106,31)="x",'Oman Results'!AK113,"")) ->  | R113: 2121.68
A114: 113 | B114: =IF('Oman Results'!C114="","",'Oman Results'!C114) -> 722-60824 | C114: =IF(OR('Oman Results'!D114="",'Oman Results'!D114="Totals"),"",'Oman Results'!D114) -> SURFACE MILLING | E114: =IF('Oman Results'!E114="","",'Oman Results'!E114) -> 1250 | F114: =IF('Oman Results'!F114="","",'Oman Results'!F114) -> S.Y. | G114: =IF(B114="","",IF(VLOOKUP(B114,'Oman Results'!C114:AI1107,31)="x",'Oman Results'!AK114,'Oman Results'!G114)) -> 4.44 | H114: 5550 | I114: =IF(B114="","",IF(VLOOKUP(B114,'Oman Results'!C114:AI1107,31)="x","Yes","")) ->  | J114: =IF(B114="","",IF(VLOOKUP(B114,'Oman Results'!C114:AI1107,31)="x",'Oman Results'!G114,"")) ->  | K114: =IF(B114="","",IF(VLOOKUP(B114,'Oman Results'!C114:AI1107,31)="x",'Oman Results'!AJ114,"")) ->  | L114: =IF(B114="","",IF(VLOOKUP(B114,'Oman Results'!C114:AI1107,31)="x",'Oman Results'!AK114,"")) ->  | R114: 5550
A115: 114 | B115: =IF('Oman Results'!C115="","",'Oman Results'!C115) -> 724-51925 | C115: =IF(OR('Oman Results'!D115="",'Oman Results'!D115="Totals"),"",'Oman Results'!D115) -> STRUCTURAL EXPANSION JOINT, SS | E115: =IF('Oman Results'!E115="","",'Oman Results'!E115) -> 198 | F115: =IF('Oman Results'!F115="","",'Oman Results'!F115) -> L.F. | G115: =IF(B115="","",IF(VLOOKUP(B115,'Oman Results'!C115:AI1108,31)="x",'Oman Results'!AK115,'Oman Results'!G115)) -> 160.16 | H115: 31711.68 | I115: =IF(B115="","",IF(VLOOKUP(B115,'Oman Results'!C115:AI1108,31)="x","Yes","")) ->  | J115: =IF(B115="","",IF(VLOOKUP(B115,'Oman Results'!C115:AI1108,31)="x",'Oman Results'!G115,"")) ->  | K115: =IF(B115="","",IF(VLOOKUP(B115,'Oman Results'!C115:AI1108,31)="x",'Oman Results'!AJ115,"")) ->  | L115: =IF(B115="","",IF(VLOOKUP(B115,'Oman Results'!C115:AI1108,31)="x",'Oman Results'!AK115,"")) ->  | R115: 31711.68
A116: 115 | B116: =IF('Oman Results'!C116="","",'Oman Results'!C116) -> 726-92406 | C116: =IF(OR('Oman Results'!D116="",'Oman Results'!D116="Totals"),"",'Oman Results'!D116) -> BEARING ASSEMBLY, ELASTOMERIC | E116: =IF('Oman Results'!E116="","",'Oman Results'!E116) -> 16 | F116: =IF('Oman Results'!F116="","",'Oman Results'!F116) -> EACH | G116: =IF(B116="","",IF(VLOOKUP(B116,'Oman Results'!C116:AI1109,31)="x",'Oman Results'!AK116,'Oman Results'!G116)) -> 1110 | H116: 17760 | I116: =IF(B116="","",IF(VLOOKUP(B116,'Oman Results'!C116:AI1109,31)="x","Yes","")) ->  | J116: =IF(B116="","",IF(VLOOKUP(B116,'Oman Results'!C116:AI1109,31)="x",'Oman Results'!G116,"")) ->  | K116: =IF(B116="","",IF(VLOOKUP(B116,'Oman Results'!C116:AI1109,31)="x",'Oman Results'!AJ116,"")) ->  | L116: =IF(B116="","",IF(VLOOKUP(B116,'Oman Results'!C116:AI1109,31)="x",'Oman Results'!AK116,"")) ->  | R116: 17760
A117: 116 | B117: =IF('Oman Results'!C117="","",'Oman Results'!C117) -> 731-06223 | C117: =IF(OR('Oman Results'!D117="",'Oman Results'!D117="Totals"),"",'Oman Results'!D117) -> SOIL NAILED WALL | E117: =IF('Oman Results'!E117="","",'Oman Results'!E117) -> 275 | F117: =IF('Oman Results'!F117="","",'Oman Results'!F117) -> S.Y. | G117: =IF(B117="","",IF(VLOOKUP(B117,'Oman Results'!C117:AI1110,31)="x",'Oman Results'!AK117,'Oman Results'!G117)) -> 508 | H117: 139700 | I117: =IF(B117="","",IF(VLOOKUP(B117,'Oman Results'!C117:AI1110,31)="x","Yes","")) ->  | J117: =IF(B117="","",IF(VLOOKUP(B117,'Oman Results'!C117:AI1110,31)="x",'Oman Results'!G117,"")) ->  | K117: =IF(B117="","",IF(VLOOKUP(B117,'Oman Results'!C117:AI1110,31)="x",'Oman Results'!AJ117,"")) ->  | L117: =IF(B117="","",IF(VLOOKUP(B117,'Oman Results'!C117:AI1110,31)="x",'Oman Results'!AK117,"")) ->  | R117: 139700
A118: 117 | B118: =IF('Oman Results'!C118="","",'Oman Results'!C118) -> 731-07016 | C118: =IF(OR('Oman Results'!D118="",'Oman Results'!D118="Totals"),"",'Oman Results'!D118) -> FACE PANELS, WIRE | E118: =IF('Oman Results'!E118="","",'Oman Results'!E118) -> 15000 | F118: =IF('Oman Results'!F118="","",'Oman Results'!F118) -> S.F. | G118: =IF(B118="","",IF(VLOOKUP(B118,'Oman Results'!C118:AI1111,31)="x",'Oman Results'!AK118,'Oman Results'!G118)) -> 14 | H118: 210000 | I118: =IF(B118="","",IF(VLOOKUP(B118,'Oman Results'!C118:AI1111,31)="x","Yes","")) ->  | J118: =IF(B118="","",IF(VLOOKUP(B118,'Oman Results'!C118:AI1111,31)="x",'Oman Results'!G118,"")) ->  | K118: =IF(B118="","",IF(VLOOKUP(B118,'Oman Results'!C118:AI1111,31)="x",'Oman Results'!AJ118,"")) ->  | L118: =IF(B118="","",IF(VLOOKUP(B118,'Oman Results'!C118:AI1111,31)="x",'Oman Results'!AK118,"")) ->  | R118: 210000
A119: 118 | B119: =IF('Oman Results'!C119="","",'Oman Results'!C119) -> 731-93945 | C119: =IF(OR('Oman Results'!D119="",'Oman Results'!D119="Totals"),"",'Oman Results'!D119) -> FACE PANELS, CONCRETE | E119: =IF('Oman Results'!E119="","",'Oman Results'!E119) -> 65000 | F119: =IF('Oman Results'!F119="","",'Oman Results'!F119) -> S.F. | G119: =IF(B119="","",IF(VLOOKUP(B119,'Oman Results'!C119:AI1112,31)="x",'Oman Results'!AK119,'Oman Results'!G119)) -> 12.8 | H119: 832000 | I119: =IF(B119="","",IF(VLOOKUP(B119,'Oman Results'!C119:AI1112,31)="x","Yes","")) ->  | J119: =IF(B119="","",IF(VLOOKUP(B119,'Oman Results'!C119:AI1112,31)="x",'Oman Results'!G119,"")) ->  | K119: =IF(B119="","",IF(VLOOKUP(B119,'Oman Results'!C119:AI1112,31)="x",'Oman Results'!AJ119,"")) ->  | L119: =IF(B119="","",IF(VLOOKUP(B119,'Oman Results'!C119:AI1112,31)="x",'Oman Results'!AK119,"")) ->  | R119: 832000
A120: 119 | B120: =IF('Oman Results'!C120="","",'Oman Results'!C120) -> 731-93946 | C120: =IF(OR('Oman Results'!D120="",'Oman Results'!D120="Totals"),"",'Oman Results'!D120) -> WALL ERECTION | E120: =IF('Oman Results'!E120="","",'Oman Results'!E120) -> 76000 | F120: =IF('Oman Results'!F120="","",'Oman Results'!F120) -> S.F. | G120: =IF(B120="","",IF(VLOOKUP(B120,'Oman Results'!C120:AI1113,31)="x",'Oman Results'!AK120,'Oman Results'!G120)) -> 5.17 | H120: 392920 | I120: =IF(B120="","",IF(VLOOKUP(B120,'Oman Results'!C120:AI1113,31)="x","Yes","")) ->  | J120: =IF(B120="","",IF(VLOOKUP(B120,'Oman Results'!C120:AI1113,31)="x",'Oman Results'!G120,"")) ->  | K120: =IF(B120="","",IF(VLOOKUP(B120,'Oman Results'!C120:AI1113,31)="x",'Oman Results'!AJ120,"")) ->  | L120: =IF(B120="","",IF(VLOOKUP(B120,'Oman Results'!C120:AI1113,31)="x",'Oman Results'!AK120,"")) ->  | R120: 392920
A121: 120 | B121: =IF('Oman Results'!C121="","",'Oman Results'!C121) -> 731-93947 | C121: =IF(OR('Oman Results'!D121="",'Oman Results'!D121="Totals"),"",'Oman Results'!D121) -> LEVELING PAD, CONCRETE | E121: =IF('Oman Results'!E121="","",'Oman Results'!E121) -> 2200 | F121: =IF('Oman Results'!F121="","",'Oman Results'!F121) -> L.F. | G121: =IF(B121="","",IF(VLOOKUP(B121,'Oman Results'!C121:AI1114,31)="x",'Oman Results'!AK121,'Oman Results'!G121)) -> 31.36 | H121: 68992 | I121: =IF(B121="","",IF(VLOOKUP(B121,'Oman Results'!C121:AI1114,31)="x","Yes","")) ->  | J121: =IF(B121="","",IF(VLOOKUP(B121,'Oman Results'!C121:AI1114,31)="x",'Oman Results'!G121,"")) ->  | K121: =IF(B121="","",IF(VLOOKUP(B121,'Oman Results'!C121:AI1114,31)="x",'Oman Results'!AJ121,"")) ->  | L121: =IF(B121="","",IF(VLOOKUP(B121,'Oman Results'!C121:AI1114,31)="x",'Oman Results'!AK121,"")) ->  | R121: 68992
A122: 121 | B122: =IF('Oman Results'!C122="","",'Oman Results'!C122) -> 801-03290 | C122: =IF(OR('Oman Results'!D122="",'Oman Results'!D122="Totals"),"",'Oman Results'!D122) -> CONSTRUCTION SIGN, C | E122: =IF('Oman Results'!E122="","",'Oman Results'!E122) -> 2 | F122: =IF('Oman Results'!F122="","",'Oman Results'!F122) -> EACH | G122: =IF(B122="","",IF(VLOOKUP(B122,'Oman Results'!C122:AI1115,31)="x",'Oman Results'!AK122,'Oman Results'!G122)) -> 190.73 | H122: 381.46 | I122: =IF(B122="","",IF(VLOOKUP(B122,'Oman Results'!C122:AI1115,31)="x","Yes","")) ->  | J122: =IF(B122="","",IF(VLOOKUP(B122,'Oman Results'!C122:AI1115,31)="x",'Oman Results'!G122,"")) ->  | K122: =IF(B122="","",IF(VLOOKUP(B122,'Oman Results'!C122:AI1115,31)="x",'Oman Results'!AJ122,"")) ->  | L122: =IF(B122="","",IF(VLOOKUP(B122,'Oman Results'!C122:AI1115,31)="x",'Oman Results'!AK122,"")) ->  | R122: 381.46
A123: 122 | B123: =IF('Oman Results'!C123="","",'Oman Results'!C123) -> 801-06207 | C123: =IF(OR('Oman Results'!D123="",'Oman Results'!D123="Totals"),"",'Oman Results'!D123) -> TEMPORARY PAVEMENT MARKING, REMOVABLE, 4 IN | E123: =IF('Oman Results'!E123="","",'Oman Results'!E123) -> 27000 | F123: =IF('Oman Results'!F123="","",'Oman Results'!F123) -> L.F. | G123: =IF(B123="","",IF(VLOOKUP(B123,'Oman Results'!C123:AI1116,31)="x",'Oman Results'!AK123,'Oman Results'!G123)) -> 0.85 | H123: 22950 | I123: =IF(B123="","",IF(VLOOKUP(B123,'Oman Results'!C123:AI1116,31)="x","Yes","")) ->  | J123: =IF(B123="","",IF(VLOOKUP(B123,'Oman Results'!C123:AI1116,31)="x",'Oman Results'!G123,"")) ->  | K123: =IF(B123="","",IF(VLOOKUP(B123,'Oman Results'!C123:AI1116,31)="x",'Oman Results'!AJ123,"")) ->  | L123: =IF(B123="","",IF(VLOOKUP(B123,'Oman Results'!C123:AI1116,31)="x",'Oman Results'!AK123,"")) ->  | R123: 22950
A124: 123 | B124: =IF('Oman Results'!C124="","",'Oman Results'!C124) -> 801-06625 | C124: =IF(OR('Oman Results'!D124="",'Oman Results'!D124="Totals"),"",'Oman Results'!D124) -> DETOUR ROUTE MARKER ASSEMBLY | E124: =IF('Oman Results'!E124="","",'Oman Results'!E124) -> 15 | F124: =IF('Oman Results'!F124="","",'Oman Results'!F124) -> EACH | G124: =IF(B124="","",IF(VLOOKUP(B124,'Oman Results'!C124:AI1117,31)="x",'Oman Results'!AK124,'Oman Results'!G124)) -> 97.97 | H124: 1469.55 | I124: =IF(B124="","",IF(VLOOKUP(B124,'Oman Results'!C124:AI1117,31)="x","Yes","")) ->  | J124: =IF(B124="","",IF(VLOOKUP(B124,'Oman Results'!C124:AI1117,31)="x",'Oman Results'!G124,"")) ->  | K124: =IF(B124="","",IF(VLOOKUP(B124,'Oman Results'!C124:AI1117,31)="x",'Oman Results'!AJ124,"")) ->  | L124: =IF(B124="","",IF(VLOOKUP(B124,'Oman Results'!C124:AI1117,31)="x",'Oman Results'!AK124,"")) ->  | R124: 1469.55
A125: 124 | B125: =IF('Oman Results'!C125="","",'Oman Results'!C125) -> 801-06640 | C125: =IF(OR('Oman Results'!D125="",'Oman Results'!D125="Totals"),"",'Oman Results'!D125) -> CONSTRUCTION SIGN, A | E125: =IF('Oman Results'!E125="","",'Oman Results'!E125) -> 37 | F125: =IF('Oman Results'!F125="","",'Oman Results'!F125) -> EACH | G125: =IF(B125="","",IF(VLOOKUP(B125,'Oman Results'!C125:AI1118,31)="x",'Oman Results'!AK125,'Oman Results'!G125)) -> 142.49 | H125: 5272.13 | I125: =IF(B125="","",IF(VLOOKUP(B125,'Oman Results'!C125:AI1118,31)="x","Yes","")) ->  | J125: =IF(B125="","",IF(VLOOKUP(B125,'Oman Results'!C125:AI1118,31)="x",'Oman Results'!G125,"")) ->  | K125: =IF(B125="","",IF(VLOOKUP(B125,'Oman Results'!C125:AI1118,31)="x",'Oman Results'!AJ125,"")) ->  | L125: =IF(B125="","",IF(VLOOKUP(B125,'Oman Results'!C125:AI1118,31)="x",'Oman Results'!AK125,"")) ->  | R125: 5272.13
A126: 125 | B126: =IF('Oman Results'!C126="","",'Oman Results'!C126) -> 801-06645 | C126: =IF(OR('Oman Results'!D126="",'Oman Results'!D126="Totals"),"",'Oman Results'!D126) -> CONSTRUCTION SIGN, B | E126: =IF('Oman Results'!E126="","",'Oman Results'!E126) -> 11 | F126: =IF('Oman Results'!F126="","",'Oman Results'!F126) -> EACH | G126: =IF(B126="","",IF(VLOOKUP(B126,'Oman Results'!C126:AI1119,31)="x",'Oman Results'!AK126,'Oman Results'!G126)) -> 66.6 | H126: 732.6 | I126: =IF(B126="","",IF(VLOOKUP(B126,'Oman Results'!C126:AI1119,31)="x","Yes","")) ->  | J126: =IF(B126="","",IF(VLOOKUP(B126,'Oman Results'!C126:AI1119,31)="x",'Oman Results'!G126,"")) ->  | K126: =IF(B126="","",IF(VLOOKUP(B126,'Oman Results'!C126:AI1119,31)="x",'Oman Results'!AJ126,"")) ->  | L126: =IF(B126="","",IF(VLOOKUP(B126,'Oman Results'!C126:AI1119,31)="x",'Oman Results'!AK126,"")) ->  | R126: 732.6
A127: 126 | B127: =IF('Oman Results'!C127="","",'Oman Results'!C127) -> 801-06710 | C127: =IF(OR('Oman Results'!D127="",'Oman Results'!D127="Totals"),"",'Oman Results'!D127) -> FLASHING ARROW SIGN | E127: =IF('Oman Results'!E127="","",'Oman Results'!E127) -> 365 | F127: =IF('Oman Results'!F127="","",'Oman Results'!F127) -> DAY | G127: =IF(B127="","",IF(VLOOKUP(B127,'Oman Results'!C127:AI1120,31)="x",'Oman Results'!AK127,'Oman Results'!G127)) -> 9.76 | H127: 3562.4 | I127: =IF(B127="","",IF(VLOOKUP(B127,'Oman Results'!C127:AI1120,31)="x","Yes","")) ->  | J127: =IF(B127="","",IF(VLOOKUP(B127,'Oman Results'!C127:AI1120,31)="x",'Oman Results'!G127,"")) ->  | K127: =IF(B127="","",IF(VLOOKUP(B127,'Oman Results'!C127:AI1120,31)="x",'Oman Results'!AJ127,"")) ->  | L127: =IF(B127="","",IF(VLOOKUP(B127,'Oman Results'!C127:AI1120,31)="x",'Oman Results'!AK127,"")) ->  | R127: 3562.4
A128: 127 | B128: =IF('Oman Results'!C128="","",'Oman Results'!C128) -> 801-06775 | C128: =IF(OR('Oman Results'!D128="",'Oman Results'!D128="Totals"),"",'Oman Results'!D128) -> MAINTAINING TRAFFIC | E128: =IF('Oman Results'!E128="","",'Oman Results'!E128) -> 1 | F128: =IF('Oman Results'!F128="","",'Oman Results'!F128) -> L.S. | G128: =IF(B128="","",IF(VLOOKUP(B128,'Oman Results'!C128:AI1121,31)="x",'Oman Results'!AK128,'Oman Results'!G128)) -> 47332.89 | H128: 47332.89 | I128: =IF(B128="","",IF(VLOOKUP(B128,'Oman Results'!C128:AI1121,31)="x","Yes","")) ->  | J128: =IF(B128="","",IF(VLOOKUP(B128,'Oman Results'!C128:AI1121,31)="x",'Oman Results'!G128,"")) ->  | K128: =IF(B128="","",IF(VLOOKUP(B128,'Oman Results'!C128:AI1121,31)="x",'Oman Results'!AJ128,"")) ->  | L128: =IF(B128="","",IF(VLOOKUP(B128,'Oman Results'!C128:AI1121,31)="x",'Oman Results'!AK128,"")) ->  | O128: 1 | P128: 47332.89
A129: 128 | B129: =IF('Oman Results'!C129="","",'Oman Results'!C129) -> 801-07024 | C129: =IF(OR('Oman Results'!D129="",'Oman Results'!D129="Totals"),"",'Oman Results'!D129) -> ENERGY ABSORBING TERMINAL, CZ, TL-3 | E129: =IF('Oman Results'!E129="","",'Oman Results'!E129) -> 4 | F129: =IF('Oman Results'!F129="","",'Oman Results'!F129) -> EACH | G129: =IF(B129="","",IF(VLOOKUP(B129,'Oman Results'!C129:AI1122,31)="x",'Oman Results'!AK129,'Oman Results'!G129)) -> 6587.49 | H129: 26349.96 | I129: =IF(B129="","",IF(VLOOKUP(B129,'Oman Results'!C129:AI1122,31)="x","Yes","")) ->  | J129: =IF(B129="","",IF(VLOOKUP(B129,'Oman Results'!C129:AI1122,31)="x",'Oman Results'!G129,"")) ->  | K129: =IF(B129="","",IF(VLOOKUP(B129,'Oman Results'!C129:AI1122,31)="x",'Oman Results'!AJ129,"")) ->  | L129: =IF(B129="","",IF(VLOOKUP(B129,'Oman Results'!C129:AI1122,31)="x",'Oman Results'!AK129,"")) ->  | R129: 26349.96
A130: 129 | B130: =IF('Oman Results'!C130="","",'Oman Results'!C130) -> 801-07119 | C130: =IF(OR('Oman Results'!D130="",'Oman Results'!D130="Totals"),"",'Oman Results'!D130) -> BARRICADE, III-B | E130: =IF('Oman Results'!E130="","",'Oman Results'!E130) -> 85 | F130: =IF('Oman Results'!F130="","",'Oman Results'!F130) -> L.F. | G130: =IF(B130="","",IF(VLOOKUP(B130,'Oman Results'!C130:AI1123,31)="x",'Oman Results'!AK130,'Oman Results'!G130)) -> 14.32 | H130: 1217.2 | I130: =IF(B130="","",IF(VLOOKUP(B130,'Oman Results'!C130:AI1123,31)="x","Yes","")) ->  | J130: =IF(B130="","",IF(VLOOKUP(B130,'Oman Results'!C130:AI1123,31)="x",'Oman Results'!G130,"")) ->  | K130: =IF(B130="","",IF(VLOOKUP(B130,'Oman Results'!C130:AI1123,31)="x",'Oman Results'!AJ130,"")) ->  | L130: =IF(B130="","",IF(VLOOKUP(B130,'Oman Results'!C130:AI1123,31)="x",'Oman Results'!AK130,"")) ->  | P130: =IF(O130=1,G130,"") ->  | R130: =IF(O130=1,"",H130) -> 1217.2
A131: 130 | B131: =IF('Oman Results'!C131="","",'Oman Results'!C131) -> 801-08401 | C131: =IF(OR('Oman Results'!D131="",'Oman Results'!D131="Totals"),"",'Oman Results'!D131) -> TEMPORARY TRAFFIC BARRIER, TYPE 2 | D131: =IF(ISNUMBER(SEARCH("{",C131)),"Yes", "") ->  | E131: =IF('Oman Results'!E131="","",'Oman Results'!E131) -> 9500 | F131: =IF('Oman Results'!F131="","",'Oman Results'!F131) -> L.F. | G131: =IF(B131="","",IF(VLOOKUP(B131,'Oman Results'!C131:AI1124,31)="x",'Oman Results'!AK131,'Oman Results'!G131)) -> 19.45 | H131: =IF(E131="","",E131*G131) -> 184775 | I131: =IF(B131="","",IF(VLOOKUP(B131,'Oman Results'!C131:AI1124,31)="x","Yes","")) ->  | J131: =IF(B131="","",IF(VLOOKUP(B131,'Oman Results'!C131:AI1124,31)="x",'Oman Results'!G131,"")) ->  | K131: =IF(B131="","",IF(VLOOKUP(B131,'Oman Results'!C131:AI1124,31)="x",'Oman Results'!AJ131,"")) ->  | L131: =IF(B131="","",IF(VLOOKUP(B131,'Oman Results'!C131:AI1124,31)="x",'Oman Results'!AK131,"")) ->  | O131: =IF(OR(LEFT(F131,3)="L.S",LEFT(F131,2)="LS"),1,"") ->  | Q131: =IF(I131="Yes",G131,"") ->  | R131: 184775
A132: =IF(B132="","",1+A131) -> 131 | B132: =IF('Oman Results'!C132="","",'Oman Results'!C132) -> 802-02158 | C132: =IF(OR('Oman Results'!D132="",'Oman Results'!D132="Totals"),"",'Oman Results'!D132) -> SIGN, PANEL, REMOVE AND REINSTALL | E132: =IF('Oman Results'!E132="","",'Oman Results'!E132) -> 1 | F132: =IF('Oman Results'!F132="","",'Oman Results'!F132) -> EACH | G132: =IF(B132="","",IF(VLOOKUP(B132,'Oman Results'!C132:AI1125,31)="x",'Oman Results'!AK132,'Oman Results'!G132)) -> 412.5 | H132: 412.5 | I132: =IF(B132="","",IF(VLOOKUP(B132,'Oman Results'!C132:AI1125,31)="x","Yes","")) ->  | J132: =IF(B132="","",IF(VLOOKUP(B132,'Oman Results'!C132:AI1125,31)="x",'Oman Results'!G132,"")) ->  | K132: =IF(B132="","",IF(VLOOKUP(B132,'Oman Results'!C132:AI1125,31)="x",'Oman Results'!AJ132,"")) ->  | L132: =IF(B132="","",IF(VLOOKUP(B132,'Oman Results'!C132:AI1125,31)="x",'Oman Results'!AK132,"")) ->  | R132: 412.5
A133: 132 | B133: =IF('Oman Results'!C133="","",'Oman Results'!C133) -> 802-03783 | C133: =IF(OR('Oman Results'!D133="",'Oman Results'!D133="Totals"),"",'Oman Results'!D133) -> SIGN, PANEL, REMOVE | E133: =IF('Oman Results'!E133="","",'Oman Results'!E133) -> 13 | F133: =IF('Oman Results'!F133="","",'Oman Results'!F133) -> EACH | G133: =IF(B133="","",IF(VLOOKUP(B133,'Oman Results'!C133:AI1126,31)="x",'Oman Results'!AK133,'Oman Results'!G133)) -> 135 | H133: 1755 | I133: =IF(B133="","",IF(VLOOKUP(B133,'Oman Results'!C133:AI1126,31)="x","Yes","")) ->  | J133: =IF(B133="","",IF(VLOOKUP(B133,'Oman Results'!C133:AI1126,31)="x",'Oman Results'!G133,"")) ->  | K133: =IF(B133="","",IF(VLOOKUP(B133,'Oman Results'!C133:AI1126,31)="x",'Oman Results'!AJ133,"")) ->  | L133: =IF(B133="","",IF(VLOOKUP(B133,'Oman Results'!C133:AI1126,31)="x",'Oman Results'!AK133,"")) ->  | R133: 1755
A134: 133 | B134: =IF('Oman Results'!C134="","",'Oman Results'!C134) -> 802-05701 | C134: =IF(OR('Oman Results'!D134="",'Oman Results'!D134="Totals"),"",'Oman Results'!D134) -> SIGN POST, SQUARE, TYPE 1, REINFORCED ANCHOR BASE | E134: =IF('Oman Results'!E134="","",'Oman Results'!E134) -> 45 | F134: =IF('Oman Results'!F134="","",'Oman Results'!F134) -> L.F. | G134: =IF(B134="","",IF(VLOOKUP(B134,'Oman Results'!C134:AI1127,31)="x",'Oman Results'!AK134,'Oman Results'!G134)) -> 11.08 | H134: 498.6 | I134: =IF(B134="","",IF(VLOOKUP(B134,'Oman Results'!C134:AI1127,31)="x","Yes","")) ->  | J134: =IF(B134="","",IF(VLOOKUP(B134,'Oman Results'!C134:AI1127,31)="x",'Oman Results'!G134,"")) ->  | K134: =IF(B134="","",IF(VLOOKUP(B134,'Oman Results'!C134:AI1127,31)="x",'Oman Results'!AJ134,"")) ->  | L134: =IF(B134="","",IF(VLOOKUP(B134,'Oman Results'!C134:AI1127,31)="x",'Oman Results'!AK134,"")) ->  | R134: 498.6
A135: 134 | B135: =IF('Oman Results'!C135="","",'Oman Results'!C135) -> 802-05702 | C135: =IF(OR('Oman Results'!D135="",'Oman Results'!D135="Totals"),"",'Oman Results'!D135) -> SIGN POST, SQUARE, TYPE 2, REINFORCED ANCHOR BASE | E135: =IF('Oman Results'!E135="","",'Oman Results'!E135) -> 350 | F135: =IF('Oman Results'!F135="","",'Oman Results'!F135) -> L.F. | G135: =IF(B135="","",IF(VLOOKUP(B135,'Oman Results'!C135:AI1128,31)="x",'Oman Results'!AK135,'Oman Results'!G135)) -> 13.42 | H135: 4697 | I135: =IF(B135="","",IF(VLOOKUP(B135,'Oman Results'!C135:AI1128,31)="x","Yes","")) ->  | J135: =IF(B135="","",IF(VLOOKUP(B135,'Oman Results'!C135:AI1128,31)="x",'Oman Results'!G135,"")) ->  | K135: =IF(B135="","",IF(VLOOKUP(B135,'Oman Results'!C135:AI1128,31)="x",'Oman Results'!AJ135,"")) ->  | L135: =IF(B135="","",IF(VLOOKUP(B135,'Oman Results'!C135:AI1128,31)="x",'Oman Results'!AK135,"")) ->  | R135: 4697
A136: 135 | B136: =IF('Oman Results'!C136="","",'Oman Results'!C136) -> 802-05703 | C136: =IF(OR('Oman Results'!D136="",'Oman Results'!D136="Totals"),"",'Oman Results'!D136) -> SIGN POST, SQUARE, TYPE 3, REINFORCED ANCHOR BASE | E136: =IF('Oman Results'!E136="","",'Oman Results'!E136) -> 56 | F136: =IF('Oman Results'!F136="","",'Oman Results'!F136) -> L.F. | G136: =IF(B136="","",IF(VLOOKUP(B136,'Oman Results'!C136:AI1129,31)="x",'Oman Results'!AK136,'Oman Results'!G136)) -> 20 | H136: 1120 | I136: =IF(B136="","",IF(VLOOKUP(B136,'Oman Results'!C136:AI1129,31)="x","Yes","")) ->  | J136: =IF(B136="","",IF(VLOOKUP(B136,'Oman Results'!C136:AI1129,31)="x",'Oman Results'!G136,"")) ->  | K136: =IF(B136="","",IF(VLOOKUP(B136,'Oman Results'!C136:AI1129,31)="x",'Oman Results'!AJ136,"")) ->  | L136: =IF(B136="","",IF(VLOOKUP(B136,'Oman Results'!C136:AI1129,31)="x",'Oman Results'!AK136,"")) ->  | R136: 1120
A137: 136 | B137: =IF('Oman Results'!C137="","",'Oman Results'!C137) -> 802-07057 | C137: =IF(OR('Oman Results'!D137="",'Oman Results'!D137="Totals"),"",'Oman Results'!D137) -> SIGN, PANEL, WITH LEGEND | E137: =IF('Oman Results'!E137="","",'Oman Results'!E137) -> 1050 | F137: =IF('Oman Results'!F137="","",'Oman Results'!F137) -> S.F. | G137: =IF(B137="","",IF(VLOOKUP(B137,'Oman Results'!C137:AI1130,31)="x",'Oman Results'!AK137,'Oman Results'!G137)) -> 15.07 | H137: 15823.5 | I137: =IF(B137="","",IF(VLOOKUP(B137,'Oman Results'!C137:AI1130,31)="x","Yes","")) ->  | J137: =IF(B137="","",IF(VLOOKUP(B137,'Oman Results'!C137:AI1130,31)="x",'Oman Results'!G137,"")) ->  | K137: =IF(B137="","",IF(VLOOKUP(B137,'Oman Results'!C137:AI1130,31)="x",'Oman Results'!AJ137,"")) ->  | L137: =IF(B137="","",IF(VLOOKUP(B137,'Oman Results'!C137:AI1130,31)="x",'Oman Results'!AK137,"")) ->  | R137: 15823.5
A138: 137 | B138: =IF('Oman Results'!C138="","",'Oman Results'!C138) -> 802-09709 | C138: =IF(OR('Oman Results'!D138="",'Oman Results'!D138="Totals"),"",'Oman Results'!D138) -> BOX TRUSS SIGN STRUCTURE FOUNDATION 33 IN HEIGHT | E138: =IF('Oman Results'!E138="","",'Oman Results'!E138) -> 10 | F138: =IF('Oman Results'!F138="","",'Oman Results'!F138) -> EACH | G138: =IF(B138="","",IF(VLOOKUP(B138,'Oman Results'!C138:AI1131,31)="x",'Oman Results'!AK138,'Oman Results'!G138)) -> 0 | H138: 0 | I138: =IF(B138="","",IF(VLOOKUP(B138,'Oman Results'!C138:AI1131,31)="x","Yes","")) ->  | J138: =IF(B138="","",IF(VLOOKUP(B138,'Oman Results'!C138:AI1131,31)="x",'Oman Results'!G138,"")) ->  | K138: =IF(B138="","",IF(VLOOKUP(B138,'Oman Results'!C138:AI1131,31)="x",'Oman Results'!AJ138,"")) ->  | L138: =IF(B138="","",IF(VLOOKUP(B138,'Oman Results'!C138:AI1131,31)="x",'Oman Results'!AK138,"")) ->  | R138: 0
A139: 138 | B139: =IF('Oman Results'!C139="","",'Oman Results'!C139) -> 802-09715 | C139: =IF(OR('Oman Results'!D139="",'Oman Results'!D139="Totals"),"",'Oman Results'!D139) -> OVERHEAD SIGN STRUCTURE, D | E139: =IF('Oman Results'!E139="","",'Oman Results'!E139) -> 5 | F139: =IF('Oman Results'!F139="","",'Oman Results'!F139) -> EACH | G139: =IF(B139="","",IF(VLOOKUP(B139,'Oman Results'!C139:AI1132,31)="x",'Oman Results'!AK139,'Oman Results'!G139)) -> 5000 | H139: 25000 | I139: =IF(B139="","",IF(VLOOKUP(B139,'Oman Results'!C139:AI1132,31)="x","Yes","")) ->  | J139: =IF(B139="","",IF(VLOOKUP(B139,'Oman Results'!C139:AI1132,31)="x",'Oman Results'!G139,"")) ->  | K139: =IF(B139="","",IF(VLOOKUP(B139,'Oman Results'!C139:AI1132,31)="x",'Oman Results'!AJ139,"")) ->  | L139: =IF(B139="","",IF(VLOOKUP(B139,'Oman Results'!C139:AI1132,31)="x",'Oman Results'!AK139,"")) ->  | R139: 25000
A140: 139 | B140: =IF('Oman Results'!C140="","",'Oman Results'!C140) -> 802-09838 | C140: =IF(OR('Oman Results'!D140="",'Oman Results'!D140="Totals"),"",'Oman Results'!D140) -> SIGN, SHEET, WITH LEGEND 0.080" | E140: =IF('Oman Results'!E140="","",'Oman Results'!E140) -> 210 | F140: =IF('Oman Results'!F140="","",'Oman Results'!F140) -> S.F. | G140: =IF(B140="","",IF(VLOOKUP(B140,'Oman Results'!C140:AI1133,31)="x",'Oman Results'!AK140,'Oman Results'!G140)) -> 10.22 | H140: 2146.2 | I140: =IF(B140="","",IF(VLOOKUP(B140,'Oman Results'!C140:AI1133,31)="x","Yes","")) ->  | J140: =IF(B140="","",IF(VLOOKUP(B140,'Oman Results'!C140:AI1133,31)="x",'Oman Results'!G140,"")) ->  | K140: =IF(B140="","",IF(VLOOKUP(B140,'Oman Results'!C140:AI1133,31)="x",'Oman Results'!AJ140,"")) ->  | L140: =IF(B140="","",IF(VLOOKUP(B140,'Oman Results'!C140:AI1133,31)="x",'Oman Results'!AK140,"")) ->  | R140: 2146.2
A141: 140 | B141: =IF('Oman Results'!C141="","",'Oman Results'!C141) -> 802-09840 | C141: =IF(OR('Oman Results'!D141="",'Oman Results'!D141="Totals"),"",'Oman Results'!D141) -> SIGN, SHEET, WITH LEGEND 0.100 IN THICKNESS | E141: =IF('Oman Results'!E141="","",'Oman Results'!E141) -> 44 | F141: =IF('Oman Results'!F141="","",'Oman Results'!F141) -> S.F. | G141: =IF(B141="","",IF(VLOOKUP(B141,'Oman Results'!C141:AI1134,31)="x",'Oman Results'!AK141,'Oman Results'!G141)) -> 10.18 | H141: 447.92 | I141: =IF(B141="","",IF(VLOOKUP(B141,'Oman Results'!C141:AI1134,31)="x","Yes","")) ->  | J141: =IF(B141="","",IF(VLOOKUP(B141,'Oman Results'!C141:AI1134,31)="x",'Oman Results'!G141,"")) ->  | K141: =IF(B141="","",IF(VLOOKUP(B141,'Oman Results'!C141:AI1134,31)="x",'Oman Results'!AJ141,"")) ->  | L141: =IF(B141="","",IF(VLOOKUP(B141,'Oman Results'!C141:AI1134,31)="x",'Oman Results'!AK141,"")) ->  | R141: 447.92
A142: 141 | B142: =IF('Oman Results'!C142="","",'Oman Results'!C142) -> 804-06725 | C142: =IF(OR('Oman Results'!D142="",'Oman Results'!D142="Totals"),"",'Oman Results'!D142) -> DELINEATOR WITH POST, D1 | E142: =IF('Oman Results'!E142="","",'Oman Results'!E142) -> 130 | F142: =IF('Oman Results'!F142="","",'Oman Results'!F142) -> EACH | G142: =IF(B142="","",IF(VLOOKUP(B142,'Oman Results'!C142:AI1135,31)="x",'Oman Results'!AK142,'Oman Results'!G142)) -> 27 | H142: 3510 | I142: =IF(B142="","",IF(VLOOKUP(B142,'Oman Results'!C142:AI1135,31)="x","Yes","")) ->  | J142: =IF(B142="","",IF(VLOOKUP(B142,'Oman Results'!C142:AI1135,31)="x",'Oman Results'!G142,"")) ->  | K142: =IF(B142="","",IF(VLOOKUP(B142,'Oman Results'!C142:AI1135,31)="x",'Oman Results'!AJ142,"")) ->  | L142: =IF(B142="","",IF(VLOOKUP(B142,'Oman Results'!C142:AI1135,31)="x",'Oman Results'!AK142,"")) ->  | R142: 3510
A143: 142 | B143: =IF('Oman Results'!C143="","",'Oman Results'!C143) -> 804-06771 | C143: =IF(OR('Oman Results'!D143="",'Oman Results'!D143="Totals"),"",'Oman Results'!D143) -> DELINEATOR POST, FLEXIBLE | E143: =IF('Oman Results'!E143="","",'Oman Results'!E143) -> 75 | F143: =IF('Oman Results'!F143="","",'Oman Results'!F143) -> EACH | G143: =IF(B143="","",IF(VLOOKUP(B143,'Oman Results'!C143:AI1136,31)="x",'Oman Results'!AK143,'Oman Results'!G143)) -> 43.18 | H143: 3238.5 | I143: =IF(B143="","",IF(VLOOKUP(B143,'Oman Results'!C143:AI1136,31)="x","Yes","")) ->  | J143: =IF(B143="","",IF(VLOOKUP(B143,'Oman Results'!C143:AI1136,31)="x",'Oman Results'!G143,"")) ->  | K143: =IF(B143="","",IF(VLOOKUP(B143,'Oman Results'!C143:AI1136,31)="x",'Oman Results'!AJ143,"")) ->  | L143: =IF(B143="","",IF(VLOOKUP(B143,'Oman Results'!C143:AI1136,31)="x",'Oman Results'!AK143,"")) ->  | R143: 3238.5
A144: 143 | B144: =IF('Oman Results'!C144="","",'Oman Results'!C144) -> 805-02328 | C144: =IF(OR('Oman Results'!D144="",'Oman Results'!D144="Totals"),"",'Oman Results'!D144) -> SIGNAL CABLE, 1C/14 GA | E144: =IF('Oman Results'!E144="","",'Oman Results'!E144) -> 800 | F144: =IF('Oman Results'!F144="","",'Oman Results'!F144) -> L.F. | G144: =IF(B144="","",IF(VLOOKUP(B144,'Oman Results'!C144:AI1137,31)="x",'Oman Results'!AK144,'Oman Results'!G144)) -> 0.32 | H144: 256 | I144: =IF(B144="","",IF(VLOOKUP(B144,'Oman Results'!C144:AI1137,31)="x","Yes","")) ->  | J144: =IF(B144="","",IF(VLOOKUP(B144,'Oman Results'!C144:AI1137,31)="x",'Oman Results'!G144,"")) ->  | K144: =IF(B144="","",IF(VLOOKUP(B144,'Oman Results'!C144:AI1137,31)="x",'Oman Results'!AJ144,"")) ->  | L144: =IF(B144="","",IF(VLOOKUP(B144,'Oman Results'!C144:AI1137,31)="x",'Oman Results'!AK144,"")) ->  | R144: 256
A145: 144 | B145: =IF('Oman Results'!C145="","",'Oman Results'!C145) -> 805-09042 | C145: =IF(OR('Oman Results'!D145="",'Oman Results'!D145="Totals"),"",'Oman Results'!D145) -> Item Not Found in the Current Pay Item | E145: =IF('Oman Results'!E145="","",'Oman Results'!E145) -> 230 | F145: =IF('Oman Results'!F145="","",'Oman Results'!F145) -> L.F. | G145: =IF(B145="","",IF(VLOOKUP(B145,'Oman Results'!C145:AI1138,31)="x",'Oman Results'!AK145,'Oman Results'!G145)) -> 0.7 | H145: 161 | I145: =IF(B145="","",IF(VLOOKUP(B145,'Oman Results'!C145:AI1138,31)="x","Yes","")) ->  | J145: =IF(B145="","",IF(VLOOKUP(B145,'Oman Results'!C145:AI1138,31)="x",'Oman Results'!G145,"")) ->  | K145: =IF(B145="","",IF(VLOOKUP(B145,'Oman Results'!C145:AI1138,31)="x",'Oman Results'!AJ145,"")) ->  | L145: =IF(B145="","",IF(VLOOKUP(B145,'Oman Results'!C145:AI1138,31)="x",'Oman Results'!AK145,"")) ->  | R145: 161
A146: 145 | B146: =IF('Oman Results'!C146="","",'Oman Results'!C146) -> 805-78205 | C146: =IF(OR('Oman Results'!D146="",'Oman Results'!D146="Totals"),"",'Oman Results'!D146) -> TRAFFIC SIGNAL HEAD, 3 FACE, 12 IN RED, AMBER, GREEN | E146: =IF('Oman Results'!E146="","",'Oman Results'!E146) -> 2 | F146: =IF('Oman Results'!F146="","",'Oman Results'!F146) -> EACH | G146: =IF(B146="","",IF(VLOOKUP(B146,'Oman Results'!C146:AI1139,31)="x",'Oman Results'!AK146,'Oman Results'!G146)) -> 527.76 | H146: 1055.52 | I146: =IF(B146="","",IF(VLOOKUP(B146,'Oman Results'!C146:AI1139,31)="x","Yes","")) ->  | J146: =IF(B146="","",IF(VLOOKUP(B146,'Oman Results'!C146:AI1139,31)="x",'Oman Results'!G146,"")) ->  | K146: =IF(B146="","",IF(VLOOKUP(B146,'Oman Results'!C146:AI1139,31)="x",'Oman Results'!AJ146,"")) ->  | L146: =IF(B146="","",IF(VLOOKUP(B146,'Oman Results'!C146:AI1139,31)="x",'Oman Results'!AK146,"")) ->  | R146: 1055.52
A147: 146 | B147: =IF('Oman Results'!C147="","",'Oman Results'!C147) -> 805-78485 | C147: =IF(OR('Oman Results'!D147="",'Oman Results'!D147="Totals"),"",'Oman Results'!D147) -> SIGNAL CABLE, 5C/14GA | E147: =IF('Oman Results'!E147="","",'Oman Results'!E147) -> 175 | F147: =IF('Oman Results'!F147="","",'Oman Results'!F147) -> L.F. | G147: =IF(B147="","",IF(VLOOKUP(B147,'Oman Results'!C147:AI1140,31)="x",'Oman Results'!AK147,'Oman Results'!G147)) -> 1.68 | H147: 294 | I147: =IF(B147="","",IF(VLOOKUP(B147,'Oman Results'!C147:AI1140,31)="x","Yes","")) ->  | J147: =IF(B147="","",IF(VLOOKUP(B147,'Oman Results'!C147:AI1140,31)="x",'Oman Results'!G147,"")) ->  | K147: =IF(B147="","",IF(VLOOKUP(B147,'Oman Results'!C147:AI1140,31)="x",'Oman Results'!AJ147,"")) ->  | L147: =IF(B147="","",IF(VLOOKUP(B147,'Oman Results'!C147:AI1140,31)="x",'Oman Results'!AK147,"")) ->  | R147: 294
A148: 147 | B148: =IF('Oman Results'!C148="","",'Oman Results'!C148) -> 805-78490 | C148: =IF(OR('Oman Results'!D148="",'Oman Results'!D148="Totals"),"",'Oman Results'!D148) -> SIGNAL CABLE, 7C/14GA | E148: =IF('Oman Results'!E148="","",'Oman Results'!E148) -> 210 | F148: =IF('Oman Results'!F148="","",'Oman Results'!F148) -> L.F. | G148: =IF(B148="","",IF(VLOOKUP(B148,'Oman Results'!C148:AI1141,31)="x",'Oman Results'!AK148,'Oman Results'!G148)) -> 1.78 | H148: 373.8 | I148: =IF(B148="","",IF(VLOOKUP(B148,'Oman Results'!C148:AI1141,31)="x","Yes","")) ->  | J148: =IF(B148="","",IF(VLOOKUP(B148,'Oman Results'!C148:AI1141,31)="x",'Oman Results'!G148,"")) ->  | K148: =IF(B148="","",IF(VLOOKUP(B148,'Oman Results'!C148:AI1141,31)="x",'Oman Results'!AJ148,"")) ->  | L148: =IF(B148="","",IF(VLOOKUP(B148,'Oman Results'!C148:AI1141,31)="x",'Oman Results'!AK148,"")) ->  | R148: 373.8
A149: 148 | B149: =IF('Oman Results'!C149="","",'Oman Results'!C149) -> 805-78510 | C149: =IF(OR('Oman Results'!D149="",'Oman Results'!D149="Totals"),"",'Oman Results'!D149) -> SIGNAL CABLE, 2C/16GA., SHIELDED | E149: =IF('Oman Results'!E149="","",'Oman Results'!E149) -> 645 | F149: =IF('Oman Results'!F149="","",'Oman Results'!F149) -> L.F. | G149: =IF(B149="","",IF(VLOOKUP(B149,'Oman Results'!C149:AI1142,31)="x",'Oman Results'!AK149,'Oman Results'!G149)) -> 0.97 | H149: 625.65 | I149: =IF(B149="","",IF(VLOOKUP(B149,'Oman Results'!C149:AI1142,31)="x","Yes","")) ->  | J149: =IF(B149="","",IF(VLOOKUP(B149,'Oman Results'!C149:AI1142,31)="x",'Oman Results'!G149,"")) ->  | K149: =IF(B149="","",IF(VLOOKUP(B149,'Oman Results'!C149:AI1142,31)="x",'Oman Results'!AJ149,"")) ->  | L149: =IF(B149="","",IF(VLOOKUP(B149,'Oman Results'!C149:AI1142,31)="x",'Oman Results'!AK149,"")) ->  | R149: 625.65
A150: 149 | B150: =IF('Oman Results'!C150="","",'Oman Results'!C150) -> 805-78785 | C150: =IF(OR('Oman Results'!D150="",'Oman Results'!D150="Totals"),"",'Oman Results'!D150) -> SIGNAL DETECTOR HOUSING | E150: =IF('Oman Results'!E150="","",'Oman Results'!E150) -> 2 | F150: =IF('Oman Results'!F150="","",'Oman Results'!F150) -> EACH | G150: =IF(B150="","",IF(VLOOKUP(B150,'Oman Results'!C150:AI1143,31)="x",'Oman Results'!AK150,'Oman Results'!G150)) -> 655.21 | H150: 1310.42 | I150: =IF(B150="","",IF(VLOOKUP(B150,'Oman Results'!C150:AI1143,31)="x","Yes","")) ->  | J150: =IF(B150="","",IF(VLOOKUP(B150,'Oman Results'!C150:AI1143,31)="x",'Oman Results'!G150,"")) ->  | K150: =IF(B150="","",IF(VLOOKUP(B150,'Oman Results'!C150:AI1143,31)="x",'Oman Results'!AJ150,"")) ->  | L150: =IF(B150="","",IF(VLOOKUP(B150,'Oman Results'!C150:AI1143,31)="x",'Oman Results'!AK150,"")) ->  | R150: 1310.42
A151: 150 | B151: =IF('Oman Results'!C151="","",'Oman Results'!C151) -> 805-78795 | C151: =IF(OR('Oman Results'!D151="",'Oman Results'!D151="Totals"),"",'Oman Results'!D151) -> SAW CUT FOR ROADWAY LOOP AND SEALANT | E151: =IF('Oman Results'!E151="","",'Oman Results'!E151) -> 232 | F151: =IF('Oman Results'!F151="","",'Oman Results'!F151) -> L.F. | G151: =IF(B151="","",IF(VLOOKUP(B151,'Oman Results'!C151:AI1144,31)="x",'Oman Results'!AK151,'Oman Results'!G151)) -> 7.65 | H151: 1774.8 | I151: =IF(B151="","",IF(VLOOKUP(B151,'Oman Results'!C151:AI1144,31)="x","Yes","")) ->  | J151: =IF(B151="","",IF(VLOOKUP(B151,'Oman Results'!C151:AI1144,31)="x",'Oman Results'!G151,"")) ->  | K151: =IF(B151="","",IF(VLOOKUP(B151,'Oman Results'!C151:AI1144,31)="x",'Oman Results'!AJ151,"")) ->  | L151: =IF(B151="","",IF(VLOOKUP(B151,'Oman Results'!C151:AI1144,31)="x",'Oman Results'!AK151,"")) ->  | R151: 1774.8
A152: 151 | B152: =IF('Oman Results'!C152="","",'Oman Results'!C152) -> 805-92504 | C152: =IF(OR('Oman Results'!D152="",'Oman Results'!D152="Totals"),"",'Oman Results'!D152) -> LOOP DETECTOR DELAY AMPLIFIER, 2 CHANNEL | E152: =IF('Oman Results'!E152="","",'Oman Results'!E152) -> 2 | F152: =IF('Oman Results'!F152="","",'Oman Results'!F152) -> EACH | G152: =IF(B152="","",IF(VLOOKUP(B152,'Oman Results'!C152:AI1145,31)="x",'Oman Results'!AK152,'Oman Results'!G152)) -> 236.84 | H152: 473.68 | I152: =IF(B152="","",IF(VLOOKUP(B152,'Oman Results'!C152:AI1145,31)="x","Yes","")) ->  | J152: =IF(B152="","",IF(VLOOKUP(B152,'Oman Results'!C152:AI1145,31)="x",'Oman Results'!G152,"")) ->  | K152: =IF(B152="","",IF(VLOOKUP(B152,'Oman Results'!C152:AI1145,31)="x",'Oman Results'!AJ152,"")) ->  | L152: =IF(B152="","",IF(VLOOKUP(B152,'Oman Results'!C152:AI1145,31)="x",'Oman Results'!AK152,"")) ->  | R152: 473.68
A153: 152 | B153: =IF('Oman Results'!C153="","",'Oman Results'!C153) -> 807-01122 | C153: =IF(OR('Oman Results'!D153="",'Oman Results'!D153="Totals"),"",'Oman Results'!D153) -> LIGHT POLE, HIGH MAST, RELOCATE | E153: =IF('Oman Results'!E153="","",'Oman Results'!E153) -> 1 | F153: =IF('Oman Results'!F153="","",'Oman Results'!F153) -> EACH | G153: =IF(B153="","",IF(VLOOKUP(B153,'Oman Results'!C153:AI1146,31)="x",'Oman Results'!AK153,'Oman Results'!G153)) -> 1520 | H153: 1520 | I153: =IF(B153="","",IF(VLOOKUP(B153,'Oman Results'!C153:AI1146,31)="x","Yes","")) ->  | J153: =IF(B153="","",IF(VLOOKUP(B153,'Oman Results'!C153:AI1146,31)="x",'Oman Results'!G153,"")) ->  | K153: =IF(B153="","",IF(VLOOKUP(B153,'Oman Results'!C153:AI1146,31)="x",'Oman Results'!AJ153,"")) ->  | L153: =IF(B153="","",IF(VLOOKUP(B153,'Oman Results'!C153:AI1146,31)="x",'Oman Results'!AK153,"")) ->  | R153: 1520
A154: 153 | B154: =IF('Oman Results'!C154="","",'Oman Results'!C154) -> 807-01606 | C154: =IF(OR('Oman Results'!D154="",'Oman Results'!D154="Totals"),"",'Oman Results'!D154) -> HIGH MAST TOWER WINCH DRIVE | E154: =IF('Oman Results'!E154="","",'Oman Results'!E154) -> 1 | F154: =IF('Oman Results'!F154="","",'Oman Results'!F154) -> EACH | G154: =IF(B154="","",IF(VLOOKUP(B154,'Oman Results'!C154:AI1147,31)="x",'Oman Results'!AK154,'Oman Results'!G154)) -> 2534 | H154: 2534 | I154: =IF(B154="","",IF(VLOOKUP(B154,'Oman Results'!C154:AI1147,31)="x","Yes","")) ->  | J154: =IF(B154="","",IF(VLOOKUP(B154,'Oman Results'!C154:AI1147,31)="x",'Oman Results'!G154,"")) ->  | K154: =IF(B154="","",IF(VLOOKUP(B154,'Oman Results'!C154:AI1147,31)="x",'Oman Results'!AJ154,"")) ->  | L154: =IF(B154="","",IF(VLOOKUP(B154,'Oman Results'!C154:AI1147,31)="x",'Oman Results'!AK154,"")) ->  | R154: 2534
A155: 154 | B155: =IF('Oman Results'!C155="","",'Oman Results'!C155) -> 807-02191 | C155: =IF(OR('Oman Results'!D155="",'Oman Results'!D155="Totals"),"",'Oman Results'!D155) -> HANDHOLE, LIGHTING | E155: =IF('Oman Results'!E155="","",'Oman Results'!E155) -> 10 | F155: =IF('Oman Results'!F155="","",'Oman Results'!F155) -> EACH | G155: =IF(B155="","",IF(VLOOKUP(B155,'Oman Results'!C155:AI1148,31)="x",'Oman Results'!AK155,'Oman Results'!G155)) -> 741.36 | H155: 7413.6 | I155: =IF(B155="","",IF(VLOOKUP(B155,'Oman Results'!C155:AI1148,31)="x","Yes","")) ->  | J155: =IF(B155="","",IF(VLOOKUP(B155,'Oman Results'!C155:AI1148,31)="x",'Oman Results'!G155,"")) ->  | K155: =IF(B155="","",IF(VLOOKUP(B155,'Oman Results'!C155:AI1148,31)="x",'Oman Results'!AJ155,"")) ->  | L155: =IF(B155="","",IF(VLOOKUP(B155,'Oman Results'!C155:AI1148,31)="x",'Oman Results'!AK155,"")) ->  | R155: 7413.6
A156: 155 | B156: =IF('Oman Results'!C156="","",'Oman Results'!C156) -> 807-02193 | C156: =IF(OR('Oman Results'!D156="",'Oman Results'!D156="Totals"),"",'Oman Results'!D156) -> LIGHT STANDARD FOUNDATION, 3FT DIAMETER X 8FT | E156: =IF('Oman Results'!E156="","",'Oman Results'!E156) -> 17 | F156: =IF('Oman Results'!F156="","",'Oman Results'!F156) -> EACH | G156: =IF(B156="","",IF(VLOOKUP(B156,'Oman Results'!C156:AI1149,31)="x",'Oman Results'!AK156,'Oman Results'!G156)) -> 825.62 | H156: 14035.54 | I156: =IF(B156="","",IF(VLOOKUP(B156,'Oman Results'!C156:AI1149,31)="x","Yes","")) ->  | J156: =IF(B156="","",IF(VLOOKUP(B156,'Oman Results'!C156:AI1149,31)="x",'Oman Results'!G156,"")) ->  | K156: =IF(B156="","",IF(VLOOKUP(B156,'Oman Results'!C156:AI1149,31)="x",'Oman Results'!AJ156,"")) ->  | L156: =IF(B156="","",IF(VLOOKUP(B156,'Oman Results'!C156:AI1149,31)="x",'Oman Results'!AK156,"")) ->  | R156: 14035.54
A157: 156 | B157: =IF('Oman Results'!C157="","",'Oman Results'!C157) -> 807-02822 | C157: =IF(OR('Oman Results'!D157="",'Oman Results'!D157="Totals"),"",'Oman Results'!D157) -> LIGHT POLE, STEEL, RELOCATE | E157: =IF('Oman Results'!E157="","",'Oman Results'!E157) -> 17 | F157: =IF('Oman Results'!F157="","",'Oman Results'!F157) -> EACH | G157: =IF(B157="","",IF(VLOOKUP(B157,'Oman Results'!C157:AI1150,31)="x",'Oman Results'!AK157,'Oman Results'!G157)) -> 1550 | H157: 26350 | I157: =IF(B157="","",IF(VLOOKUP(B157,'Oman Results'!C157:AI1150,31)="x","Yes","")) ->  | J157: =IF(B157="","",IF(VLOOKUP(B157,'Oman Results'!C157:AI1150,31)="x",'Oman Results'!G157,"")) ->  | K157: =IF(B157="","",IF(VLOOKUP(B157,'Oman Results'!C157:AI1150,31)="x",'Oman Results'!AJ157,"")) ->  | L157: =IF(B157="","",IF(VLOOKUP(B157,'Oman Results'!C157:AI1150,31)="x",'Oman Results'!AK157,"")) ->  | R157: 26350
A158: 157 | B158: =IF('Oman Results'!C158="","",'Oman Results'!C158) -> 807-06592 | C158: =IF(OR('Oman Results'!D158="",'Oman Results'!D158="Totals"),"",'Oman Results'!D158) -> CONDUIT, STEEL, GALVANIZED, 2 IN | E158: =IF('Oman Results'!E158="","",'Oman Results'!E158) -> 414 | F158: =IF('Oman Results'!F158="","",'Oman Results'!F158) -> L.F. | G158: =IF(B158="","",IF(VLOOKUP(B158,'Oman Results'!C158:AI1151,31)="x",'Oman Results'!AK158,'Oman Results'!G158)) -> 13.62 | H158: 5638.68 | I158: =IF(B158="","",IF(VLOOKUP(B158,'Oman Results'!C158:AI1151,31)="x","Yes","")) ->  | J158: =IF(B158="","",IF(VLOOKUP(B158,'Oman Results'!C158:AI1151,31)="x",'Oman Results'!G158,"")) ->  | K158: =IF(B158="","",IF(VLOOKUP(B158,'Oman Results'!C158:AI1151,31)="x",'Oman Results'!AJ158,"")) ->  | L158: =IF(B158="","",IF(VLOOKUP(B158,'Oman Results'!C158:AI1151,31)="x",'Oman Results'!AK158,"")) ->  | R158: 5638.68
A159: 158 | B159: =IF('Oman Results'!C159="","",'Oman Results'!C159) -> 807-09637 | C159: =IF(OR('Oman Results'!D159="",'Oman Results'!D159="Totals"),"",'Oman Results'!D159) -> WIRE, NO 6 COPPER IN PLASTIC DUCT, IN CONDUIT 4 1/C | E159: =IF('Oman Results'!E159="","",'Oman Results'!E159) -> 330 | F159: =IF('Oman Results'!F159="","",'Oman Results'!F159) -> L.F. | G159: =IF(B159="","",IF(VLOOKUP(B159,'Oman Results'!C159:AI1152,31)="x",'Oman Results'!AK159,'Oman Results'!G159)) -> 10 | H159: 3300 | I159: =IF(B159="","",IF(VLOOKUP(B159,'Oman Results'!C159:AI1152,31)="x","Yes","")) ->  | J159: =IF(B159="","",IF(VLOOKUP(B159,'Oman Results'!C159:AI1152,31)="x",'Oman Results'!G159,"")) ->  | K159: =IF(B159="","",IF(VLOOKUP(B159,'Oman Results'!C159:AI1152,31)="x",'Oman Results'!AJ159,"")) ->  | L159: =IF(B159="","",IF(VLOOKUP(B159,'Oman Results'!C159:AI1152,31)="x",'Oman Results'!AK159,"")) ->  | R159: 3300
A160: 159 | B160: =IF('Oman Results'!C160="","",'Oman Results'!C160) -> 807-09638 | C160: =IF(OR('Oman Results'!D160="",'Oman Results'!D160="Totals"),"",'Oman Results'!D160) -> WIRE, NO 6 COPPER IN PLASTIC DUCT, IN TRENCH, 4 1/C | E160: =IF('Oman Results'!E160="","",'Oman Results'!E160) -> 6200 | F160: =IF('Oman Results'!F160="","",'Oman Results'!F160) -> L.F. | G160: =IF(B160="","",IF(VLOOKUP(B160,'Oman Results'!C160:AI1153,31)="x",'Oman Results'!AK160,'Oman Results'!G160)) -> 8 | H160: 49600 | I160: =IF(B160="","",IF(VLOOKUP(B160,'Oman Results'!C160:AI1153,31)="x","Yes","")) ->  | J160: =IF(B160="","",IF(VLOOKUP(B160,'Oman Results'!C160:AI1153,31)="x",'Oman Results'!G160,"")) ->  | K160: =IF(B160="","",IF(VLOOKUP(B160,'Oman Results'!C160:AI1153,31)="x",'Oman Results'!AJ160,"")) ->  | L160: =IF(B160="","",IF(VLOOKUP(B160,'Oman Results'!C160:AI1153,31)="x",'Oman Results'!AK160,"")) ->  | R160: 49600
A161: 160 | B161: =IF('Oman Results'!C161="","",'Oman Results'!C161) -> 807-82320 | C161: =IF(OR('Oman Results'!D161="",'Oman Results'!D161="Totals"),"",'Oman Results'!D161) -> LIGHT POLE, HIGH MAST, 115 FT E.M.H. | E161: =IF('Oman Results'!E161="","",'Oman Results'!E161) -> 1 | F161: =IF('Oman Results'!F161="","",'Oman Results'!F161) -> EACH | G161: =IF(B161="","",IF(VLOOKUP(B161,'Oman Results'!C161:AI1154,31)="x",'Oman Results'!AK161,'Oman Results'!G161)) -> 156 | H161: 156 | I161: =IF(B161="","",IF(VLOOKUP(B161,'Oman Results'!C161:AI1154,31)="x","Yes","")) ->  | J161: =IF(B161="","",IF(VLOOKUP(B161,'Oman Results'!C161:AI1154,31)="x",'Oman Results'!G161,"")) ->  | K161: =IF(B161="","",IF(VLOOKUP(B161,'Oman Results'!C161:AI1154,31)="x",'Oman Results'!AJ161,"")) ->  | L161: =IF(B161="","",IF(VLOOKUP(B161,'Oman Results'!C161:AI1154,31)="x",'Oman Results'!AK161,"")) ->  | R161: 156
A162: 161 | B162: =IF('Oman Results'!C162="","",'Oman Results'!C162) -> 807-86665 | C162: =IF(OR('Oman Results'!D162="",'Oman Results'!D162="Totals"),"",'Oman Results'!D162) -> LUMINAIRE, HIGH MAST, HIGH PRESSURE SODIUM, 1000 WATT | E162: =IF('Oman Results'!E162="","",'Oman Results'!E162) -> 6 | F162: =IF('Oman Results'!F162="","",'Oman Results'!F162) -> EACH | G162: =IF(B162="","",IF(VLOOKUP(B162,'Oman Results'!C162:AI1155,31)="x",'Oman Results'!AK162,'Oman Results'!G162)) -> 607.46 | H162: 3644.76 | I162: =IF(B162="","",IF(VLOOKUP(B162,'Oman Results'!C162:AI1155,31)="x","Yes","")) ->  | J162: =IF(B162="","",IF(VLOOKUP(B162,'Oman Results'!C162:AI1155,31)="x",'Oman Results'!G162,"")) ->  | K162: =IF(B162="","",IF(VLOOKUP(B162,'Oman Results'!C162:AI1155,31)="x",'Oman Results'!AJ162,"")) ->  | L162: =IF(B162="","",IF(VLOOKUP(B162,'Oman Results'!C162:AI1155,31)="x",'Oman Results'!AK162,"")) ->  | R162: 3644.76
A163: 162 | B163: =IF('Oman Results'!C163="","",'Oman Results'!C163) -> 807-86832 | C163: =IF(OR('Oman Results'!D163="",'Oman Results'!D163="Totals"),"",'Oman Results'!D163) -> LIGHTING FOUNDATION, CONCRETE, WITH GROUNDING, HIGH MAST TOW | E163: =IF('Oman Results'!E163="","",'Oman Results'!E163) -> 2 | F163: =IF('Oman Results'!F163="","",'Oman Results'!F163) -> EACH | G163: =IF(B163="","",IF(VLOOKUP(B163,'Oman Results'!C163:AI1156,31)="x",'Oman Results'!AK163,'Oman Results'!G163)) -> 7219 | H163: 14438 | I163: =IF(B163="","",IF(VLOOKUP(B163,'Oman Results'!C163:AI1156,31)="x","Yes","")) ->  | J163: =IF(B163="","",IF(VLOOKUP(B163,'Oman Results'!C163:AI1156,31)="x",'Oman Results'!G163,"")) ->  | K163: =IF(B163="","",IF(VLOOKUP(B163,'Oman Results'!C163:AI1156,31)="x",'Oman Results'!AJ163,"")) ->  | L163: =IF(B163="","",IF(VLOOKUP(B163,'Oman Results'!C163:AI1156,31)="x",'Oman Results'!AK163,"")) ->  | R163: 14438
A164: 163 | B164: =IF('Oman Results'!C164="","",'Oman Results'!C164) -> 807-86910 | C164: =IF(OR('Oman Results'!D164="",'Oman Results'!D164="Totals"),"",'Oman Results'!D164) -> CONNECTOR KIT, UNFUSED | E164: =IF('Oman Results'!E164="","",'Oman Results'!E164) -> 17 | F164: =IF('Oman Results'!F164="","",'Oman Results'!F164) -> EACH | G164: =IF(B164="","",IF(VLOOKUP(B164,'Oman Results'!C164:AI1157,31)="x",'Oman Results'!AK164,'Oman Results'!G164)) -> 24.75 | H164: 420.75 | I164: =IF(B164="","",IF(VLOOKUP(B164,'Oman Results'!C164:AI1157,31)="x","Yes","")) ->  | J164: =IF(B164="","",IF(VLOOKUP(B164,'Oman Results'!C164:AI1157,31)="x",'Oman Results'!G164,"")) ->  | K164: =IF(B164="","",IF(VLOOKUP(B164,'Oman Results'!C164:AI1157,31)="x",'Oman Results'!AJ164,"")) ->  | L164: =IF(B164="","",IF(VLOOKUP(B164,'Oman Results'!C164:AI1157,31)="x",'Oman Results'!AK164,"")) ->  | R164: 420.75
A165: 164 | B165: =IF('Oman Results'!C165="","",'Oman Results'!C165) -> 807-86915 | C165: =IF(OR('Oman Results'!D165="",'Oman Results'!D165="Totals"),"",'Oman Results'!D165) -> CONNECTOR KIT, FUSED | E165: =IF('Oman Results'!E165="","",'Oman Results'!E165) -> 17 | F165: =IF('Oman Results'!F165="","",'Oman Results'!F165) -> EACH | G165: =IF(B165="","",IF(VLOOKUP(B165,'Oman Results'!C165:AI1158,31)="x",'Oman Results'!AK165,'Oman Results'!G165)) -> 26.59 | H165: 452.03 | I165: =IF(B165="","",IF(VLOOKUP(B165,'Oman Results'!C165:AI1158,31)="x","Yes","")) ->  | J165: =IF(B165="","",IF(VLOOKUP(B165,'Oman Results'!C165:AI1158,31)="x",'Oman Results'!G165,"")) ->  | K165: =IF(B165="","",IF(VLOOKUP(B165,'Oman Results'!C165:AI1158,31)="x",'Oman Results'!AJ165,"")) ->  | L165: =IF(B165="","",IF(VLOOKUP(B165,'Oman Results'!C165:AI1158,31)="x",'Oman Results'!AK165,"")) ->  | R165: 452.03
A166: 165 | B166: =IF('Oman Results'!C166="","",'Oman Results'!C166) -> 807-86925 | C166: =IF(OR('Oman Results'!D166="",'Oman Results'!D166="Totals"),"",'Oman Results'!D166) -> MULTIPLE COMPRESSION FITTING, WATERPROOFED | E166: =IF('Oman Results'!E166="","",'Oman Results'!E166) -> 50 | F166: =IF('Oman Results'!F166="","",'Oman Results'!F166) -> EACH | G166: =IF(B166="","",IF(VLOOKUP(B166,'Oman Results'!C166:AI1159,31)="x",'Oman Results'!AK166,'Oman Results'!G166)) -> 31.47 | H166: 1573.5 | I166: =IF(B166="","",IF(VLOOKUP(B166,'Oman Results'!C166:AI1159,31)="x","Yes","")) ->  | J166: =IF(B166="","",IF(VLOOKUP(B166,'Oman Results'!C166:AI1159,31)="x",'Oman Results'!G166,"")) ->  | K166: =IF(B166="","",IF(VLOOKUP(B166,'Oman Results'!C166:AI1159,31)="x",'Oman Results'!AJ166,"")) ->  | L166: =IF(B166="","",IF(VLOOKUP(B166,'Oman Results'!C166:AI1159,31)="x",'Oman Results'!AK166,"")) ->  | R166: 1573.5
A167: 166 | B167: =IF('Oman Results'!C167="","",'Oman Results'!C167) -> 807-86935 | C167: =IF(OR('Oman Results'!D167="",'Oman Results'!D167="Totals"),"",'Oman Results'!D167) -> INSULATION LINK, WATERPROOFED | E167: =IF('Oman Results'!E167="","",'Oman Results'!E167) -> 58 | F167: =IF('Oman Results'!F167="","",'Oman Results'!F167) -> EACH | G167: =IF(B167="","",IF(VLOOKUP(B167,'Oman Results'!C167:AI1160,31)="x",'Oman Results'!AK167,'Oman Results'!G167)) -> 27.66 | H167: 1604.28 | I167: =IF(B167="","",IF(VLOOKUP(B167,'Oman Results'!C167:AI1160,31)="x","Yes","")) ->  | J167: =IF(B167="","",IF(VLOOKUP(B167,'Oman Results'!C167:AI1160,31)="x",'Oman Results'!G167,"")) ->  | K167: =IF(B167="","",IF(VLOOKUP(B167,'Oman Results'!C167:AI1160,31)="x",'Oman Results'!AJ167,"")) ->  | L167: =IF(B167="","",IF(VLOOKUP(B167,'Oman Results'!C167:AI1160,31)="x",'Oman Results'!AK167,"")) ->  | R167: 1604.28
A168: 167 | B168: =IF('Oman Results'!C168="","",'Oman Results'!C168) -> 808-06701 | C168: =IF(OR('Oman Results'!D168="",'Oman Results'!D168="Totals"),"",'Oman Results'!D168) -> LINE, THERMOPLASTIC, BROKEN, WHITE, 4 IN | E168: =IF('Oman Results'!E168="","",'Oman Results'!E168) -> 600 | F168: =IF('Oman Results'!F168="","",'Oman Results'!F168) -> L.F. | G168: =IF(B168="","",IF(VLOOKUP(B168,'Oman Results'!C168:AI1161,31)="x",'Oman Results'!AK168,'Oman Results'!G168)) -> 0.52 | H168: 312 | I168: =IF(B168="","",IF(VLOOKUP(B168,'Oman Results'!C168:AI1161,31)="x","Yes","")) ->  | J168: =IF(B168="","",IF(VLOOKUP(B168,'Oman Results'!C168:AI1161,31)="x",'Oman Results'!G168,"")) ->  | K168: =IF(B168="","",IF(VLOOKUP(B168,'Oman Results'!C168:AI1161,31)="x",'Oman Results'!AJ168,"")) ->  | L168: =IF(B168="","",IF(VLOOKUP(B168,'Oman Results'!C168:AI1161,31)="x",'Oman Results'!AK168,"")) ->  | R168: 312
A169: 168 | B169: =IF('Oman Results'!C169="","",'Oman Results'!C169) -> 808-06702 | C169: =IF(OR('Oman Results'!D169="",'Oman Results'!D169="Totals"),"",'Oman Results'!D169) -> LINE, THERMOPLASTIC, BROKEN, WHITE, 5 IN | E169: =IF('Oman Results'!E169="","",'Oman Results'!E169) -> 5800 | F169: =IF('Oman Results'!F169="","",'Oman Results'!F169) -> L.F. | G169: =IF(B169="","",IF(VLOOKUP(B169,'Oman Results'!C169:AI1162,31)="x",'Oman Results'!AK169,'Oman Results'!G169)) -> 0.44 | H169: 2552 | I169: =IF(B169="","",IF(VLOOKUP(B169,'Oman Results'!C169:AI1162,31)="x","Yes","")) ->  | J169: =IF(B169="","",IF(VLOOKUP(B169,'Oman Results'!C169:AI1162,31)="x",'Oman Results'!G169,"")) ->  | K169: =IF(B169="","",IF(VLOOKUP(B169,'Oman Results'!C169:AI1162,31)="x",'Oman Results'!AJ169,"")) ->  | L169: =IF(B169="","",IF(VLOOKUP(B169,'Oman Results'!C169:AI1162,31)="x",'Oman Results'!AK169,"")) ->  | R169: 2552
A170: 169 | B170: =IF('Oman Results'!C170="","",'Oman Results'!C170) -> 808-06703 | C170: =IF(OR('Oman Results'!D170="",'Oman Results'!D170="Totals"),"",'Oman Results'!D170) -> LINE, THERMOPLASTIC, SOLID, WHITE, 4 IN. | E170: =IF('Oman Results'!E170="","",'Oman Results'!E170) -> 29800 | F170: =IF('Oman Results'!F170="","",'Oman Results'!F170) -> L.F. | G170: =IF(B170="","",IF(VLOOKUP(B170,'Oman Results'!C170:AI1163,31)="x",'Oman Results'!AK170,'Oman Results'!G170)) -> 0.41 | H170: 12218 | I170: =IF(B170="","",IF(VLOOKUP(B170,'Oman Results'!C170:AI1163,31)="x","Yes","")) ->  | J170: =IF(B170="","",IF(VLOOKUP(B170,'Oman Results'!C170:AI1163,31)="x",'Oman Results'!G170,"")) ->  | K170: =IF(B170="","",IF(VLOOKUP(B170,'Oman Results'!C170:AI1163,31)="x",'Oman Results'!AJ170,"")) ->  | L170: =IF(B170="","",IF(VLOOKUP(B170,'Oman Results'!C170:AI1163,31)="x",'Oman Results'!AK170,"")) ->  | R170: 12218
A171: 170 | B171: =IF('Oman Results'!C171="","",'Oman Results'!C171) -> 808-06705 | C171: =IF(OR('Oman Results'!D171="",'Oman Results'!D171="Totals"),"",'Oman Results'!D171) -> LINE, THERMOPLASTIC, SOLID, WHITE, 8 IN | E171: =IF('Oman Results'!E171="","",'Oman Results'!E171) -> 5840 | F171: =IF('Oman Results'!F171="","",'Oman Results'!F171) -> L.F. | G171: =IF(B171="","",IF(VLOOKUP(B171,'Oman Results'!C171:AI1164,31)="x",'Oman Results'!AK171,'Oman Results'!G171)) -> 1.01 | H171: 5898.4 | I171: =IF(B171="","",IF(VLOOKUP(B171,'Oman Results'!C171:AI1164,31)="x","Yes","")) ->  | J171: =IF(B171="","",IF(VLOOKUP(B171,'Oman Results'!C171:AI1164,31)="x",'Oman Results'!G171,"")) ->  | K171: =IF(B171="","",IF(VLOOKUP(B171,'Oman Results'!C171:AI1164,31)="x",'Oman Results'!AJ171,"")) ->  | L171: =IF(B171="","",IF(VLOOKUP(B171,'Oman Results'!C171:AI1164,31)="x",'Oman Results'!AK171,"")) ->  | R171: 5898.4
A172: 171 | B172: =IF('Oman Results'!C172="","",'Oman Results'!C172) -> 808-06706 | C172: =IF(OR('Oman Results'!D172="",'Oman Results'!D172="Totals"),"",'Oman Results'!D172) -> LINE, THERMOPLASTIC, SOLID, WHITE, 24 IN | E172: =IF('Oman Results'!E172="","",'Oman Results'!E172) -> 595 | F172: =IF('Oman Results'!F172="","",'Oman Results'!F172) -> L.F. | G172: =IF(B172="","",IF(VLOOKUP(B172,'Oman Results'!C172:AI1165,31)="x",'Oman Results'!AK172,'Oman Results'!G172)) -> 4.77 | H172: 2838.15 | I172: =IF(B172="","",IF(VLOOKUP(B172,'Oman Results'!C172:AI1165,31)="x","Yes","")) ->  | J172: =IF(B172="","",IF(VLOOKUP(B172,'Oman Results'!C172:AI1165,31)="x",'Oman Results'!G172,"")) ->  | K172: =IF(B172="","",IF(VLOOKUP(B172,'Oman Results'!C172:AI1165,31)="x",'Oman Results'!AJ172,"")) ->  | L172: =IF(B172="","",IF(VLOOKUP(B172,'Oman Results'!C172:AI1165,31)="x",'Oman Results'!AK172,"")) ->  | R172: 2838.15
A173: 172 | B173: =IF('Oman Results'!C173="","",'Oman Results'!C173) -> 808-06716 | C173: =IF(OR('Oman Results'!D173="",'Oman Results'!D173="Totals"),"",'Oman Results'!D173) -> LINE, REMOVE | E173: =IF('Oman Results'!E173="","",'Oman Results'!E173) -> 9800 | F173: =IF('Oman Results'!F173="","",'Oman Results'!F173) -> L.F. | G173: =IF(B173="","",IF(VLOOKUP(B173,'Oman Results'!C173:AI1166,31)="x",'Oman Results'!AK173,'Oman Results'!G173)) -> 0.28 | H173: 2744 | I173: =IF(B173="","",IF(VLOOKUP(B173,'Oman Results'!C173:AI1166,31)="x","Yes","")) ->  | J173: =IF(B173="","",IF(VLOOKUP(B173,'Oman Results'!C173:AI1166,31)="x",'Oman Results'!G173,"")) ->  | K173: =IF(B173="","",IF(VLOOKUP(B173,'Oman Results'!C173:AI1166,31)="x",'Oman Results'!AJ173,"")) ->  | L173: =IF(B173="","",IF(VLOOKUP(B173,'Oman Results'!C173:AI1166,31)="x",'Oman Results'!AK173,"")) ->  | R173: 2744
A174: 173 | B174: =IF('Oman Results'!C174="","",'Oman Results'!C174) -> 808-75215 | C174: =IF(OR('Oman Results'!D174="",'Oman Results'!D174="Totals"),"",'Oman Results'!D174) -> LINE, THERMOPLASTIC, SOLID, WHITE 12 IN | E174: =IF('Oman Results'!E174="","",'Oman Results'!E174) -> 975 | F174: =IF('Oman Results'!F174="","",'Oman Results'!F174) -> L.F. | G174: =IF(B174="","",IF(VLOOKUP(B174,'Oman Results'!C174:AI1167,31)="x",'Oman Results'!AK174,'Oman Results'!G174)) -> 2.67 | H174: 2603.25 | I174: =IF(B174="","",IF(VLOOKUP(B174,'Oman Results'!C174:AI1167,31)="x","Yes","")) ->  | J174: =IF(B174="","",IF(VLOOKUP(B174,'Oman Results'!C174:AI1167,31)="x",'Oman Results'!G174,"")) ->  | K174: =IF(B174="","",IF(VLOOKUP(B174,'Oman Results'!C174:AI1167,31)="x",'Oman Results'!AJ174,"")) ->  | L174: =IF(B174="","",IF(VLOOKUP(B174,'Oman Results'!C174:AI1167,31)="x",'Oman Results'!AK174,"")) ->  | R174: 2603.25
A175: 174 | B175: =IF('Oman Results'!C175="","",'Oman Results'!C175) -> 808-75245 | C175: =IF(OR('Oman Results'!D175="",'Oman Results'!D175="Totals"),"",'Oman Results'!D175) -> LINE, THERMOPLASTIC, SOLID, YELLOW, 4 IN | E175: =IF('Oman Results'!E175="","",'Oman Results'!E175) -> 20440 | F175: =IF('Oman Results'!F175="","",'Oman Results'!F175) -> L.F. | G175: =IF(B175="","",IF(VLOOKUP(B175,'Oman Results'!C175:AI1168,31)="x",'Oman Results'!AK175,'Oman Results'!G175)) -> 0.42 | H175: 8584.8 | I175: =IF(B175="","",IF(VLOOKUP(B175,'Oman Results'!C175:AI1168,31)="x","Yes","")) ->  | J175: =IF(B175="","",IF(VLOOKUP(B175,'Oman Results'!C175:AI1168,31)="x",'Oman Results'!G175,"")) ->  | K175: =IF(B175="","",IF(VLOOKUP(B175,'Oman Results'!C175:AI1168,31)="x",'Oman Results'!AJ175,"")) ->  | L175: =IF(B175="","",IF(VLOOKUP(B175,'Oman Results'!C175:AI1168,31)="x",'Oman Results'!AK175,"")) ->  | R175: 8584.8
A176: 175 | B176: =IF('Oman Results'!C176="","",'Oman Results'!C176) -> 808-75297 | C176: =IF(OR('Oman Results'!D176="",'Oman Results'!D176="Totals"),"",'Oman Results'!D176) -> TRANSVERSE MARKING, THERMOPLASTIC, STOP LINE, 24 IN | E176: =IF('Oman Results'!E176="","",'Oman Results'!E176) -> 60 | F176: =IF('Oman Results'!F176="","",'Oman Results'!F176) -> L.F. | G176: =IF(B176="","",IF(VLOOKUP(B176,'Oman Results'!C176:AI1169,31)="x",'Oman Results'!AK176,'Oman Results'!G176)) -> 5.2 | H176: 312 | I176: =IF(B176="","",IF(VLOOKUP(B176,'Oman Results'!C176:AI1169,31)="x","Yes","")) ->  | J176: =IF(B176="","",IF(VLOOKUP(B176,'Oman Results'!C176:AI1169,31)="x",'Oman Results'!G176,"")) ->  | K176: =IF(B176="","",IF(VLOOKUP(B176,'Oman Results'!C176:AI1169,31)="x",'Oman Results'!AJ176,"")) ->  | L176: =IF(B176="","",IF(VLOOKUP(B176,'Oman Results'!C176:AI1169,31)="x",'Oman Results'!AK176,"")) ->  | R176: 312
A177: 176 | B177: =IF('Oman Results'!C177="","",'Oman Results'!C177) -> 808-75320 | C177: =IF(OR('Oman Results'!D177="",'Oman Results'!D177="Totals"),"",'Oman Results'!D177) -> PAVEMENT MESSAGE MARKING, THERMOPLASTIC, LANE INDICATION ARROW | E177: =IF('Oman Results'!E177="","",'Oman Results'!E177) -> 12 | F177: =IF('Oman Results'!F177="","",'Oman Results'!F177) -> EACH | G177: =IF(B177="","",IF(VLOOKUP(B177,'Oman Results'!C177:AI1170,31)="x",'Oman Results'!AK177,'Oman Results'!G177)) -> 78.62 | H177: 943.44 | I177: =IF(B177="","",IF(VLOOKUP(B177,'Oman Results'!C177:AI1170,31)="x","Yes","")) ->  | J177: =IF(B177="","",IF(VLOOKUP(B177,'Oman Results'!C177:AI1170,31)="x",'Oman Results'!G177,"")) ->  | K177: =IF(B177="","",IF(VLOOKUP(B177,'Oman Results'!C177:AI1170,31)="x",'Oman Results'!AJ177,"")) ->  | L177: =IF(B177="","",IF(VLOOKUP(B177,'Oman Results'!C177:AI1170,31)="x",'Oman Results'!AK177,"")) ->  | R177: 943.44
A178: 177 | B178: =IF('Oman Results'!C178="","",'Oman Results'!C178) -> 808-75325 | C178: =IF(OR('Oman Results'!D178="",'Oman Results'!D178="Totals"),"",'Oman Results'!D178) -> PAVEMENT MESSAGE MARKING, THERMOPLASTIC, (ONLY) | E178: =IF('Oman Results'!E178="","",'Oman Results'!E178) -> 4 | F178: =IF('Oman Results'!F178="","",'Oman Results'!F178) -> EACH | G178: =IF(B178="","",IF(VLOOKUP(B178,'Oman Results'!C178:AI1171,31)="x",'Oman Results'!AK178,'Oman Results'!G178)) -> 94.34 | H178: 377.36 | I178: =IF(B178="","",IF(VLOOKUP(B178,'Oman Results'!C178:AI1171,31)="x","Yes","")) ->  | J178: =IF(B178="","",IF(VLOOKUP(B178,'Oman Results'!C178:AI1171,31)="x",'Oman Results'!G178,"")) ->  | K178: =IF(B178="","",IF(VLOOKUP(B178,'Oman Results'!C178:AI1171,31)="x",'Oman Results'!AJ178,"")) ->  | L178: =IF(B178="","",IF(VLOOKUP(B178,'Oman Results'!C178:AI1171,31)="x",'Oman Results'!AK178,"")) ->  | R178: 377.36
A179: 178 | B179: =IF('Oman Results'!C179="","",'Oman Results'!C179) -> 808-75998 | C179: =IF(OR('Oman Results'!D179="",'Oman Results'!D179="Totals"),"",'Oman Results'!D179) -> SNOWPLOWABLE RAISED PAVEMENT MARKER | E179: =IF('Oman Results'!E179="","",'Oman Results'!E179) -> 1130 | F179: =IF('Oman Results'!F179="","",'Oman Results'!F179) -> EACH | G179: =IF(B179="","",IF(VLOOKUP(B179,'Oman Results'!C179:AI1172,31)="x",'Oman Results'!AK179,'Oman Results'!G179)) -> 16.56 | H179: 18712.8 | I179: =IF(B179="","",IF(VLOOKUP(B179,'Oman Results'!C179:AI1172,31)="x","Yes","")) ->  | J179: =IF(B179="","",IF(VLOOKUP(B179,'Oman Results'!C179:AI1172,31)="x",'Oman Results'!G179,"")) ->  | K179: =IF(B179="","",IF(VLOOKUP(B179,'Oman Results'!C179:AI1172,31)="x",'Oman Results'!AJ179,"")) ->  | L179: =IF(B179="","",IF(VLOOKUP(B179,'Oman Results'!C179:AI1172,31)="x",'Oman Results'!AK179,"")) ->  | R179: 18712.8
B180: =IF('Oman Results'!C180="","",'Oman Results'!C180) ->  | C180: =IF(OR('Oman Results'!D180="",'Oman Results'!D180="Totals"),"",'Oman Results'!D180) ->  | E180: =IF('Oman Results'!E180="","",'Oman Results'!E180) ->  | F180: =IF('Oman Results'!F180="","",'Oman Results'!F180) ->  | G180: =IF(B180="","",IF(VLOOKUP(B180,'Oman Results'!C180:AI1173,31)="x",'Oman Results'!AK180,'Oman Results'!G180)) ->  | I180: =IF(B180="","",IF(VLOOKUP(B180,'Oman Results'!C180:AI1173,31)="x","Yes","")) ->  | J180: =IF(B180="","",IF(VLOOKUP(B180,'Oman Results'!C180:AI1173,31)="x",'Oman Results'!G180,"")) ->  | K180: =IF(B180="","",IF(VLOOKUP(B180,'Oman Results'!C180:AI1173,31)="x",'Oman Results'!AJ180,"")) ->  | L180: =IF(B180="","",IF(VLOOKUP(B180,'Oman Results'!C180:AI1173,31)="x",'Oman Results'!AK180,"")) -> 
B181: =IF('Oman Results'!C181="","",'Oman Results'!C181) ->  | C181: =IF(OR('Oman Results'!D181="",'Oman Results'!D181="Totals"),"",'Oman Results'!D181) ->  | E181: =IF('Oman Results'!E181="","",'Oman Results'!E181) ->  | F181: =IF('Oman Results'!F181="","",'Oman Results'!F181) ->  | G181: =IF(B181="","",IF(VLOOKUP(B181,'Oman Results'!C181:AI1174,31)="x",'Oman Results'!AK181,'Oman Results'!G181)) ->  | I181: =IF(B181="","",IF(VLOOKUP(B181,'Oman Results'!C181:AI1174,31)="x","Yes","")) ->  | J181: =IF(B181="","",IF(VLOOKUP(B181,'Oman Results'!C181:AI1174,31)="x",'Oman Results'!G181,"")) ->  | K181: =IF(B181="","",IF(VLOOKUP(B181,'Oman Results'!C181:AI1174,31)="x",'Oman Results'!AJ181,"")) ->  | L181: =IF(B181="","",IF(VLOOKUP(B181,'Oman Results'!C181:AI1174,31)="x",'Oman Results'!AK181,"")) -> 
B182: =IF('Oman Results'!C182="","",'Oman Results'!C182) ->  | C182: =IF(OR('Oman Results'!D182="",'Oman Results'!D182="Totals"),"",'Oman Results'!D182) ->  | E182: =IF('Oman Results'!E182="","",'Oman Results'!E182) ->  | F182: =IF('Oman Results'!F182="","",'Oman Results'!F182) ->  | G182: =IF(B182="","",IF(VLOOKUP(B182,'Oman Results'!C182:AI1175,31)="x",'Oman Results'!AK182,'Oman Results'!G182)) ->  | I182: =IF(B182="","",IF(VLOOKUP(B182,'Oman Results'!C182:AI1175,31)="x","Yes","")) ->  | J182: =IF(B182="","",IF(VLOOKUP(B182,'Oman Results'!C182:AI1175,31)="x",'Oman Results'!G182,"")) ->  | K182: =IF(B182="","",IF(VLOOKUP(B182,'Oman Results'!C182:AI1175,31)="x",'Oman Results'!AJ182,"")) ->  | L182: =IF(B182="","",IF(VLOOKUP(B182,'Oman Results'!C182:AI1175,31)="x",'Oman Results'!AK182,"")) -> 
B183: =IF('Oman Results'!C183="","",'Oman Results'!C183) ->  | C183: =IF(OR('Oman Results'!D183="",'Oman Results'!D183="Totals"),"",'Oman Results'!D183) ->  | E183: =IF('Oman Results'!E183="","",'Oman Results'!E183) ->  | F183: =IF('Oman Results'!F183="","",'Oman Results'!F183) ->  | G183: =IF(B183="","",IF(VLOOKUP(B183,'Oman Results'!C183:AI1176,31)="x",'Oman Results'!AK183,'Oman Results'!G183)) ->  | I183: =IF(B183="","",IF(VLOOKUP(B183,'Oman Results'!C183:AI1176,31)="x","Yes","")) ->  | J183: =IF(B183="","",IF(VLOOKUP(B183,'Oman Results'!C183:AI1176,31)="x",'Oman Results'!G183,"")) ->  | K183: =IF(B183="","",IF(VLOOKUP(B183,'Oman Results'!C183:AI1176,31)="x",'Oman Results'!AJ183,"")) ->  | L183: =IF(B183="","",IF(VLOOKUP(B183,'Oman Results'!C183:AI1176,31)="x",'Oman Results'!AK183,"")) -> 
B184: =IF('Oman Results'!C184="","",'Oman Results'!C184) ->  | C184: =IF(OR('Oman Results'!D184="",'Oman Results'!D184="Totals"),"",'Oman Results'!D184) ->  | E184: =IF('Oman Results'!E184="","",'Oman Results'!E184) ->  | F184: =IF('Oman Results'!F184="","",'Oman Results'!F184) ->  | G184: =IF(B184="","",IF(VLOOKUP(B184,'Oman Results'!C184:AI1177,31)="x",'Oman Results'!AK184,'Oman Results'!G184)) ->  | I184: =IF(B184="","",IF(VLOOKUP(B184,'Oman Results'!C184:AI1177,31)="x","Yes","")) ->  | J184: =IF(B184="","",IF(VLOOKUP(B184,'Oman Results'!C184:AI1177,31)="x",'Oman Results'!G184,"")) ->  | K184: =IF(B184="","",IF(VLOOKUP(B184,'Oman Results'!C184:AI1177,31)="x",'Oman Results'!AJ184,"")) ->  | L184: =IF(B184="","",IF(VLOOKUP(B184,'Oman Results'!C184:AI1177,31)="x",'Oman Results'!AK184,"")) -> 
B185: =IF('Oman Results'!C185="","",'Oman Results'!C185) ->  | C185: =IF(OR('Oman Results'!D185="",'Oman Results'!D185="Totals"),"",'Oman Results'!D185) ->  | E185: =IF('Oman Results'!E185="","",'Oman Results'!E185) ->  | F185: =IF('Oman Results'!F185="","",'Oman Results'!F185) ->  | G185: =IF(B185="","",IF(VLOOKUP(B185,'Oman Results'!C185:AI1178,31)="x",'Oman Results'!AK185,'Oman Results'!G185)) ->  | I185: =IF(B185="","",IF(VLOOKUP(B185,'Oman Results'!C185:AI1178,31)="x","Yes","")) ->  | J185: =IF(B185="","",IF(VLOOKUP(B185,'Oman Results'!C185:AI1178,31)="x",'Oman Results'!G185,"")) ->  | K185: =IF(B185="","",IF(VLOOKUP(B185,'Oman Results'!C185:AI1178,31)="x",'Oman Results'!AJ185,"")) ->  | L185: =IF(B185="","",IF(VLOOKUP(B185,'Oman Results'!C185:AI1178,31)="x",'Oman Results'!AK185,"")) -> 
B186: =IF('Oman Results'!C186="","",'Oman Results'!C186) ->  | C186: =IF(OR('Oman Results'!D186="",'Oman Results'!D186="Totals"),"",'Oman Results'!D186) ->  | E186: =IF('Oman Results'!E186="","",'Oman Results'!E186) ->  | F186: =IF('Oman Results'!F186="","",'Oman Results'!F186) ->  | G186: =IF(B186="","",IF(VLOOKUP(B186,'Oman Results'!C186:AI1179,31)="x",'Oman Results'!AK186,'Oman Results'!G186)) ->  | I186: =IF(B186="","",IF(VLOOKUP(B186,'Oman Results'!C186:AI1179,31)="x","Yes","")) ->  | J186: =IF(B186="","",IF(VLOOKUP(B186,'Oman Results'!C186:AI1179,31)="x",'Oman Results'!G186,"")) ->  | K186: =IF(B186="","",IF(VLOOKUP(B186,'Oman Results'!C186:AI1179,31)="x",'Oman Results'!AJ186,"")) ->  | L186: =IF(B186="","",IF(VLOOKUP(B186,'Oman Results'!C186:AI1179,31)="x",'Oman Results'!AK186,"")) -> 
B187: =IF('Oman Results'!C187="","",'Oman Results'!C187) ->  | C187: =IF(OR('Oman Results'!D187="",'Oman Results'!D187="Totals"),"",'Oman Results'!D187) ->  | E187: =IF('Oman Results'!E187="","",'Oman Results'!E187) ->  | F187: =IF('Oman Results'!F187="","",'Oman Results'!F187) ->  | G187: =IF(B187="","",IF(VLOOKUP(B187,'Oman Results'!C187:AI1180,31)="x",'Oman Results'!AK187,'Oman Results'!G187)) ->  | I187: =IF(B187="","",IF(VLOOKUP(B187,'Oman Results'!C187:AI1180,31)="x","Yes","")) ->  | J187: =IF(B187="","",IF(VLOOKUP(B187,'Oman Results'!C187:AI1180,31)="x",'Oman Results'!G187,"")) ->  | K187: =IF(B187="","",IF(VLOOKUP(B187,'Oman Results'!C187:AI1180,31)="x",'Oman Results'!AJ187,"")) ->  | L187: =IF(B187="","",IF(VLOOKUP(B187,'Oman Results'!C187:AI1180,31)="x",'Oman Results'!AK187,"")) -> 
B188: =IF('Oman Results'!C188="","",'Oman Results'!C188) ->  | C188: =IF(OR('Oman Results'!D188="",'Oman Results'!D188="Totals"),"",'Oman Results'!D188) ->  | E188: =IF('Oman Results'!E188="","",'Oman Results'!E188) ->  | F188: =IF('Oman Results'!F188="","",'Oman Results'!F188) ->  | G188: =IF(B188="","",IF(VLOOKUP(B188,'Oman Results'!C188:AI1181,31)="x",'Oman Results'!AK188,'Oman Results'!G188)) ->  | I188: =IF(B188="","",IF(VLOOKUP(B188,'Oman Results'!C188:AI1181,31)="x","Yes","")) ->  | J188: =IF(B188="","",IF(VLOOKUP(B188,'Oman Results'!C188:AI1181,31)="x",'Oman Results'!G188,"")) ->  | K188: =IF(B188="","",IF(VLOOKUP(B188,'Oman Results'!C188:AI1181,31)="x",'Oman Results'!AJ188,"")) ->  | L188: =IF(B188="","",IF(VLOOKUP(B188,'Oman Results'!C188:AI1181,31)="x",'Oman Results'!AK188,"")) -> 
B189: =IF('Oman Results'!C189="","",'Oman Results'!C189) ->  | C189: =IF(OR('Oman Results'!D189="",'Oman Results'!D189="Totals"),"",'Oman Results'!D189) ->  | E189: =IF('Oman Results'!E189="","",'Oman Results'!E189) ->  | F189: =IF('Oman Results'!F189="","",'Oman Results'!F189) ->  | G189: =IF(B189="","",IF(VLOOKUP(B189,'Oman Results'!C189:AI1182,31)="x",'Oman Results'!AK189,'Oman Results'!G189)) ->  | I189: =IF(B189="","",IF(VLOOKUP(B189,'Oman Results'!C189:AI1182,31)="x","Yes","")) ->  | J189: =IF(B189="","",IF(VLOOKUP(B189,'Oman Results'!C189:AI1182,31)="x",'Oman Results'!G189,"")) ->  | K189: =IF(B189="","",IF(VLOOKUP(B189,'Oman Results'!C189:AI1182,31)="x",'Oman Results'!AJ189,"")) ->  | L189: =IF(B189="","",IF(VLOOKUP(B189,'Oman Results'!C189:AI1182,31)="x",'Oman Results'!AK189,"")) -> 
B190: =IF('Oman Results'!C190="","",'Oman Results'!C190) ->  | C190: =IF(OR('Oman Results'!D190="",'Oman Results'!D190="Totals"),"",'Oman Results'!D190) ->  | E190: =IF('Oman Results'!E190="","",'Oman Results'!E190) ->  | F190: =IF('Oman Results'!F190="","",'Oman Results'!F190) ->  | G190: =IF(B190="","",IF(VLOOKUP(B190,'Oman Results'!C190:AI1183,31)="x",'Oman Results'!AK190,'Oman Results'!G190)) ->  | I190: =IF(B190="","",IF(VLOOKUP(B190,'Oman Results'!C190:AI1183,31)="x","Yes","")) ->  | J190: =IF(B190="","",IF(VLOOKUP(B190,'Oman Results'!C190:AI1183,31)="x",'Oman Results'!G190,"")) ->  | K190: =IF(B190="","",IF(VLOOKUP(B190,'Oman Results'!C190:AI1183,31)="x",'Oman Results'!AJ190,"")) ->  | L190: =IF(B190="","",IF(VLOOKUP(B190,'Oman Results'!C190:AI1183,31)="x",'Oman Results'!AK190,"")) -> 
B191: =IF('Oman Results'!C191="","",'Oman Results'!C191) ->  | C191: =IF(OR('Oman Results'!D191="",'Oman Results'!D191="Totals"),"",'Oman Results'!D191) ->  | E191: =IF('Oman Results'!E191="","",'Oman Results'!E191) ->  | F191: =IF('Oman Results'!F191="","",'Oman Results'!F191) ->  | G191: =IF(B191="","",IF(VLOOKUP(B191,'Oman Results'!C191:AI1184,31)="x",'Oman Results'!AK191,'Oman Results'!G191)) ->  | I191: =IF(B191="","",IF(VLOOKUP(B191,'Oman Results'!C191:AI1184,31)="x","Yes","")) ->  | J191: =IF(B191="","",IF(VLOOKUP(B191,'Oman Results'!C191:AI1184,31)="x",'Oman Results'!G191,"")) ->  | K191: =IF(B191="","",IF(VLOOKUP(B191,'Oman Results'!C191:AI1184,31)="x",'Oman Results'!AJ191,"")) ->  | L191: =IF(B191="","",IF(VLOOKUP(B191,'Oman Results'!C191:AI1184,31)="x",'Oman Results'!AK191,"")) -> 
B192: =IF('Oman Results'!C192="","",'Oman Results'!C192) ->  | C192: =IF(OR('Oman Results'!D192="",'Oman Results'!D192="Totals"),"",'Oman Results'!D192) ->  | E192: =IF('Oman Results'!E192="","",'Oman Results'!E192) ->  | F192: =IF('Oman Results'!F192="","",'Oman Results'!F192) ->  | G192: =IF(B192="","",IF(VLOOKUP(B192,'Oman Results'!C192:AI1185,31)="x",'Oman Results'!AK192,'Oman Results'!G192)) ->  | I192: =IF(B192="","",IF(VLOOKUP(B192,'Oman Results'!C192:AI1185,31)="x","Yes","")) ->  | J192: =IF(B192="","",IF(VLOOKUP(B192,'Oman Results'!C192:AI1185,31)="x",'Oman Results'!G192,"")) ->  | K192: =IF(B192="","",IF(VLOOKUP(B192,'Oman Results'!C192:AI1185,31)="x",'Oman Results'!AJ192,"")) ->  | L192: =IF(B192="","",IF(VLOOKUP(B192,'Oman Results'!C192:AI1185,31)="x",'Oman Results'!AK192,"")) -> 
B193: =IF('Oman Results'!C193="","",'Oman Results'!C193) ->  | C193: =IF(OR('Oman Results'!D193="",'Oman Results'!D193="Totals"),"",'Oman Results'!D193) ->  | E193: =IF('Oman Results'!E193="","",'Oman Results'!E193) ->  | F193: =IF('Oman Results'!F193="","",'Oman Results'!F193) ->  | G193: =IF(B193="","",IF(VLOOKUP(B193,'Oman Results'!C193:AI1186,31)="x",'Oman Results'!AK193,'Oman Results'!G193)) ->  | I193: =IF(B193="","",IF(VLOOKUP(B193,'Oman Results'!C193:AI1186,31)="x","Yes","")) ->  | J193: =IF(B193="","",IF(VLOOKUP(B193,'Oman Results'!C193:AI1186,31)="x",'Oman Results'!G193,"")) ->  | K193: =IF(B193="","",IF(VLOOKUP(B193,'Oman Results'!C193:AI1186,31)="x",'Oman Results'!AJ193,"")) ->  | L193: =IF(B193="","",IF(VLOOKUP(B193,'Oman Results'!C193:AI1186,31)="x",'Oman Results'!AK193,"")) -> 
B194: =IF('Oman Results'!C194="","",'Oman Results'!C194) ->  | C194: =IF(OR('Oman Results'!D194="",'Oman Results'!D194="Totals"),"",'Oman Results'!D194) ->  | E194: =IF('Oman Results'!E194="","",'Oman Results'!E194) ->  | F194: =IF('Oman Results'!F194="","",'Oman Results'!F194) ->  | G194: =IF(B194="","",IF(VLOOKUP(B194,'Oman Results'!C194:AI1187,31)="x",'Oman Results'!AK194,'Oman Results'!G194)) ->  | I194: =IF(B194="","",IF(VLOOKUP(B194,'Oman Results'!C194:AI1187,31)="x","Yes","")) ->  | J194: =IF(B194="","",IF(VLOOKUP(B194,'Oman Results'!C194:AI1187,31)="x",'Oman Results'!G194,"")) ->  | K194: =IF(B194="","",IF(VLOOKUP(B194,'Oman Results'!C194:AI1187,31)="x",'Oman Results'!AJ194,"")) ->  | L194: =IF(B194="","",IF(VLOOKUP(B194,'Oman Results'!C194:AI1187,31)="x",'Oman Results'!AK194,"")) ->  | P194: =IF(O194=1,G194,"") ->  | R194: =IF(O194=1,"",H194) -> 
B195: =IF('Oman Results'!C195="","",'Oman Results'!C195) ->  | C195: =IF(OR('Oman Results'!D195="",'Oman Results'!D195="Totals"),"",'Oman Results'!D195) ->  | D195: =IF(ISNUMBER(SEARCH("{",C195)),"Yes", "") ->  | E195: =IF('Oman Results'!E195="","",'Oman Results'!E195) ->  | F195: =IF('Oman Results'!F195="","",'Oman Results'!F195) ->  | G195: =IF(B195="","",IF(VLOOKUP(B195,'Oman Results'!C195:AI1188,31)="x",'Oman Results'!AK195,'Oman Results'!G195)) ->  | H195: =IF(E195="","",E195*G195) ->  | I195: =IF(B195="","",IF(VLOOKUP(B195,'Oman Results'!C195:AI1188,31)="x","Yes","")) ->  | J195: =IF(B195="","",IF(VLOOKUP(B195,'Oman Results'!C195:AI1188,31)="x",'Oman Results'!G195,"")) ->  | K195: =IF(B195="","",IF(VLOOKUP(B195,'Oman Results'!C195:AI1188,31)="x",'Oman Results'!AJ195,"")) ->  | L195: =IF(B195="","",IF(VLOOKUP(B195,'Oman Results'!C195:AI1188,31)="x",'Oman Results'!AK195,"")) ->  | O195: =IF(OR(LEFT(F195,3)="L.S",LEFT(F195,2)="LS"),1,"") ->  | Q195: =IF(I195="Yes",G195,"") -> 
A196: =IF(B196="","",1+A195) ->  | B196: =IF('Oman Results'!C196="","",'Oman Results'!C196) ->  | C196: =IF(OR('Oman Results'!D196="",'Oman Results'!D196="Totals"),"",'Oman Results'!D196) ->  | E196: =IF('Oman Results'!E196="","",'Oman Results'!E196) ->  | F196: =IF('Oman Results'!F196="","",'Oman Results'!F196) ->  | G196: =IF(B196="","",IF(VLOOKUP(B196,'Oman Results'!C196:AI1189,31)="x",'Oman Results'!AK196,'Oman Results'!G196)) ->  | I196: =IF(B196="","",IF(VLOOKUP(B196,'Oman Results'!C196:AI1189,31)="x","Yes","")) ->  | J196: =IF(B196="","",IF(VLOOKUP(B196,'Oman Results'!C196:AI1189,31)="x",'Oman Results'!G196,"")) ->  | K196: =IF(B196="","",IF(VLOOKUP(B196,'Oman Results'!C196:AI1189,31)="x",'Oman Results'!AJ196,"")) ->  | L196: =IF(B196="","",IF(VLOOKUP(B196,'Oman Results'!C196:AI1189,31)="x",'Oman Results'!AK196,"")) -> 
B197: =IF('Oman Results'!C197="","",'Oman Results'!C197) ->  | C197: =IF(OR('Oman Results'!D197="",'Oman Results'!D197="Totals"),"",'Oman Results'!D197) ->  | E197: =IF('Oman Results'!E197="","",'Oman Results'!E197) ->  | F197: =IF('Oman Results'!F197="","",'Oman Results'!F197) ->  | G197: =IF(B197="","",IF(VLOOKUP(B197,'Oman Results'!C197:AI1190,31)="x",'Oman Results'!AK197,'Oman Results'!G197)) ->  | I197: =IF(B197="","",IF(VLOOKUP(B197,'Oman Results'!C197:AI1190,31)="x","Yes","")) ->  | J197: =IF(B197="","",IF(VLOOKUP(B197,'Oman Results'!C197:AI1190,31)="x",'Oman Results'!G197,"")) ->  | K197: =IF(B197="","",IF(VLOOKUP(B197,'Oman Results'!C197:AI1190,31)="x",'Oman Results'!AJ197,"")) ->  | L197: =IF(B197="","",IF(VLOOKUP(B197,'Oman Results'!C197:AI1190,31)="x",'Oman Results'!AK197,"")) -> 
B198: =IF('Oman Results'!C198="","",'Oman Results'!C198) ->  | C198: =IF(OR('Oman Results'!D198="",'Oman Results'!D198="Totals"),"",'Oman Results'!D198) ->  | E198: =IF('Oman Results'!E198="","",'Oman Results'!E198) ->  | F198: =IF('Oman Results'!F198="","",'Oman Results'!F198) ->  | G198: =IF(B198="","",IF(VLOOKUP(B198,'Oman Results'!C198:AI1191,31)="x",'Oman Results'!AK198,'Oman Results'!G198)) ->  | I198: =IF(B198="","",IF(VLOOKUP(B198,'Oman Results'!C198:AI1191,31)="x","Yes","")) ->  | J198: =IF(B198="","",IF(VLOOKUP(B198,'Oman Results'!C198:AI1191,31)="x",'Oman Results'!G198,"")) ->  | K198: =IF(B198="","",IF(VLOOKUP(B198,'Oman Results'!C198:AI1191,31)="x",'Oman Results'!AJ198,"")) ->  | L198: =IF(B198="","",IF(VLOOKUP(B198,'Oman Results'!C198:AI1191,31)="x",'Oman Results'!AK198,"")) -> 
B199: =IF('Oman Results'!C199="","",'Oman Results'!C199) ->  | C199: =IF(OR('Oman Results'!D199="",'Oman Results'!D199="Totals"),"",'Oman Results'!D199) ->  | E199: =IF('Oman Results'!E199="","",'Oman Results'!E199) ->  | F199: =IF('Oman Results'!F199="","",'Oman Results'!F199) ->  | G199: =IF(B199="","",IF(VLOOKUP(B199,'Oman Results'!C199:AI1192,31)="x",'Oman Results'!AK199,'Oman Results'!G199)) ->  | I199: =IF(B199="","",IF(VLOOKUP(B199,'Oman Results'!C199:AI1192,31)="x","Yes","")) ->  | J199: =IF(B199="","",IF(VLOOKUP(B199,'Oman Results'!C199:AI1192,31)="x",'Oman Results'!G199,"")) ->  | K199: =IF(B199="","",IF(VLOOKUP(B199,'Oman Results'!C199:AI1192,31)="x",'Oman Results'!AJ199,"")) ->  | L199: =IF(B199="","",IF(VLOOKUP(B199,'Oman Results'!C199:AI1192,31)="x",'Oman Results'!AK199,"")) -> 
B200: =IF('Oman Results'!C200="","",'Oman Results'!C200) ->  | C200: =IF(OR('Oman Results'!D200="",'Oman Results'!D200="Totals"),"",'Oman Results'!D200) ->  | E200: =IF('Oman Results'!E200="","",'Oman Results'!E200) ->  | F200: =IF('Oman Results'!F200="","",'Oman Results'!F200) ->  | G200: =IF(B200="","",IF(VLOOKUP(B200,'Oman Results'!C200:AI1193,31)="x",'Oman Results'!AK200,'Oman Results'!G200)) ->  | I200: =IF(B200="","",IF(VLOOKUP(B200,'Oman Results'!C200:AI1193,31)="x","Yes","")) ->  | J200: =IF(B200="","",IF(VLOOKUP(B200,'Oman Results'!C200:AI1193,31)="x",'Oman Results'!G200,"")) ->  | K200: =IF(B200="","",IF(VLOOKUP(B200,'Oman Results'!C200:AI1193,31)="x",'Oman Results'!AJ200,"")) ->  | L200: =IF(B200="","",IF(VLOOKUP(B200,'Oman Results'!C200:AI1193,31)="x",'Oman Results'!AK200,"")) -> 
... 600 more rows

Sheet Oman Results
C1: *PAY ITEM* | D1: Description | E1: Quantity | F1: Unit | G1: Unit Price | H1: Extension | I1: Comparison #1 | J1: Extension #1 | K1: Count | L1: Std. Dev. | M1: Comparison #2 | N1: Extension #2 | O1: Count | P1: Std. Dev. | Q1: Comparison #3 | R1: Extension #3 | S1: Count | T1: Std. Dev. | U1: Section | V1: Sort Code | W1: Alternate | X1: Unit Variance | Y1: Total Variance | Z1: Bid Count | AA1: Bid Tot EXCL | AB1: Bid Tot EXCL2 | AC1: Comp1 | AD1: Comp1 | AE1: Comp1 | AF1: Round | AG1: Put x to Select | AI1: Unit Price After | AJ1: Enter LS % | AK1: New Unit Price | AL1: Warning | AN1: Orig. Oman Amount: | AO1: =SUMPRODUCT(E2:E995,G2:G995) -> 15346414.94 | AP1: Total Without Selected LS Items : | AQ1: =IF(AO1="","",SUMPRODUCT(E2:E995,AI2:AI995)) -> 15217912.93 | AR1: Selected LS Items Amount: | AS1: =IF(AO1="","",SUM(AK2:AK995)) -> 1065253.905 | AT1: Total Original Amount With Manual LS: | AU1: =SUMPRODUCT(E2:E995,AI2:AI995)+SUMPRODUCT(E2:E995,AK2:AK995) -> 16283166.84 | AV1: =IF(AO1="","",SUMPRODUCT(AI2:AI995,AH2:AH995)) -> 2017411.68 | AW1: =IF(AO1="","",SUMPRODUCT(AH2:AH995,G2:G995)) -> 2145913.69 | AX1: x | AY1: Oman | AZ1: Manual % | BA1: Manual $ | BC1: Unit Price
A2: =LEFT(C2,9) -> 105-06845 | C2: 105-06845 | D2: CONSTRUCTION ENGINEERING | E2: 1 | F2: L.S. | G2: 24269.77 | H2: 24269.77 | I2: 24269.77 | J2: 24269.77 | K2: 0 | L2: 0 | M2: 0 | N2: 0 | O2: 0 | P2: 0 | Q2: 0 | R2: 0 | S2: 0 | T2: 0 | U2: 100 | V2: 1 | X2: 0 | Y2: 0 | Z2: 0 | AA2: 24270 | AB2: 24270 | AC2: 24270 | AD2: 0 | AE2: 0 | AF2: 0 | AG2: x | AH2: =IF(OR(LEFT(F2,2)="LS",LEFT(F2,3)="L.S"),1,0) -> 1 | AI2: =IF(G2="","",IF(AND(AG2<>"",AH2=1),0,G2)) -> 0 | AJ2: 0.04 | AK2: =IF(G2="","",IF(AND(AG2="x",AH2=1),AJ2*$AQ$1,0)) -> 608716.5172 | AL2: =IF(AND(AH2=1,AG2<>"x",AG2<>""),"You can only use x",IF(AND(AH2=1,AG2="",AJ2<>""),"Put x to Calculate","")) ->  | BC2: 24269.77
A3: =LEFT(C3,9) -> 110-01001 | C3: 110-01001 | D3: MOBILIZATION AND DEMOBILIZATION | E3: 1 | F3: L.S. | G3: 104232.24 | H3: 104232.24 | I3: 104232.24 | J3: 104232.24 | K3: 0 | L3: 0 | M3: 0 | N3: 0 | O3: 0 | P3: 0 | Q3: 0 | R3: 0 | S3: 0 | T3: 0 | U3: 100 | V3: 2 | X3: 0 | Y3: 0 | Z3: 0 | AA3: 104232 | AB3: 104232 | AC3: 104232 | AD3: 0 | AE3: 0 | AF3: 0 | AG3: x | AH3: =IF(OR(LEFT(F3,2)="LS",LEFT(F3,3)="L.S"),1,0) -> 1 | AI3: 0 | AJ3: 0.03 | AK3: 456537.3879 | BC3: 104232.24
A4: =LEFT(C4,9) -> 201-52370 | C4: 201-52370 | D4: CLEARING RIGHT OF WAY | E4: 1 | F4: L.S. | G4: 47271.03 | H4: 47271.03 | I4: 47271.03 | J4: 47271.03 | K4: 0 | L4: 0 | M4: 0 | N4: 0 | O4: 0 | P4: 0 | Q4: 0 | R4: 0 | S4: 0 | T4: 0 | U4: 200 | V4: 3 | X4: 0 | Y4: 0 | Z4: 0 | AA4: 47271 | AB4: 47271 | AC4: 47271 | AD4: 0 | AE4: 0 | AF4: 0 | AH4: 1 | AI4: 47271.03 | AK4: 0 | BC4: 47271.03
A5: 202-02240 | C5: 202-02240 | D5: PAVEMENT REMOVAL | E5: 10050 | F5: S.Y. | G5: 7.51 | H5: 75475.5 | I5: 7.51 | J5: 75475.5 | K5: 0 | L5: 0 | M5: 0 | N5: 0 | O5: 0 | P5: 0 | Q5: 0 | R5: 0 | S5: 0 | T5: 0 | U5: 200 | V5: 4 | X5: 0 | Y5: 0 | Z5: 0 | AA5: 75476 | AB5: 75476 | AC5: 75476 | AD5: 0 | AE5: 0 | AF5: 0 | AH5: 0 | AI5: 7.51 | AK5: 0 | BC5: 7.51
A6: 202-51328 | C6: 202-51328 | D6: PRESENT STRUCTURE, REMOVE PORTIONS | E6: 1 | F6: L.S. | G6: 949288.28 | H6: 949288.28 | I6: 949288.28 | J6: 949288.28 | K6: 0 | L6: 0 | M6: 0 | N6: 0 | O6: 0 | P6: 0 | Q6: 0 | R6: 0 | S6: 0 | T6: 0 | U6: 200 | V6: 5 | X6: 0 | Y6: 0 | Z6: 0 | AA6: 949288 | AB6: 949288 | AC6: 949288 | AD6: 0 | AE6: 0 | AF6: 0 | AH6: 1 | AI6: 949288.28 | AK6: 0 | BC6: 949288.28
A7: 202-51330 | C7: 202-51330 | D7: PRESENT STRUCTURE, REMOVE | E7: 1 | F7: L.S. | G7: 65079.96 | H7: 65079.96 | I7: 65079.96 | J7: 65079.96 | K7: 0 | L7: 0 | M7: 0 | N7: 0 | O7: 0 | P7: 0 | Q7: 0 | R7: 0 | S7: 0 | T7: 0 | U7: 200 | V7: 6 | X7: 0 | Y7: 0 | Z7: 0 | AA7: 65080 | AB7: 65080 | AC7: 65080 | AD7: 0 | AE7: 0 | AF7: 0 | AH7: 1 | AI7: 65079.96 | AK7: 0 | BC7: 65079.96
A8: 202-74035 | C8: 202-74035 | D8: SIGN, REMOVE | E8: 20 | F8: EACH | G8: 82.19 | H8: 1643.8 | I8: 82.19 | J8: 1643.8 | K8: 0 | L8: 0 | M8: 0 | N8: 0 | O8: 0 | P8: 0 | Q8: 0 | R8: 0 | S8: 0 | T8: 0 | U8: 200 | V8: 7 | X8: 0 | Y8: 0 | Z8: 0 | AA8: 1644 | AB8: 1644 | AC8: 1644 | AD8: 0 | AE8: 0 | AF8: 0 | AH8: 0 | AI8: =IF(G8="","",IF(AND(AG8<>"",AH8=1),0,G8)) -> 82.19 | AK8: 0 | BC8: 82.19
A9: 202-74055 | C9: 202-74055 | D9: OVERHEAD SIGN STRUCTURE, BOX TRUSS, REMOVE | E9: 5 | F9: EACH | G9: 3035.57 | H9: 15177.85 | I9: 3035.57 | J9: 15177.85 | K9: 0 | L9: 0 | M9: 0 | N9: 0 | O9: 0 | P9: 0 | Q9: 0 | R9: 0 | S9: 0 | T9: 0 | U9: 200 | V9: 8 | X9: 0 | Y9: 0 | Z9: 0 | AA9: 15178 | AB9: 15178 | AC9: 15178 | AD9: 0 | AE9: 0 | AF9: 0 | AH9: 0 | AI9: 3035.57 | AK9: 0 | BC9: 3035.57
A10: 202-85996 | C10: 202-85996 | D10: LIGHT STANDARD AND MAST ARM, REMOVE | E10: 2 | F10: EACH | G10: 401 | H10: 802 | I10: 401 | J10: 802 | K10: 0 | L10: 0 | M10: 0 | N10: 0 | O10: 0 | P10: 0 | Q10: 0 | R10: 0 | S10: 0 | T10: 0 | U10: 200 | V10: 9 | X10: 0 | Y10: 0 | Z10: 0 | AA10: 802 | AB10: 802 | AC10: 802 | AD10: 0 | AE10: 0 | AF10: 0 | AH10: 0 | AI10: 401 | AK10: 0 | BC10: 401
A11: 202-90413 | C11: 202-90413 | D11: SLOPEWALL, CONCRETE, 4 IN, REMOVE | E11: 400 | F11: S.Y. | G11: 59 | H11: 23600 | I11: 59 | J11: 23600 | K11: 0 | L11: 0 | M11: 0 | N11: 0 | O11: 0 | P11: 0 | Q11: 0 | R11: 0 | S11: 0 | T11: 0 | U11: 200 | V11: 10 | X11: 0 | Y11: 0 | Z11: 0 | AA11: 23600 | AB11: 23600 | AC11: 23600 | AD11: 0 | AE11: 0 | AF11: 0 | AH11: 0 | AI11: 59 | AK11: =IF(G11="","",IF(AND(AG11="x",AH11=1),AJ11*$AQ$1,0)) -> 0 | BC11: 59
A12: 202-93741 | C12: 202-93741 | D12: GUARDRAIL END TREATMENT, REMOVE | E12: 15 | F12: EACH | G12: 362.69 | H12: 5440.35 | I12: 362.69 | J12: 5440.35 | K12: 0 | L12: 0 | M12: 0 | N12: 0 | O12: 0 | P12: 0 | Q12: 0 | R12: 0 | S12: 0 | T12: 0 | U12: 200 | V12: 11 | X12: 0 | Y12: 0 | Z12: 0 | AA12: 5440 | AB12: 5440 | AC12: 5440 | AD12: 0 | AE12: 0 | AF12: 0 | AH12: 0 | AI12: 362.69 | AK12: 0 | BC12: 362.69
A13: 202-94954 | C13: 202-94954 | D13: BARRIER WALL, CONCRETE, REMOVE | E13: 750 | F13: L.F. | G13: 18.31 | H13: 13732.5 | I13: 18.31 | J13: 13732.5 | K13: 0 | L13: 0 | M13: 0 | N13: 0 | O13: 0 | P13: 0 | Q13: 0 | R13: 0 | S13: 0 | T13: 0 | U13: 200 | V13: 12 | X13: 0 | Y13: 0 | Z13: 0 | AA13: 13733 | AB13: 13733 | AC13: 13733 | AD13: 0 | AE13: 0 | AF13: 0 | AH13: 0 | AI13: 18.31 | AK13: 0 | BC13: 18.31
A14: 202-95027 | C14: 202-95027 | D14: IMPACT ATTENUATOR, REMOVE | E14: 2 | F14: EACH | G14: 798 | H14: 1596 | I14: 798 | J14: 1596 | K14: 0 | L14: 0 | M14: 0 | N14: 0 | O14: 0 | P14: 0 | Q14: 0 | R14: 0 | S14: 0 | T14: 0 | U14: 200 | V14: 13 | X14: 0 | Y14: 0 | Z14: 0 | AA14: 1596 | AB14: 1596 | AC14: 1596 | AD14: 0 | AE14: 0 | AF14: 0 | AH14: 0 | AI14: 798 | AK14: 0 | BC14: 798
A15: 202-96022 | C15: 202-96022 | D15: CONCRETE FOUNDATION, REMOVE | E15: 1 | F15: EACH | G15: 389.52 | H15: 389.52 | I15: 389.52 | J15: 389.52 | K15: 0 | L15: 0 | M15: 0 | N15: 0 | O15: 0 | P15: 0 | Q15: 0 | R15: 0 | S15: 0 | T15: 0 | U15: 200 | V15: 14 | X15: 0 | Y15: 0 | Z15: 0 | AA15: 390 | AB15: 390 | AC15: 390 | AD15: 0 | AE15: 0 | AF15: 0 | AH15: 0 | AI15: 389.52 | AK15: 0 | BC15: 389.52
A16: 202-96328 | C16: 202-96328 | D16: FOUNDATION, STREET LIGHT, REMOVE | E16: 23 | F16: EACH | G16: 961 | H16: 22103 | I16: 961 | J16: 22103 | K16: 0 | L16: 0 | M16: 0 | N16: 0 | O16: 0 | P16: 0 | Q16: 0 | R16: 0 | S16: 0 | T16: 0 | U16: 200 | V16: 15 | X16: 0 | Y16: 0 | Z16: 0 | AA16: 22103 | AB16: 22103 | AC16: 22103 | AD16: 0 | AE16: 0 | AF16: 0 | AH16: 0 | AI16: 961 | AK16: 0 | BC16: 961
A17: 203-02000 | C17: 203-02000 | D17: EXCAVATION, COMMON | E17: 65200 | F17: C.Y. | G17: 9.23 | H17: 601796 | I17: 9.23 | J17: 601796 | K17: 0 | L17: 0 | M17: 0 | N17: 0 | O17: 0 | P17: 0 | Q17: 0 | R17: 0 | S17: 0 | T17: 0 | U17: 200 | V17: 16 | X17: 0 | Y17: 0 | Z17: 0 | AA17: 601796 | AB17: 601796 | AC17: 601796 | AD17: 0 | AE17: 0 | AF17: 0 | AH17: 0 | AI17: 9.23 | AK17: 0 | BC17: 9.23
A18: 203-02070 | C18: 203-02070 | D18: BORROW | E18: 20800 | F18: C.Y. | G18: 5.84 | H18: 121472 | I18: 5.84 | J18: 121472 | K18: 0 | L18: 0 | M18: 0 | N18: 0 | O18: 0 | P18: 0 | Q18: 0 | R18: 0 | S18: 0 | T18: 0 | U18: 200 | V18: 17 | X18: 0 | Y18: 0 | Z18: 0 | AA18: 121472 | AB18: 121472 | AC18: 121472 | AD18: 0 | AE18: 0 | AF18: 0 | AH18: 0 | AI18: 5.84 | AK18: 0 | BC18: 5.84
A19: 205-03371 | C19: 205-03371 | D19: SEDIMENT, REMOVE | E19: 65 | F19: C.Y. | G19: 13.47 | H19: 875.55 | I19: 13.47 | J19: 875.55 | K19: 0 | L19: 0 | M19: 0 | N19: 0 | O19: 0 | P19: 0 | Q19: 0 | R19: 0 | S19: 0 | T19: 0 | U19: 200 | V19: 18 | X19: 0 | Y19: 0 | Z19: 0 | AA19: 876 | AB19: 876 | AC19: 876 | AD19: 0 | AE19: 0 | AF19: 0 | AH19: 0 | AI19: 13.47 | AK19: 0 | BC19: 13.47
A20: 205-06930 | C20: 205-06930 | D20: SPLASHPAD, RIPRAP | E20: 2.7 | F20: TON | G20: 44.77 | H20: 120.88 | I20: 44.77 | J20: 120.88 | K20: 0 | L20: 0 | M20: 0 | N20: 0 | O20: 0 | P20: 0 | Q20: 0 | R20: 0 | S20: 0 | T20: 0 | U20: 200 | V20: 19 | X20: 0 | Y20: 0 | Z20: 0 | AA20: 121 | AB20: 121 | AC20: 121 | AD20: 0 | AE20: 0 | AF20: 0 | AH20: 0 | AI20: 44.77 | AK20: 0 | BC20: 44.77
A21: 205-06931 | C21: 205-06931 | D21: TEMPORARY CHECK DAM, REVETMENT RIPRAP | E21: 750 | F21: TON | G21: 42.44 | H21: 31830 | I21: 42.44 | J21: 31830 | K21: 0 | L21: 0 | M21: 0 | N21: 0 | O21: 0 | P21: 0 | Q21: 0 | R21: 0 | S21: 0 | T21: 0 | U21: 200 | V21: 20 | X21: 0 | Y21: 0 | Z21: 0 | AA21: 31830 | AB21: 31830 | AC21: 31830 | AD21: 0 | AE21: 0 | AF21: 0 | AH21: 0 | AI21: 42.44 | AK21: 0 | BC21: 42.44
A22: 205-06936 | C22: 205-06936 | D22: TEMPORARY SEDIMENT TRAP | E22: 80 | F22: TON | G22: 40.58 | H22: 3246.4 | I22: 40.58 | J22: 3246.4 | K22: 0 | L22: 0 | M22: 0 | N22: 0 | O22: 0 | P22: 0 | Q22: 0 | R22: 0 | S22: 0 | T22: 0 | U22: 200 | V22: 21 | X22: 0 | Y22: 0 | Z22: 0 | AA22: 3246 | AB22: 3246 | AC22: 3246 | AD22: 0 | AE22: 0 | AF22: 0 | AH22: 0 | AI22: 40.58 | AK22: 0 | BC22: 40.58
A23: 205-06937 | C23: 205-06937 | D23: TEMPORARY SILT FENCE | E23: 15160 | F23: L.F. | G23: 1.58 | H23: 23952.8 | I23: 1.58 | J23: 23952.8 | K23: 0 | L23: 0 | M23: 0 | N23: 0 | O23: 0 | P23: 0 | Q23: 0 | R23: 0 | S23: 0 | T23: 0 | U23: 200 | V23: 22 | X23: 0 | Y23: 0 | Z23: 0 | AA23: 23953 | AB23: 23953 | AC23: 23953 | AD23: 0 | AE23: 0 | AF23: 0 | AH23: 0 | AI23: 1.58 | AK23: 0 | BC23: 1.58
A24: 205-06938 | C24: 205-06938 | D24: TEMPORARY SLOPE DRAIN | E24: 175 | F24: L.F. | G24: 16.92 | H24: 2961 | I24: 16.92 | J24: 2961 | K24: 0 | L24: 0 | M24: 0 | N24: 0 | O24: 0 | P24: 0 | Q24: 0 | R24: 0 | S24: 0 | T24: 0 | U24: 200 | V24: 23 | X24: 0 | Y24: 0 | Z24: 0 | AA24: 2961 | AB24: 2961 | AC24: 2961 | AD24: 0 | AE24: 0 | AF24: 0 | AH24: 0 | AI24: 16.92 | AK24: 0 | BC24: 16.92
A25: 207-08263 | C25: 207-08263 | D25: SUBGRADE TREATMENT, TYPE IA | E25: 65400 | F25: S.Y. | G25: 6.28 | H25: 410712 | I25: 6.28 | J25: 410712 | K25: 0 | L25: 0 | M25: 0 | N25: 0 | O25: 0 | P25: 0 | Q25: 0 | R25: 0 | S25: 0 | T25: 0 | U25: 200 | V25: 24 | X25: 0 | Y25: 0 | Z25: 0 | AA25: 410712 | AB25: 410712 | AC25: 410712 | AD25: 0 | AE25: 0 | AF25: 0 | AH25: 0 | AI25: 6.28 | AK25: 0 | BC25: 6.28
A26: 211-02050 | C26: 211-02050 | D26: B BORROW | E26: 35850 | F26: C.Y. | G26: 19.26 | H26: 690471 | I26: 19.26 | J26: 690471 | K26: 0 | L26: 0 | M26: 0 | N26: 0 | O26: 0 | P26: 0 | Q26: 0 | R26: 0 | S26: 0 | T26: 0 | U26: 200 | V26: 25 | X26: 0 | Y26: 0 | Z26: 0 | AA26: 690471 | AB26: 690471 | AC26: 690471 | AD26: 0 | AE26: 0 | AF26: 0 | AH26: 0 | AI26: 19.26 | AK26: 0 | BC26: 19.26
A27: 211-09264 | C27: 211-09264 | D27: STRUCTURAL BACKFILL, TYPE 1 | E27: 80 | F27: C.Y. | G27: 19.11 | H27: 1528.8 | I27: 19.11 | J27: 1528.8 | K27: 0 | L27: 0 | M27: 0 | N27: 0 | O27: 0 | P27: 0 | Q27: 0 | R27: 0 | S27: 0 | T27: 0 | U27: 200 | V27: 26 | X27: 0 | Y27: 0 | Z27: 0 | AA27: 1529 | AB27: 1529 | AC27: 1529 | AD27: 0 | AE27: 0 | AF27: 0 | AH27: 0 | AI27: 19.11 | AK27: 0 | BC27: 19.11
A28: 211-09266 | C28: 211-09266 | D28: STRUCTURAL BACKFILL, TYPE 3 | E28: 50900 | F28: C.Y. | G28: 22.07 | H28: 1123363 | I28: 22.07 | J28: 1123363 | K28: 0 | L28: 0 | M28: 0 | N28: 0 | O28: 0 | P28: 0 | Q28: 0 | R28: 0 | S28: 0 | T28: 0 | U28: 200 | V28: 27 | X28: 0 | Y28: 0 | Z28: 0 | AA28: 1123363 | AB28: 1123363 | AC28: 1123363 | AD28: 0 | AE28: 0 | AF28: 0 | AH28: 0 | AI28: 22.07 | AK28: 0 | BC28: 22.07
A29: 216-06397 | C29: 216-06397 | D29: WIRE MESH | E29: 415 | F29: S.Y. | G29: 31.75 | H29: 13176.25 | I29: 31.75 | J29: 13176.25 | K29: 0 | L29: 0 | M29: 0 | N29: 0 | O29: 0 | P29: 0 | Q29: 0 | R29: 0 | S29: 0 | T29: 0 | U29: 200 | V29: 28 | X29: 0 | Y29: 0 | Z29: 0 | AA29: 13176 | AB29: 13176 | AC29: 13176 | AD29: 0 | AE29: 0 | AF29: 0 | AH29: 0 | AI29: 31.75 | AK29: 0 | BC29: 31.75
A30: 302-07455 | C30: 302-07455 | D30: DENSE GRADED SUBBASE | E30: 148 | F30: C.Y. | G30: 58.34 | H30: 8634.32 | I30: 58.34 | J30: 8634.32 | K30: 0 | L30: 0 | M30: 0 | N30: 0 | O30: 0 | P30: 0 | Q30: 0 | R30: 0 | S30: 0 | T30: 0 | U30: 300 | V30: 29 | X30: 0 | Y30: 0 | Z30: 0 | AA30: 8634 | AB30: 8634 | AC30: 8634 | AD30: 0 | AE30: 0 | AF30: 0 | AH30: 0 | AI30: 58.34 | AK30: 0 | BC30: 58.34
A31: 302-08562 | C31: 302-08562 | D31: COARSE AGGREGATE, NO 8 | E31: 880 | F31: TON | G31: 29.49 | H31: 25951.2 | I31: 29.49 | J31: 25951.2 | K31: 0 | L31: 0 | M31: 0 | N31: 0 | O31: 0 | P31: 0 | Q31: 0 | R31: 0 | S31: 0 | T31: 0 | U31: 300 | V31: 30 | X31: 0 | Y31: 0 | Z31: 0 | AA31: 25951 | AB31: 25951 | AC31: 25951 | AD31: 0 | AE31: 0 | AF31: 0 | AH31: 0 | AI31: 29.49 | AK31: 0 | BC31: 29.49
A32: 303-01180 | C32: 303-01180 | D32: COMPACTED AGGREGATE, NO. 53 | E32: 6450 | F32: TON | G32: 20.46 | H32: 131967 | I32: 20.46 | J32: 131967 | K32: 0 | L32: 0 | M32: 0 | N32: 0 | O32: 0 | P32: 0 | Q32: 0 | R32: 0 | S32: 0 | T32: 0 | U32: 300 | V32: 31 | X32: 0 | Y32: 0 | Z32: 0 | AA32: 131967 | AB32: 131967 | AC32: 131967 | AD32: 0 | AE32: 0 | AF32: 0 | AH32: 0 | AI32: 20.46 | AK32: 0 | BC32: 20.46
A33: 306-08042 | C33: 306-08042 | D33: MILLING, SCARIFICATION/PROFILE | E33: 36100 | F33: S.Y. | G33: 0.47 | H33: 16967 | I33: 0.47 | J33: 16967 | K33: 0 | L33: 0 | M33: 0 | N33: 0 | O33: 0 | P33: 0 | Q33: 0 | R33: 0 | S33: 0 | T33: 0 | U33: 300 | V33: 32 | X33: 0 | Y33: 0 | Z33: 0 | AA33: 16967 | AB33: 16967 | AC33: 16967 | AD33: 0 | AE33: 0 | AF33: 0 | AH33: 0 | AI33: 0.47 | AK33: 0 | BC33: 0.47
A34: 401-06264 | C34: 401-06264 | D34: PROFILOGRAPH, HMA | E34: 1 | F34: L.S. | G34: 5027.78 | H34: 5027.78 | I34: 5027.78 | J34: 5027.78 | K34: 0 | L34: 0 | M34: 0 | N34: 0 | O34: 0 | P34: 0 | Q34: 0 | R34: 0 | S34: 0 | T34: 0 | U34: 400 | V34: 33 | X34: 0 | Y34: 0 | Z34: 0 | AA34: 5028 | AB34: 5028 | AC34: 5028 | AD34: 0 | AE34: 0 | AF34: 0 | AH34: 1 | AI34: 5027.78 | AK34: 0 | BC34: 5027.78
A35: 401-07335 | C35: 401-07335 | D35: QC/QA-HMA, 4, 76, SURFACE, 9.5 mm | E35: 7500 | F35: TON | G35: 84 | H35: 630000 | I35: 84 | J35: 630000 | K35: 0 | L35: 0 | M35: 0 | N35: 0 | O35: 0 | P35: 0 | Q35: 0 | R35: 0 | S35: 0 | T35: 0 | U35: 400 | V35: 34 | X35: 0 | Y35: 0 | Z35: 0 | AA35: 630000 | AB35: 630000 | AC35: 630000 | AD35: 0 | AE35: 0 | AF35: 0 | AH35: 0 | AI35: 84 | AK35: 0 | BC35: 84
A36: 401-07404 | C36: 401-07404 | D36: QC/QA-HMA, 4, 76, INTERMEDIATE, 19.0 mm | E36: 7900 | F36: TON | G36: 63 | H36: 497700 | I36: 63 | J36: 497700 | K36: 0 | L36: 0 | M36: 0 | N36: 0 | O36: 0 | P36: 0 | Q36: 0 | R36: 0 | S36: 0 | T36: 0 | U36: 400 | V36: 35 | X36: 0 | Y36: 0 | Z36: 0 | AA36: 497700 | AB36: 497700 | AC36: 497700 | AD36: 0 | AE36: 0 | AF36: 0 | AH36: 0 | AI36: 63 | AK36: 0 | BC36: 63
A37: 401-07409 | C37: 401-07409 | D37: QC/QA-HMA, 4, 64, BASE, 25.0 mm | E37: 28350 | F37: TON | G37: 52.53 | H37: 1489225.5 | I37: 52.53 | J37: 1489225.5 | K37: 0 | L37: 0 | M37: 0 | N37: 0 | O37: 0 | P37: 0 | Q37: 0 | R37: 0 | S37: 0 | T37: 0 | U37: 400 | V37: 36 | X37: 0 | Y37: 0 | Z37: 0 | AA37: 1489226 | AB37: 1489226 | AC37: 1489226 | AD37: 0 | AE37: 0 | AF37: 0 | AH37: 0 | AI37: 52.53 | AK37: 0 | BC37: 52.53
A38: 401-07429 | C38: 401-07429 | D38: QC/QA-HMA, 5, 76, INTERMEDIATE, OG, 19.0 mm | E38: 10500 | F38: TON | G38: 55.33 | H38: 580965 | I38: 55.33 | J38: 580965 | K38: 0 | L38: 0 | M38: 0 | N38: 0 | O38: 0 | P38: 0 | Q38: 0 | R38: 0 | S38: 0 | T38: 0 | U38: 400 | V38: 37 | X38: 0 | Y38: 0 | Z38: 0 | AA38: 580965 | AB38: 580965 | AC38: 580965 | AD38: 0 | AE38: 0 | AF38: 0 | AH38: 0 | AI38: 55.33 | AK38: 0 | BC38: 55.33
A39: 406-05520 | C39: 406-05520 | D39: ASPHALT FOR TACK COAT | E39: 80 | F39: TON | G39: 353.75 | H39: 28300 | I39: 353.75 | J39: 28300 | K39: 0 | L39: 0 | M39: 0 | N39: 0 | O39: 0 | P39: 0 | Q39: 0 | R39: 0 | S39: 0 | T39: 0 | U39: 400 | V39: 38 | X39: 0 | Y39: 0 | Z39: 0 | AA39: 28300 | AB39: 28300 | AC39: 28300 | AD39: 0 | AE39: 0 | AF39: 0 | AH39: 0 | AI39: 353.75 | AK39: 0 | BC39: 353.75
A40: 601-01128 | C40: 601-01128 | D40: GUARDRAIL, TRANSITION TYPE WGB | E40: 6 | F40: EACH | G40: 1328.82 | H40: 7972.92 | I40: 1328.82 | J40: 7972.92 | K40: 0 | L40: 0 | M40: 0 | N40: 0 | O40: 0 | P40: 0 | Q40: 0 | R40: 0 | S40: 0 | T40: 0 | U40: 600 | V40: 39 | X40: 0 | Y40: 0 | Z40: 0 | AA40: 7973 | AB40: 7973 | AC40: 7973 | AD40: 0 | AE40: 0 | AF40: 0 | AH40: 0 | AI40: 1328.82 | AK40: 0 | BC40: 1328.82
A41: 601-01522 | C41: 601-01522 | D41: GUARDRAIL, TRANSITION TYPE TGB | E41: 5 | F41: EACH | G41: 2055.17 | H41: 10275.85 | I41: 2055.17 | J41: 10275.85 | K41: 0 | L41: 0 | M41: 0 | N41: 0 | O41: 0 | P41: 0 | Q41: 0 | R41: 0 | S41: 0 | T41: 0 | U41: 600 | V41: 40 | X41: 0 | Y41: 0 | Z41: 0 | AA41: 10276 | AB41: 10276 | AC41: 10276 | AD41: 0 | AE41: 0 | AF41: 0 | AH41: 0 | AI41: 2055.17 | AK41: 0 | BC41: 2055.17
A42: 601-02241 | C42: 601-02241 | D42: GUARDRAIL, REMOVE | E42: 4800 | F42: L.F. | G42: 3.31 | H42: 15888 | I42: 3.31 | J42: 15888 | K42: 0 | L42: 0 | M42: 0 | N42: 0 | O42: 0 | P42: 0 | Q42: 0 | R42: 0 | S42: 0 | T42: 0 | U42: 600 | V42: 41 | X42: 0 | Y42: 0 | Z42: 0 | AA42: 15888 | AB42: 15888 | AC42: 15888 | AD42: 0 | AE42: 0 | AF42: 0 | AH42: 0 | AI42: 3.31 | AK42: 0 | BC42: 3.31
A43: 601-06233 | C43: 601-06233 | D43: IMPACT ATTENUATOR, ED, W1, TL-3 | E43: 1 | F43: EACH | G43: 8265.48 | H43: 8265.48 | I43: 8265.48 | J43: 8265.48 | K43: 0 | L43: 0 | M43: 0 | N43: 0 | O43: 0 | P43: 0 | Q43: 0 | R43: 0 | S43: 0 | T43: 0 | U43: 600 | V43: 42 | X43: 0 | Y43: 0 | Z43: 0 | AA43: 8265 | AB43: 8265 | AC43: 8265 | AD43: 0 | AE43: 0 | AF43: 0 | AH43: 0 | AI43: 8265.48 | AK43: 0 | BC43: 8265.48
A44: 601-06416 | C44: 601-06416 | D44: IMPACT ATTENUATOR SPARE PARTS PACKAGE, ED, W1, TL-3 | E44: 1 | F44: EACH | G44: 659 | H44: 659 | I44: 659 | J44: 659 | K44: 0 | L44: 0 | M44: 0 | N44: 0 | O44: 0 | P44: 0 | Q44: 0 | R44: 0 | S44: 0 | T44: 0 | U44: 600 | V44: 43 | X44: 0 | Y44: 0 | Z44: 0 | AA44: 659 | AB44: 659 | AC44: 659 | AD44: 0 | AE44: 0 | AF44: 0 | AH44: 0 | AI44: 659 | AK44: 0 | BC44: 659
A45: 601-08433 | C45: 601-08433 | D45: GUARDRAIL END TREATMENT, TYPE OS, SPARE PARTS PACKAGE, STAGE 1 | E45: 11 | F45: EACH | G45: 637.59 | H45: 7013.49 | I45: 637.59 | J45: 7013.49 | K45: 0 | L45: 0 | M45: 0 | N45: 0 | O45: 0 | P45: 0 | Q45: 0 | R45: 0 | S45: 0 | T45: 0 | U45: 600 | V45: 44 | X45: 0 | Y45: 0 | Z45: 0 | AA45: 7013 | AB45: 7013 | AC45: 7013 | AD45: 0 | AE45: 0 | AF45: 0 | AH45: 0 | AI45: 637.59 | AK45: 0 | BC45: 637.59
A46: 601-08434 | C46: 601-08434 | D46: GUARDRAIL END TREATMENT, TYPE OS, SPARE PARTS PACKAGE, STAGE 2 | E46: 13 | F46: EACH | G46: 1059.86 | H46: 13778.18 | I46: 1059.86 | J46: 13778.18 | K46: 0 | L46: 0 | M46: 0 | N46: 0 | O46: 0 | P46: 0 | Q46: 0 | R46: 0 | S46: 0 | T46: 0 | U46: 600 | V46: 45 | X46: 0 | Y46: 0 | Z46: 0 | AA46: 13778 | AB46: 13778 | AC46: 13778 | AD46: 0 | AE46: 0 | AF46: 0 | AH46: 0 | AI46: 1059.86 | AK46: 0 | BC46: 1059.86
A47: 601-09149 | C47: 601-09149 | D47: IMPACT ATTENUATOR, CR1, W1, TL-3 | E47: 3 | F47: EACH | G47: 26133.33 | H47: 78399.99 | I47: 26133.33 | J47: 78399.99 | K47: 0 | L47: 0 | M47: 0 | N47: 0 | O47: 0 | P47: 0 | Q47: 0 | R47: 0 | S47: 0 | T47: 0 | U47: 600 | V47: 46 | X47: 0 | Y47: 0 | Z47: 0 | AA47: 78400 | AB47: 78400 | AC47: 78400 | AD47: 0 | AE47: 0 | AF47: 0 | AH47: 0 | AI47: 26133.33 | AK47: 0 | BC47: 26133.33
A48: 601-94689 | C48: 601-94689 | D48: GUARDRAIL END TREATMENT, OS | E48: 15 | F48: EACH | G48: 2633.72 | H48: 39505.8 | I48: 2633.72 | J48: 39505.8 | K48: 0 | L48: 0 | M48: 0 | N48: 0 | O48: 0 | P48: 0 | Q48: 0 | R48: 0 | S48: 0 | T48: 0 | U48: 600 | V48: 47 | X48: 0 | Y48: 0 | Z48: 0 | AA48: 39506 | AB48: 39506 | AC48: 39506 | AD48: 0 | AE48: 0 | AF48: 0 | AH48: 0 | AI48: 2633.72 | AK48: 0 | BC48: 2633.72
A49: 601-99105 | C49: 601-99105 | D49: GUARDRAIL, W-BEAM, 6 FT 3 IN SPACING | E49: 5300 | F49: L.F. | G49: 19.62 | H49: 103986 | I49: 19.62 | J49: 103986 | K49: 0 | L49: 0 | M49: 0 | N49: 0 | O49: 0 | P49: 0 | Q49: 0 | R49: 0 | S49: 0 | T49: 0 | U49: 600 | V49: 48 | X49: 0 | Y49: 0 | Z49: 0 | AA49: 103986 | AB49: 103986 | AC49: 103986 | AD49: 0 | AE49: 0 | AF49: 0 | AH49: 0 | AI49: 19.62 | AK49: 0 | BC49: 19.62
A50: 602-06729 | C50: 602-06729 | D50: BARRIER DELINEATOR | E50: 131 | F50: EACH | G50: 16.11 | H50: 2110.41 | I50: 16.11 | J50: 2110.41 | K50: 0 | L50: 0 | M50: 0 | N50: 0 | O50: 0 | P50: 0 | Q50: 0 | R50: 0 | S50: 0 | T50: 0 | U50: 600 | V50: 49 | X50: 0 | Y50: 0 | Z50: 0 | AA50: 2110 | AB50: 2110 | AC50: 2110 | AD50: 0 | AE50: 0 | AF50: 0 | AH50: 0 | AI50: 16.11 | AK50: 0 | BC50: 16.11
A51: 602-08605 | C51: 602-08605 | D51: CONCRETE BARRIER, 33 IN | E51: 5900 | F51: L.F. | G51: 86.92 | H51: 512828 | I51: 86.92 | J51: 512828 | K51: 0 | L51: 0 | M51: 0 | N51: 0 | O51: 0 | P51: 0 | Q51: 0 | R51: 0 | S51: 0 | T51: 0 | U51: 600 | V51: 50 | X51: 0 | Y51: 0 | Z51: 0 | AA51: 512828 | AB51: 512828 | AC51: 512828 | AD51: 0 | AE51: 0 | AF51: 0 | AH51: 0 | AI51: 86.92 | AK51: 0 | BC51: 86.92
A52: 604-06411 | C52: 604-06411 | D52: IMPACT ATTENUATOR SPARE PARTS PACKAGE, CR, W1, TL-3 | E52: 3 | F52: EACH | G52: 550 | H52: 1650 | I52: 550 | J52: 1650 | K52: 0 | L52: 0 | M52: 0 | N52: 0 | O52: 0 | P52: 0 | Q52: 0 | R52: 0 | S52: 0 | T52: 0 | U52: 600 | V52: 51 | X52: 0 | Y52: 0 | Z52: 0 | AA52: 1650 | AB52: 1650 | AC52: 1650 | AD52: 0 | AE52: 0 | AF52: 0 | AH52: 0 | AI52: 550 | AK52: 0 | BC52: 550
A53: 605-06140 | C53: 605-06140 | D53: CURB AND GUTTER, CONCRETE | E53: 145 | F53: L.F. | G53: 15.5 | H53: 2247.5 | I53: 15.5 | J53: 2247.5 | K53: 0 | L53: 0 | M53: 0 | N53: 0 | O53: 0 | P53: 0 | Q53: 0 | R53: 0 | S53: 0 | T53: 0 | U53: 600 | V53: 52 | X53: 0 | Y53: 0 | Z53: 0 | AA53: 2248 | AB53: 2248 | AC53: 2248 | AD53: 0 | AE53: 0 | AF53: 0 | AH53: 0 | AI53: 15.5 | AK53: 0 | BC53: 15.5
A54: 606-07484 | C54: 606-07484 | D54: MILLED HMA SHOULDER CORRUGATIONS | E54: 39500 | F54: L.F. | G54: 0.19 | H54: 7505 | I54: 0.19 | J54: 7505 | K54: 0 | L54: 0 | M54: 0 | N54: 0 | O54: 0 | P54: 0 | Q54: 0 | R54: 0 | S54: 0 | T54: 0 | U54: 600 | V54: 53 | X54: 0 | Y54: 0 | Z54: 0 | AA54: 7505 | AB54: 7505 | AC54: 7505 | AD54: 0 | AE54: 0 | AF54: 0 | AH54: 0 | AI54: 0.19 | AK54: 0 | BC54: 0.19
A55: 609-06259 | C55: 609-06259 | D55: REINFORCED CONCRETE BRIDGE APPROACH 12 IN | E55: 880 | F55: S.Y. | G55: 78.3 | H55: 68904 | I55: 78.3 | J55: 68904 | K55: 0 | L55: 0 | M55: 0 | N55: 0 | O55: 0 | P55: 0 | Q55: 0 | R55: 0 | S55: 0 | T55: 0 | U55: 600 | V55: 54 | X55: 0 | Y55: 0 | Z55: 0 | AA55: 68904 | AB55: 68904 | AC55: 68904 | AD55: 0 | AE55: 0 | AF55: 0 | AH55: 0 | AI55: 78.3 | AK55: 0 | BC55: 78.3
A56: 615-06505 | C56: 615-06505 | D56: MONUMENT, B | E56: 45 | F56: EACH | G56: 671.47 | H56: 30216.15 | I56: 671.47 | J56: 30216.15 | K56: 0 | L56: 0 | M56: 0 | N56: 0 | O56: 0 | P56: 0 | Q56: 0 | R56: 0 | S56: 0 | T56: 0 | U56: 600 | V56: 55 | X56: 0 | Y56: 0 | Z56: 0 | AA56: 30216 | AB56: 30216 | AC56: 30216 | AD56: 0 | AE56: 0 | AF56: 0 | AH56: 0 | AI56: 671.47 | AK56: 0 | BC56: 671.47
A57: 615-06510 | C57: 615-06510 | D57: MONUMENT, C | E57: 6 | F57: EACH | G57: 470.75 | H57: 2824.5 | I57: 470.75 | J57: 2824.5 | K57: 0 | L57: 0 | M57: 0 | N57: 0 | O57: 0 | P57: 0 | Q57: 0 | R57: 0 | S57: 0 | T57: 0 | U57: 600 | V57: 56 | X57: 0 | Y57: 0 | Z57: 0 | AA57: 2825 | AB57: 2825 | AC57: 2825 | AD57: 0 | AE57: 0 | AF57: 0 | AH57: 0 | AI57: 470.75 | AK57: 0 | BC57: 470.75
A58: 615-06527 | C58: 615-06527 | D58: MONUMENT, SECTION CORNER | E58: 2 | F58: EACH | G58: 609.65 | H58: 1219.3 | I58: 609.65 | J58: 1219.3 | K58: 0 | L58: 0 | M58: 0 | N58: 0 | O58: 0 | P58: 0 | Q58: 0 | R58: 0 | S58: 0 | T58: 0 | U58: 600 | V58: 57 | X58: 0 | Y58: 0 | Z58: 0 | AA58: 1219 | AB58: 1219 | AC58: 1219 | AD58: 0 | AE58: 0 | AF58: 0 | AH58: 0 | AI58: 609.65 | AK58: 0 | BC58: 609.65
A59: 615-92498 | C59: 615-92498 | D59: BENCH MARK | E59: 1 | F59: EACH | G59: 388.33 | H59: 388.33 | I59: 388.33 | J59: 388.33 | K59: 0 | L59: 0 | M59: 0 | N59: 0 | O59: 0 | P59: 0 | Q59: 0 | R59: 0 | S59: 0 | T59: 0 | U59: 600 | V59: 58 | X59: 0 | Y59: 0 | Z59: 0 | AA59: 388 | AB59: 388 | AC59: 388 | AD59: 0 | AE59: 0 | AF59: 0 | AH59: 0 | AI59: 388.33 | AK59: 0 | BC59: 388.33
A60: 621-01004 | C60: 621-01004 | D60: MOBILIZATION AND DEMOBILIZATION FOR SEEDING | E60: 18 | F60: EACH | G60: 425.45 | H60: 7658.1 | I60: 425.45 | J60: 7658.1 | K60: 0 | L60: 0 | M60: 0 | N60: 0 | O60: 0 | P60: 0 | Q60: 0 | R60: 0 | S60: 0 | T60: 0 | U60: 600 | V60: 59 | X60: 0 | Y60: 0 | Z60: 0 | AA60: 7658 | AB60: 7658 | AC60: 7658 | AD60: 0 | AE60: 0 | AF60: 0 | AH60: 0 | AI60: 425.45 | AK60: 0 | BC60: 425.45
A61: 621-06545 | C61: 621-06545 | D61: FERTILIZER | E61: 7.2 | F61: TON | G61: 341.51 | H61: 2458.87 | I61: 341.51 | J61: 2458.87 | K61: 0 | L61: 0 | M61: 0 | N61: 0 | O61: 0 | P61: 0 | Q61: 0 | R61: 0 | S61: 0 | T61: 0 | U61: 600 | V61: 60 | X61: 0 | Y61: 0 | Z61: 0 | AA61: 2459 | AB61: 2459 | AC61: 2459 | AD61: 0 | AE61: 0 | AF61: 0 | AH61: 0 | AI61: 341.51 | AK61: 0 | BC61: 341.51
A62: 621-06554 | C62: 621-06554 | D62: SEED MIXTURE, U | E62: 2275 | F62: LBS | G62: 4.27 | H62: 9714.25 | I62: 4.27 | J62: 9714.25 | K62: 0 | L62: 0 | M62: 0 | N62: 0 | O62: 0 | P62: 0 | Q62: 0 | R62: 0 | S62: 0 | T62: 0 | U62: 600 | V62: 61 | X62: 0 | Y62: 0 | Z62: 0 | AA62: 9714 | AB62: 9714 | AC62: 9714 | AD62: 0 | AE62: 0 | AF62: 0 | AH62: 0 | AI62: 4.27 | AK62: 0 | BC62: 4.27
A63: 621-06557 | C63: 621-06557 | D63: SEED MIXTURE, T | E63: 1045 | F63: LBS | G63: 2.33 | H63: 2434.85 | I63: 2.33 | J63: 2434.85 | K63: 0 | L63: 0 | M63: 0 | N63: 0 | O63: 0 | P63: 0 | Q63: 0 | R63: 0 | S63: 0 | T63: 0 | U63: 600 | V63: 62 | X63: 0 | Y63: 0 | Z63: 0 | AA63: 2435 | AB63: 2435 | AC63: 2435 | AD63: 0 | AE63: 0 | AF63: 0 | AH63: 0 | AI63: 2.33 | AK63: 0 | BC63: 2.33
A64: 621-06565 | C64: 621-06565 | D64: MULCHING MATERIAL | E64: 42 | F64: TON | G64: 278.57 | H64: 11699.94 | I64: 278.57 | J64: 11699.94 | K64: 0 | L64: 0 | M64: 0 | N64: 0 | O64: 0 | P64: 0 | Q64: 0 | R64: 0 | S64: 0 | T64: 0 | U64: 600 | V64: 63 | X64: 0 | Y64: 0 | Z64: 0 | AA64: 11700 | AB64: 11700 | AC64: 11700 | AD64: 0 | AE64: 0 | AF64: 0 | AH64: 0 | AI64: 278.57 | AK64: 0 | BC64: 278.57
A65: 621-06574 | C65: 621-06574 | D65: SODDING | E65: 1675 | F65: S.Y. | G65: 3.15 | H65: 5276.25 | I65: 3.15 | J65: 5276.25 | K65: 0 | L65: 0 | M65: 0 | N65: 0 | O65: 0 | P65: 0 | Q65: 0 | R65: 0 | S65: 0 | T65: 0 | U65: 600 | V65: 64 | X65: 0 | Y65: 0 | Z65: 0 | AA65: 5276 | AB65: 5276 | AC65: 5276 | AD65: 0 | AE65: 0 | AF65: 0 | AH65: 0 | AI65: 3.15 | AK65: 0 | BC65: 3.15
A66: 628-09403 | C66: 628-09403 | D66: FIELD OFFICE, C | E66: 18 | F66: MONTH | G66: 2376.11 | H66: 42769.98 | I66: 2376.11 | J66: 42769.98 | K66: 0 | L66: 0 | M66: 0 | N66: 0 | O66: 0 | P66: 0 | Q66: 0 | R66: 0 | S66: 0 | T66: 0 | U66: 600 | V66: 65 | X66: 0 | Y66: 0 | Z66: 0 | AA66: 42770 | AB66: 42770 | AC66: 42770 | AD66: 0 | AE66: 0 | AF66: 0 | AH66: 0 | AI66: 2376.11 | AK66: 0 | AL66: =IF(AND(AH66=1,AG66<>"x",AG66<>""),"You can only use x",IF(AND(AH66=1,AG66="",AJ66<>""),"Put x to Calculate","")) ->  | BC66: 2376.11
A67: 701-01814 | C67: 701-01814 | D67: MOBILIZATION FOR DYNAMIC PILE MONITORING AND EQUIPMENT | E67: 2 | F67: EACH | G67: 1264.76 | H67: 2529.52 | I67: 1264.76 | J67: 2529.52 | K67: 0 | L67: 0 | M67: 0 | N67: 0 | O67: 0 | P67: 0 | Q67: 0 | R67: 0 | S67: 0 | T67: 0 | U67: 700 | V67: 66 | X67: 0 | Y67: 0 | Z67: 0 | AA67: 2530 | AB67: 2530 | AC67: 2530 | AD67: 0 | AE67: 0 | AF67: 0 | AH67: =IF(OR(LEFT(F67,2)="LS",LEFT(F67,3)="L.S"),1,0) -> 0 | AI67: =IF(G67="","",IF(AND(AG67<>"",AH67=1),0,G67)) -> 1264.76 | AK67: 0 | BC67: 1264.76
A68: =LEFT(C68,9) -> 701-05780 | C68: 701-05780 | D68: DRILLED SHAFT CONCRETE | E68: 350 | F68: C.Y. | G68: 526 | H68: 184100 | I68: 526 | J68: 184100 | K68: 0 | L68: 0 | M68: 0 | N68: 0 | O68: 0 | P68: 0 | Q68: 0 | R68: 0 | S68: 0 | T68: 0 | U68: 700 | V68: 67 | X68: 0 | Y68: 0 | Z68: 0 | AA68: 184100 | AB68: 184100 | AC68: 184100 | AD68: 0 | AE68: 0 | AF68: 0 | AH68: 0 | AI68: 526 | AK68: 0 | BC68: 526
A69: 701-05781 | C69: 701-05781 | D69: UNCLASSIFIED SHAFT EXCAVATION | E69: 180 | F69: C.Y. | G69: 345 | H69: 62100 | I69: 345 | J69: 62100 | K69: 0 | L69: 0 | M69: 0 | N69: 0 | O69: 0 | P69: 0 | Q69: 0 | R69: 0 | S69: 0 | T69: 0 | U69: 700 | V69: 68 | X69: 0 | Y69: 0 | Z69: 0 | AA69: 62100 | AB69: 62100 | AC69: 62100 | AD69: 0 | AE69: 0 | AF69: 0 | AH69: 0 | AI69: 345 | AK69: 0 | BC69: 345
A70: 701-05782 | C70: 701-05782 | D70: UNCLASSIFIED EXTRA DEPTH EXCAVATION | E70: 50 | F70: C.Y. | G70: 509 | H70: 25450 | I70: 509 | J70: 25450 | K70: 0 | L70: 0 | M70: 0 | N70: 0 | O70: 0 | P70: 0 | Q70: 0 | R70: 0 | S70: 0 | T70: 0 | U70: 700 | V70: 69 | X70: 0 | Y70: 0 | Z70: 0 | AA70: 25450 | AB70: 25450 | AC70: 25450 | AD70: 0 | AE70: 0 | AF70: 0 | AH70: 0 | AI70: 509 | AK70: 0 | BC70: 509
A71: 701-05783 | C71: 701-05783 | D71: OBSTRUCTIONS | E71: 30 | F71: HOUR | G71: 703 | H71: 21090 | I71: 703 | J71: 21090 | K71: 0 | L71: 0 | M71: 0 | N71: 0 | O71: 0 | P71: 0 | Q71: 0 | R71: 0 | S71: 0 | T71: 0 | U71: 700 | V71: 70 | X71: 0 | Y71: 0 | Z71: 0 | AA71: 21090 | AB71: 21090 | AC71: 21090 | AD71: 0 | AE71: 0 | AF71: 0 | AH71: 0 | AI71: 703 | AK71: 0 | BC71: 703
A72: 701-06011 | C72: 701-06011 | D72: DYNAMIC PILE LOAD TEST | E72: 4 | F72: EACH | G72: 1829.48 | H72: 7317.92 | I72: 1829.48 | J72: 7317.92 | K72: 0 | L72: 0 | M72: 0 | N72: 0 | O72: 0 | P72: 0 | Q72: 0 | R72: 0 | S72: 0 | T72: 0 | U72: 700 | V72: 71 | X72: 0 | Y72: 0 | Z72: 0 | AA72: 7318 | AB72: 7318 | AC72: 7318 | AD72: 0 | AE72: 0 | AF72: 0 | AH72: 0 | AI72: 1829.48 | AK72: 0 | BC72: 1829.48
A73: 701-09557 | C73: 701-09557 | D73: TEST PILE, DYNAMIC, PRODUCTION | E73: 350 | F73: L.F. | G73: 48.69 | H73: 17041.5 | I73: 48.69 | J73: 17041.5 | K73: 0 | L73: 0 | M73: 0 | N73: 0 | O73: 0 | P73: 0 | Q73: 0 | R73: 0 | S73: 0 | T73: 0 | U73: 700 | V73: 72 | X73: 0 | Y73: 0 | Z73: 0 | AA73: 17042 | AB73: 17042 | AC73: 17042 | AD73: 0 | AE73: 0 | AF73: 0 | AH73: 0 | AI73: 48.69 | AK73: 0 | BC73: 48.69
A74: 701-09559 | C74: 701-09559 | D74: TEST PILE, DYNAMIC, RESTRIKE | E74: 5 | F74: EACH | G74: 1356.13 | H74: 6780.65 | I74: 1356.13 | J74: 6780.65 | K74: 0 | L74: 0 | M74: 0 | N74: 0 | O74: 0 | P74: 0 | Q74: 0 | R74: 0 | S74: 0 | T74: 0 | U74: 700 | V74: 73 | X74: 0 | Y74: 0 | Z74: 0 | AA74: 6781 | AB74: 6781 | AC74: 6781 | AD74: 0 | AE74: 0 | AF74: 0 | AH74: 0 | AI74: 1356.13 | AK74: 0 | BC74: 1356.13
A75: 701-09683 | C75: 701-09683 | D75: PILE SHOE, HP 12 X 74 | E75: 85 | F75: EACH | G75: 150 | H75: 12750 | I75: 150 | J75: 12750 | K75: 0 | L75: 0 | M75: 0 | N75: 0 | O75: 0 | P75: 0 | Q75: 0 | R75: 0 | S75: 0 | T75: 0 | U75: 700 | V75: 74 | X75: 0 | Y75: 0 | Z75: 0 | AA75: 12750 | AB75: 12750 | AC75: 12750 | AD75: 0 | AE75: 0 | AF75: 0 | AH75: 0 | AI75: 150 | AK75: =IF(G75="","",IF(AND(AG75="x",AH75=1),AJ75*$AQ$1,0)) -> 0 | BC75: 150
A76: 701-95780 | C76: 701-95780 | D76: PILE, STEEL H, HP 12 IN X 74 | E76: 5780 | F76: L.F. | G76: 27.33 | H76: 157967.4 | I76: 27.33 | J76: 157967.4 | K76: 0 | L76: 0 | M76: 0 | N76: 0 | O76: 0 | P76: 0 | Q76: 0 | R76: 0 | S76: 0 | T76: 0 | U76: 700 | V76: 75 | X76: 0 | Y76: 0 | Z76: 0 | AA76: 157967 | AB76: 157967 | AC76: 157967 | AD76: 0 | AE76: 0 | AF76: 0 | AH76: 0 | AI76: 27.33 | AK76: 0 | BC76: 27.33
A77: 702-51005 | C77: 702-51005 | D77: CONCRETE, A, SUBSTRUCTURE | E77: 815 | F77: C.Y. | G77: 545.87 | H77: 444884.05 | I77: 545.87 | J77: 444884.05 | K77: 0 | L77: 0 | M77: 0 | N77: 0 | O77: 0 | P77: 0 | Q77: 0 | R77: 0 | S77: 0 | T77: 0 | U77: 700 | V77: 76 | X77: 0 | Y77: 0 | Z77: 0 | AA77: 444884 | AB77: 444884 | AC77: 444884 | AD77: 0 | AE77: 0 | AF77: 0 | AH77: 0 | AI77: 545.87 | AK77: 0 | BC77: 545.87
A78: 702-51110 | C78: 702-51110 | D78: GRATES, BASINS, AND FITTINGS, CAST IRON | E78: 10200 | F78: LBS | G78: 5.15 | H78: 52530 | I78: 5.15 | J78: 52530 | K78: 0 | L78: 0 | M78: 0 | N78: 0 | O78: 0 | P78: 0 | Q78: 0 | R78: 0 | S78: 0 | T78: 0 | U78: 700 | V78: 77 | X78: 0 | Y78: 0 | Z78: 0 | AA78: 52530 | AB78: 52530 | AC78: 52530 | AD78: 0 | AE78: 0 | AF78: 0 | AH78: 0 | AI78: 5.15 | AK78: 0 | BC78: 5.15
A79: 703-06028 | C79: 703-06028 | D79: REINFORCING BARS | E79: 89175 | F79: LBS | G79: 0.9 | H79: 80257.5 | I79: 0.9 | J79: 80257.5 | K79: 0 | L79: 0 | M79: 0 | N79: 0 | O79: 0 | P79: 0 | Q79: 0 | R79: 0 | S79: 0 | T79: 0 | U79: 700 | V79: 78 | X79: 0 | Y79: 0 | Z79: 0 | AA79: 80258 | AB79: 80258 | AC79: 80258 | AD79: 0 | AE79: 0 | AF79: 0 | AH79: 0 | AI79: 0.9 | AK79: 0 | BC79: 0.9
A80: 703-06029 | C80: 703-06029 | D80: REINFORCING BARS, EPOXY COATED | E80: 388200 | F80: LBS | G80: 0.94 | H80: 364908 | I80: 0.94 | J80: 364908 | K80: 0 | L80: 0 | M80: 0 | N80: 0 | O80: 0 | P80: 0 | Q80: 0 | R80: 0 | S80: 0 | T80: 0 | U80: 700 | V80: 79 | X80: 0 | Y80: 0 | Z80: 0 | AA80: 364908 | AB80: 364908 | AC80: 364908 | AD80: 0 | AE80: 0 | AF80: 0 | AH80: 0 | AI80: 0.94 | AK80: 0 | BC80: 0.94
A81: 704-51002 | C81: 704-51002 | D81: CONCRETE, C, SUPERSTRUCTURE | E81: 955 | F81: C.Y. | G81: 558.25 | H81: 533128.75 | I81: 558.25 | J81: 533128.75 | K81: 0 | L81: 0 | M81: 0 | N81: 0 | O81: 0 | P81: 0 | Q81: 0 | R81: 0 | S81: 0 | T81: 0 | U81: 700 | V81: 80 | X81: 0 | Y81: 0 | Z81: 0 | AA81: 533129 | AB81: 533129 | AC81: 533129 | AD81: 0 | AE81: 0 | AF81: 0 | AH81: 0 | AI81: 558.25 | AK81: 0 | BC81: 558.25
A82: 706-05734 | C82: 706-05734 | D82: CONCRETE BRIDGE RAILING TRANSITION, TBT | E82: 8 | F82: EACH | G82: 1836 | H82: 14688 | I82: 1836 | J82: 14688 | K82: 0 | L82: 0 | M82: 0 | N82: 0 | O82: 0 | P82: 0 | Q82: 0 | R82: 0 | S82: 0 | T82: 0 | U82: 700 | V82: 81 | X82: 0 | Y82: 0 | Z82: 0 | AA82: 14688 | AB82: 14688 | AC82: 14688 | AD82: 0 | AE82: 0 | AF82: 0 | AH82: 0 | AI82: 1836 | AK82: 0 | BC82: 1836
A83: 706-08496 | C83: 706-08496 | D83: REINFORCED CONCRETE MOMENT SLAB, 12 IN | E83: 3350 | F83: S.Y. | G83: 85.42 | H83: 286157 | I83: 85.42 | J83: 286157 | K83: 0 | L83: 0 | M83: 0 | N83: 0 | O83: 0 | P83: 0 | Q83: 0 | R83: 0 | S83: 0 | T83: 0 | U83: 700 | V83: 82 | X83: 0 | Y83: 0 | Z83: 0 | AA83: 286157 | AB83: 286157 | AC83: 286157 | AD83: 0 | AE83: 0 | AF83: 0 | AH83: 0 | AI83: 85.42 | AK83: 0 | BC83: 85.42
A84: 706-51020 | C84: 706-51020 | D84: RAILING, CONCRETE, C | E84: 240 | F84: C.Y. | G84: 496.11 | H84: 119066.4 | I84: 496.11 | J84: 119066.4 | K84: 0 | L84: 0 | M84: 0 | N84: 0 | O84: 0 | P84: 0 | Q84: 0 | R84: 0 | S84: 0 | T84: 0 | U84: 700 | V84: 83 | X84: 0 | Y84: 0 | Z84: 0 | AA84: 119066 | AB84: 119066 | AC84: 119066 | AD84: 0 | AE84: 0 | AF84: 0 | AH84: 0 | AI84: 496.11 | AK84: 0 | BC84: 496.11
A85: 707-01065 | C85: 707-01065 | D85: POST-TENSIONING | E85: 1 | F85: L.S. | G85: 324000 | H85: 324000 | I85: 324000 | J85: 324000 | K85: 0 | L85: 0 | M85: 0 | N85: 0 | O85: 0 | P85: 0 | Q85: 0 | R85: 0 | S85: 0 | T85: 0 | U85: 700 | V85: 84 | X85: 0 | Y85: 0 | Z85: 0 | AA85: 324000 | AB85: 324000 | AC85: 324000 | AD85: 0 | AE85: 0 | AF85: 0 | AH85: 1 | AI85: 324000 | AK85: 0 | BC85: 324000
A86: 709-51821 | C86: 709-51821 | D86: SURFACE SEAL | E86: 1 | F86: L.S. | G86: 9377.93 | H86: 9377.93 | I86: 9377.93 | J86: 9377.93 | K86: 0 | L86: 0 | M86: 0 | N86: 0 | O86: 0 | P86: 0 | Q86: 0 | R86: 0 | S86: 0 | T86: 0 | U86: 700 | V86: 85 | X86: 0 | Y86: 0 | Z86: 0 | AA86: 9378 | AB86: 9378 | AC86: 9378 | AD86: 0 | AE86: 0 | AF86: 0 | AH86: 1 | AI86: 9377.93 | AK86: 0 | BC86: 9377.93
A87: 711-51038 | C87: 711-51038 | D87: STRUCTURAL STEEL | E87: 1 | F87: L.S. | G87: 569071.25 | H87: 569071.25 | I87: 569071.25 | J87: 569071.25 | K87: 0 | L87: 0 | M87: 0 | N87: 0 | O87: 0 | P87: 0 | Q87: 0 | R87: 0 | S87: 0 | T87: 0 | U87: 700 | V87: 86 | X87: 0 | Y87: 0 | Z87: 0 | AA87: 569071 | AB87: 569071 | AC87: 569071 | AD87: 0 | AE87: 0 | AF87: 0 | AH87: 1 | AI87: 569071.25 | AK87: 0 | BC87: 569071.25
A88: 713-51820 | C88: 713-51820 | D88: TEMPORARY SUPPORT | E88: 1 | F88: L.S. | G88: 962.56 | H88: 962.56 | I88: 962.56 | J88: 962.56 | K88: 0 | L88: 0 | M88: 0 | N88: 0 | O88: 0 | P88: 0 | Q88: 0 | R88: 0 | S88: 0 | T88: 0 | U88: 700 | V88: 87 | X88: 0 | Y88: 0 | Z88: 0 | AA88: 963 | AB88: 963 | AC88: 963 | AD88: 0 | AE88: 0 | AF88: 0 | AH88: 1 | AI88: 962.56 | AK88: 0 | BC88: 962.56
A89: 714-44240 | C89: 714-44240 | D89: Item Not Found in the Current Pay Item | E89: 150 | F89: C.Y. | G89: 635.64 | H89: 95346 | I89: 635.64 | J89: 95346 | K89: 0 | L89: 0 | M89: 0 | N89: 0 | O89: 0 | P89: 0 | Q89: 0 | R89: 0 | S89: 0 | T89: 0 | U89: 700 | V89: 88 | X89: 0 | Y89: 0 | Z89: 0 | AA89: 95346 | AB89: 95346 | AC89: 95346 | AD89: 0 | AE89: 0 | AF89: 0 | AH89: 0 | AI89: 635.64 | AK89: 0 | BC89: 635.64
A90: 715-02246 | C90: 715-02246 | D90: PIPE END SECTION, 48 IN | E90: 2 | F90: EACH | G90: 2547.81 | H90: 5095.62 | I90: 2547.81 | J90: 5095.62 | K90: 0 | L90: 0 | M90: 0 | N90: 0 | O90: 0 | P90: 0 | Q90: 0 | R90: 0 | S90: 0 | T90: 0 | U90: 700 | V90: 89 | X90: 0 | Y90: 0 | Z90: 0 | AA90: 5096 | AB90: 5096 | AC90: 5096 | AD90: 0 | AE90: 0 | AF90: 0 | AH90: 0 | AI90: 2547.81 | AK90: 0 | BC90: 2547.81
A91: 715-05048 | C91: 715-05048 | D91: PIPE, TYPE 4 CIRCULAR 6 IN | E91: 25000 | F91: L.F. | G91: 3.49 | H91: 87250 | I91: 3.49 | J91: 87250 | K91: 0 | L91: 0 | M91: 0 | N91: 0 | O91: 0 | P91: 0 | Q91: 0 | R91: 0 | S91: 0 | T91: 0 | U91: 700 | V91: 90 | X91: 0 | Y91: 0 | Z91: 0 | AA91: 87250 | AB91: 87250 | AC91: 87250 | AD91: 0 | AE91: 0 | AF91: 0 | AH91: 0 | AI91: 3.49 | AK91: 0 | BC91: 3.49
A92: 715-05053 | C92: 715-05053 | D92: PIPE, UNDERDRAIN, OUTLET 6 IN | E92: 1100 | F92: L.F. | G92: 14.15 | H92: 15565 | I92: 14.15 | J92: 15565 | K92: 0 | L92: 0 | M92: 0 | N92: 0 | O92: 0 | P92: 0 | Q92: 0 | R92: 0 | S92: 0 | T92: 0 | U92: 700 | V92: 91 | X92: 0 | Y92: 0 | Z92: 0 | AA92: 15565 | AB92: 15565 | AC92: 15565 | AD92: 0 | AE92: 0 | AF92: 0 | AH92: 0 | AI92: 14.15 | AK92: 0 | BC92: 14.15
A93: 715-05152 | C93: 715-05152 | D93: PIPE, TYPE 2 CIRCULAR 18 IN | E93: 55 | F93: L.F. | G93: 39.62 | H93: 2179.1 | I93: 39.62 | J93: 2179.1 | K93: 0 | L93: 0 | M93: 0 | N93: 0 | O93: 0 | P93: 0 | Q93: 0 | R93: 0 | S93: 0 | T93: 0 | U93: 700 | V93: 92 | X93: 0 | Y93: 0 | Z93: 0 | AA93: 2179 | AB93: 2179 | AC93: 2179 | AD93: 0 | AE93: 0 | AF93: 0 | AH93: 0 | AI93: 39.62 | AK93: 0 | BC93: 39.62
A94: 715-05161 | C94: 715-05161 | D94: PIPE, TYPE 2 CIRCULAR 48 IN | E94: 125 | F94: L.F. | G94: 156.57 | H94: 19571.25 | I94: 156.57 | J94: 19571.25 | K94: 0 | L94: 0 | M94: 0 | N94: 0 | O94: 0 | P94: 0 | Q94: 0 | R94: 0 | S94: 0 | T94: 0 | U94: 700 | V94: 93 | X94: 0 | Y94: 0 | Z94: 0 | AA94: 19571 | AB94: 19571 | AC94: 19571 | AD94: 0 | AE94: 0 | AF94: 0 | AH94: 0 | AI94: 156.57 | AK94: 0 | BC94: 156.57
A95: 715-05177 | C95: 715-05177 | D95: PIPE, TYPE 3 CIRCULAR 36 IN | E95: 200 | F95: L.F. | G95: 94 | H95: 18800 | I95: 94 | J95: 18800 | K95: 0 | L95: 0 | M95: 0 | N95: 0 | O95: 0 | P95: 0 | Q95: 0 | R95: 0 | S95: 0 | T95: 0 | U95: 700 | V95: 94 | X95: 0 | Y95: 0 | Z95: 0 | AA95: 18800 | AB95: 18800 | AC95: 18800 | AD95: 0 | AE95: 0 | AF95: 0 | AH95: 0 | AI95: 94 | AK95: 0 | BC95: 94
A96: 715-05422 | C96: 715-05422 | D96: PIPE, SLOTTED DRAIN, 12 IN | E96: 1500 | F96: L.F. | G96: 62.62 | H96: 93930 | I96: 62.62 | J96: 93930 | K96: 0 | L96: 0 | M96: 0 | N96: 0 | O96: 0 | P96: 0 | Q96: 0 | R96: 0 | S96: 0 | T96: 0 | U96: 700 | V96: 95 | X96: 0 | Y96: 0 | Z96: 0 | AA96: 93930 | AB96: 93930 | AC96: 93930 | AD96: 0 | AE96: 0 | AF96: 0 | AH96: 0 | AI96: 62.62 | AK96: 0 | BC96: 62.62
A97: 715-05428 | C97: 715-05428 | D97: PIPE SLOTTED VANE DRAIN, 12 IN | E97: 2775 | F97: L.F. | G97: 112.15 | H97: 311216.25 | I97: 112.15 | J97: 311216.25 | K97: 0 | L97: 0 | M97: 0 | N97: 0 | O97: 0 | P97: 0 | Q97: 0 | R97: 0 | S97: 0 | T97: 0 | U97: 700 | V97: 96 | X97: 0 | Y97: 0 | Z97: 0 | AA97: 311216 | AB97: 311216 | AC97: 311216 | AD97: 0 | AE97: 0 | AF97: 0 | AH97: 0 | AI97: 112.15 | AK97: 0 | BC97: 112.15
A98: 715-05756 | C98: 715-05756 | D98: PIPE EXTENSION, CIRCULAR 12 IN | E98: 450 | F98: L.F. | G98: 35 | H98: 15750 | I98: 35 | J98: 15750 | K98: 0 | L98: 0 | M98: 0 | N98: 0 | O98: 0 | P98: 0 | Q98: 0 | R98: 0 | S98: 0 | T98: 0 | U98: 700 | V98: 97 | X98: 0 | Y98: 0 | Z98: 0 | AA98: 15750 | AB98: 15750 | AC98: 15750 | AD98: 0 | AE98: 0 | AF98: 0 | AH98: 0 | AI98: 35 | AK98: 0 | BC98: 35
A99: 715-05757 | C99: 715-05757 | D99: PIPE EXTENSION, CIRCULAR 36 IN | E99: 75 | F99: L.F. | G99: 61 | H99: 4575 | I99: 61 | J99: 4575 | K99: 0 | L99: 0 | M99: 0 | N99: 0 | O99: 0 | P99: 0 | Q99: 0 | R99: 0 | S99: 0 | T99: 0 | U99: 700 | V99: 98 | X99: 0 | Y99: 0 | Z99: 0 | AA99: 4575 | AB99: 4575 | AC99: 4575 | AD99: 0 | AE99: 0 | AF99: 0 | AH99: 0 | AI99: 61 | AK99: 0 | BC99: 61
A100: 715-06337 | C100: 715-06337 | D100: PIPE EXTENSION, CIRCULAR, 48 IN | E100: 35 | F100: L.F. | G100: 215 | H100: 7525 | I100: 215 | J100: 7525 | K100: 0 | L100: 0 | M100: 0 | N100: 0 | O100: 0 | P100: 0 | Q100: 0 | R100: 0 | S100: 0 | T100: 0 | U100: 700 | V100: 99 | X100: 0 | Y100: 0 | Z100: 0 | AA100: 7525 | AB100: 7525 | AC100: 7525 | AD100: 0 | AE100: 0 | AF100: 0 | AH100: 0 | AI100: 215 | AK100: 0 | BC100: 215
A101: 715-46000 | C101: 715-46000 | D101: PIPE END SECTION, 12 IN | E101: 8 | F101: EACH | G101: 403.07 | H101: 3224.56 | I101: 403.07 | J101: 3224.56 | K101: 0 | L101: 0 | M101: 0 | N101: 0 | O101: 0 | P101: 0 | Q101: 0 | R101: 0 | S101: 0 | T101: 0 | U101: 700 | V101: 100 | X101: 0 | Y101: 0 | Z101: 0 | AA101: 3225 | AB101: 3225 | AC101: 3225 | AD101: 0 | AE101: 0 | AF101: 0 | AH101: 0 | AI101: 403.07 | AK101: 0 | BC101: 403.07
A102: 715-46010 | C102: 715-46010 | D102: PIPE END SECTION, 18 IN | E102: 1 | F102: EACH | G102: 477.62 | H102: 477.62 | I102: 477.62 | J102: 477.62 | K102: 0 | L102: 0 | M102: 0 | N102: 0 | O102: 0 | P102: 0 | Q102: 0 | R102: 0 | S102: 0 | T102: 0 | U102: 700 | V102: 101 | X102: 0 | Y102: 0 | Z102: 0 | AA102: 478 | AB102: 478 | AC102: 478 | AD102: 0 | AE102: 0 | AF102: 0 | AH102: 0 | AI102: 477.62 | AK102: 0 | BC102: 477.62
A103: 715-46040 | C103: 715-46040 | D103: PIPE END SECTION, 36 IN | E103: 3 | F103: EACH | G103: 1056.89 | H103: 3170.67 | I103: 1056.89 | J103: 3170.67 | K103: 0 | L103: 0 | M103: 0 | N103: 0 | O103: 0 | P103: 0 | Q103: 0 | R103: 0 | S103: 0 | T103: 0 | U103: 700 | V103: 102 | X103: 0 | Y103: 0 | Z103: 0 | AA103: 3171 | AB103: 3171 | AC103: 3171 | AD103: 0 | AE103: 0 | AF103: 0 | AH103: 0 | AI103: 1056.89 | AK103: 0 | BC103: 1056.89
A104: 718-06528 | C104: 718-06528 | D104: OUTLET PROTECTOR, 1 | E104: 35 | F104: EACH | G104: 592.49 | H104: 20737.15 | I104: 592.49 | J104: 20737.15 | K104: 0 | L104: 0 | M104: 0 | N104: 0 | O104: 0 | P104: 0 | Q104: 0 | R104: 0 | S104: 0 | T104: 0 | U104: 700 | V104: 103 | X104: 0 | Y104: 0 | Z104: 0 | AA104: 20737 | AB104: 20737 | AC104: 20737 | AD104: 0 | AE104: 0 | AF104: 0 | AH104: 0 | AI104: 592.49 | AK104: 0 | BC104: 592.49
A105: 718-06529 | C105: 718-06529 | D105: OUTLET PROTECTOR, 2 | E105: 34 | F105: EACH | G105: 561.63 | H105: 19095.42 | I105: 561.63 | J105: 19095.42 | K105: 0 | L105: 0 | M105: 0 | N105: 0 | O105: 0 | P105: 0 | Q105: 0 | R105: 0 | S105: 0 | T105: 0 | U105: 700 | V105: 104 | X105: 0 | Y105: 0 | Z105: 0 | AA105: 19095 | AB105: 19095 | AC105: 19095 | AD105: 0 | AE105: 0 | AF105: 0 | AH105: 0 | AI105: 561.63 | AK105: 0 | BC105: 561.63
A106: 718-06532 | C106: 718-06532 | D106: VIDEO INSPECTION FOR UNDERDRAINS | E106: 9000 | F106: L.F. | G106: 0.99 | H106: 8910 | I106: 0.99 | J106: 8910 | K106: 0 | L106: 0 | M106: 0 | N106: 0 | O106: 0 | P106: 0 | Q106: 0 | R106: 0 | S106: 0 | T106: 0 | U106: 700 | V106: 105 | X106: 0 | Y106: 0 | Z106: 0 | AA106: 8910 | AB106: 8910 | AC106: 8910 | AD106: 0 | AE106: 0 | AF106: 0 | AH106: 0 | AI106: 0.99 | AK106: 0 | BC106: 0.99
A107: 718-52610 | C107: 718-52610 | D107: AGGREGATE FOR UNDERDRAINS | E107: 2310 | F107: C.Y. | G107: 33.68 | H107: 77800.8 | I107: 33.68 | J107: 77800.8 | K107: 0 | L107: 0 | M107: 0 | N107: 0 | O107: 0 | P107: 0 | Q107: 0 | R107: 0 | S107: 0 | T107: 0 | U107: 700 | V107: 106 | X107: 0 | Y107: 0 | Z107: 0 | AA107: 77801 | AB107: 77801 | AC107: 77801 | AD107: 0 | AE107: 0 | AF107: 0 | AH107: 0 | AI107: 33.68 | AK107: 0 | BC107: 33.68
A108: 718-99153 | C108: 718-99153 | D108: GEOTEXTILES FOR UNDERDRAIN | E108: 22550 | F108: S.Y. | G108: 1.14 | H108: 25707 | I108: 1.14 | J108: 25707 | K108: 0 | L108: 0 | M108: 0 | N108: 0 | O108: 0 | P108: 0 | Q108: 0 | R108: 0 | S108: 0 | T108: 0 | U108: 700 | V108: 107 | X108: 0 | Y108: 0 | Z108: 0 | AA108: 25707 | AB108: 25707 | AC108: 25707 | AD108: 0 | AE108: 0 | AF108: 0 | AH108: 0 | AI108: 1.14 | AK108: 0 | BC108: 1.14
A109: 720-07302 | C109: 720-07302 | D109: INLET, TYPE HA, WITH SLOTTED DRAIN | E109: 28 | F109: EACH | G109: 3150 | H109: 88200 | I109: 3150 | J109: 88200 | K109: 0 | L109: 0 | M109: 0 | N109: 0 | O109: 0 | P109: 0 | Q109: 0 | R109: 0 | S109: 0 | T109: 0 | U109: 700 | V109: 108 | X109: 0 | Y109: 0 | Z109: 0 | AA109: 88200 | AB109: 88200 | AC109: 88200 | AD109: 0 | AE109: 0 | AF109: 0 | AH109: 0 | AI109: 3150 | AK109: 0 | BC109: 3150
A110: 720-45030 | C110: 720-45030 | D110: INLET, E7 | E110: 2 | F110: EACH | G110: 1415.55 | H110: 2831.1 | I110: 1415.55 | J110: 2831.1 | K110: 0 | L110: 0 | M110: 0 | N110: 0 | O110: 0 | P110: 0 | Q110: 0 | R110: 0 | S110: 0 | T110: 0 | U110: 700 | V110: 109 | X110: 0 | Y110: 0 | Z110: 0 | AA110: 2831 | AB110: 2831 | AC110: 2831 | AD110: 0 | AE110: 0 | AF110: 0 | AH110: 0 | AI110: 1415.55 | AK110: 0 | BC110: 1415.55
A111: 720-45065 | C111: 720-45065 | D111: INLET, N12 | E111: 1 | F111: EACH | G111: 2793.57 | H111: 2793.57 | I111: 2793.57 | J111: 2793.57 | K111: 0 | L111: 0 | M111: 0 | N111: 0 | O111: 0 | P111: 0 | Q111: 0 | R111: 0 | S111: 0 | T111: 0 | U111: 700 | V111: 110 | X111: 0 | Y111: 0 | Z111: 0 | AA111: 2794 | AB111: 2794 | AC111: 2794 | AD111: 0 | AE111: 0 | AF111: 0 | AH111: 0 | AI111: 2793.57 | AK111: 0 | BC111: 2793.57
A112: 722-51842 | C112: 722-51842 | D112: BRIDGE DECK OVERLAY | E112: 1200 | F112: S.Y. | G112: 68.3 | H112: 81960 | I112: 68.3 | J112: 81960 | K112: 0 | L112: 0 | M112: 0 | N112: 0 | O112: 0 | P112: 0 | Q112: 0 | R112: 0 | S112: 0 | T112: 0 | U112: 700 | V112: 111 | X112: 0 | Y112: 0 | Z112: 0 | AA112: 81960 | AB112: 81960 | AC112: 81960 | AD112: 0 | AE112: 0 | AF112: 0 | AH112: 0 | AI112: 68.3 | AK112: 0 | BC112: 68.3
A113: 722-51846 | C113: 722-51846 | D113: BRIDGE DECK OVERLAY, ADDITIONAL | E113: 4 | F113: C.Y. | G113: 530.42 | H113: 2121.68 | I113: 530.42 | J113: 2121.68 | K113: 0 | L113: 0 | M113: 0 | N113: 0 | O113: 0 | P113: 0 | Q113: 0 | R113: 0 | S113: 0 | T113: 0 | U113: 700 | V113: 112 | X113: 0 | Y113: 0 | Z113: 0 | AA113: 2122 | AB113: 2122 | AC113: 2122 | AD113: 0 | AE113: 0 | AF113: 0 | AH113: 0 | AI113: 530.42 | AK113: 0 | BC113: 530.42
A114: 722-60824 | C114: 722-60824 | D114: SURFACE MILLING | E114: 1250 | F114: S.Y. | G114: 4.44 | H114: 5550 | I114: 4.44 | J114: 5550 | K114: 0 | L114: 0 | M114: 0 | N114: 0 | O114: 0 | P114: 0 | Q114: 0 | R114: 0 | S114: 0 | T114: 0 | U114: 700 | V114: 113 | X114: 0 | Y114: 0 | Z114: 0 | AA114: 5550 | AB114: 5550 | AC114: 5550 | AD114: 0 | AE114: 0 | AF114: 0 | AH114: 0 | AI114: 4.44 | AK114: 0 | BC114: 4.44
A115: 724-51925 | C115: 724-51925 | D115: STRUCTURAL EXPANSION JOINT, SS | E115: 198 | F115: L.F. | G115: 160.16 | H115: 31711.68 | I115: 160.16 | J115: 31711.68 | K115: 0 | L115: 0 | M115: 0 | N115: 0 | O115: 0 | P115: 0 | Q115: 0 | R115: 0 | S115: 0 | T115: 0 | U115: 700 | V115: 114 | X115: 0 | Y115: 0 | Z115: 0 | AA115: 31712 | AB115: 31712 | AC115: 31712 | AD115: 0 | AE115: 0 | AF115: 0 | AH115: 0 | AI115: 160.16 | AK115: 0 | BC115: 160.16
A116: 726-92406 | C116: 726-92406 | D116: BEARING ASSEMBLY, ELASTOMERIC | E116: 16 | F116: EACH | G116: 1110 | H116: 17760 | I116: 1110 | J116: 17760 | K116: 0 | L116: 0 | M116: 0 | N116: 0 | O116: 0 | P116: 0 | Q116: 0 | R116: 0 | S116: 0 | T116: 0 | U116: 700 | V116: 115 | X116: 0 | Y116: 0 | Z116: 0 | AA116: 17760 | AB116: 17760 | AC116: 17760 | AD116: 0 | AE116: 0 | AF116: 0 | AH116: 0 | AI116: 1110 | AK116: 0 | BC116: 1110
A117: 731-06223 | C117: 731-06223 | D117: SOIL NAILED WALL | E117: 275 | F117: S.Y. | G117: 508 | H117: 139700 | I117: 508 | J117: 139700 | K117: 0 | L117: 0 | M117: 0 | N117: 0 | O117: 0 | P117: 0 | Q117: 0 | R117: 0 | S117: 0 | T117: 0 | U117: 700 | V117: 116 | X117: 0 | Y117: 0 | Z117: 0 | AA117: 139700 | AB117: 139700 | AC117: 139700 | AD117: 0 | AE117: 0 | AF117: 0 | AH117: 0 | AI117: 508 | AK117: 0 | BC117: 508
A118: 731-07016 | C118: 731-07016 | D118: FACE PANELS, WIRE | E118: 15000 | F118: S.F. | G118: 14 | H118: 210000 | I118: 14 | J118: 210000 | K118: 0 | L118: 0 | M118: 0 | N118: 0 | O118: 0 | P118: 0 | Q118: 0 | R118: 0 | S118: 0 | T118: 0 | U118: 700 | V118: 117 | X118: 0 | Y118: 0 | Z118: 0 | AA118: 210000 | AB118: 210000 | AC118: 210000 | AD118: 0 | AE118: 0 | AF118: 0 | AH118: 0 | AI118: 14 | AK118: 0 | BC118: 14
A119: 731-93945 | C119: 731-93945 | D119: FACE PANELS, CONCRETE | E119: 65000 | F119: S.F. | G119: 12.8 | H119: 832000 | I119: 12.8 | J119: 832000 | K119: 0 | L119: 0 | M119: 0 | N119: 0 | O119: 0 | P119: 0 | Q119: 0 | R119: 0 | S119: 0 | T119: 0 | U119: 700 | V119: 118 | X119: 0 | Y119: 0 | Z119: 0 | AA119: 832000 | AB119: 832000 | AC119: 832000 | AD119: 0 | AE119: 0 | AF119: 0 | AH119: 0 | AI119: 12.8 | AK119: 0 | BC119: 12.8
A120: 731-93946 | C120: 731-93946 | D120: WALL ERECTION | E120: 76000 | F120: S.F. | G120: 5.17 | H120: 392920 | I120: 5.17 | J120: 392920 | K120: 0 | L120: 0 | M120: 0 | N120: 0 | O120: 0 | P120: 0 | Q120: 0 | R120: 0 | S120: 0 | T120: 0 | U120: 700 | V120: 119 | X120: 0 | Y120: 0 | Z120: 0 | AA120: 392920 | AB120: 392920 | AC120: 392920 | AD120: 0 | AE120: 0 | AF120: 0 | AH120: 0 | AI120: 5.17 | AK120: 0 | BC120: 5.17
A121: 731-93947 | C121: 731-93947 | D121: LEVELING PAD, CONCRETE | E121: 2200 | F121: L.F. | G121: 31.36 | H121: 68992 | I121: 31.36 | J121: 68992 | K121: 0 | L121: 0 | M121: 0 | N121: 0 | O121: 0 | P121: 0 | Q121: 0 | R121: 0 | S121: 0 | T121: 0 | U121: 700 | V121: 120 | X121: 0 | Y121: 0 | Z121: 0 | AA121: 68992 | AB121: 68992 | AC121: 68992 | AD121: 0 | AE121: 0 | AF121: 0 | AH121: 0 | AI121: 31.36 | AK121: 0 | BC121: 31.36
A122: 801-03290 | C122: 801-03290 | D122: CONSTRUCTION SIGN, C | E122: 2 | F122: EACH | G122: 190.73 | H122: 381.46 | I122: 190.73 | J122: 381.46 | K122: 0 | L122: 0 | M122: 0 | N122: 0 | O122: 0 | P122: 0 | Q122: 0 | R122: 0 | S122: 0 | T122: 0 | U122: 800 | V122: 121 | X122: 0 | Y122: 0 | Z122: 0 | AA122: 381 | AB122: 381 | AC122: 381 | AD122: 0 | AE122: 0 | AF122: 0 | AH122: 0 | AI122: 190.73 | AK122: 0 | BC122: 190.73
A123: 801-06207 | C123: 801-06207 | D123: TEMPORARY PAVEMENT MARKING, REMOVABLE, 4 IN | E123: 27000 | F123: L.F. | G123: 0.85 | H123: 22950 | I123: 0.85 | J123: 22950 | K123: 0 | L123: 0 | M123: 0 | N123: 0 | O123: 0 | P123: 0 | Q123: 0 | R123: 0 | S123: 0 | T123: 0 | U123: 800 | V123: 122 | X123: 0 | Y123: 0 | Z123: 0 | AA123: 22950 | AB123: 22950 | AC123: 22950 | AD123: 0 | AE123: 0 | AF123: 0 | AH123: 0 | AI123: 0.85 | AK123: 0 | BC123: 0.85
A124: 801-06625 | C124: 801-06625 | D124: DETOUR ROUTE MARKER ASSEMBLY | E124: 15 | F124: EACH | G124: 97.97 | H124: 1469.55 | I124: 97.97 | J124: 1469.55 | K124: 0 | L124: 0 | M124: 0 | N124: 0 | O124: 0 | P124: 0 | Q124: 0 | R124: 0 | S124: 0 | T124: 0 | U124: 800 | V124: 123 | X124: 0 | Y124: 0 | Z124: 0 | AA124: 1470 | AB124: 1470 | AC124: 1470 | AD124: 0 | AE124: 0 | AF124: 0 | AH124: 0 | AI124: 97.97 | AK124: 0 | BC124: 97.97
A125: 801-06640 | C125: 801-06640 | D125: CONSTRUCTION SIGN, A | E125: 37 | F125: EACH | G125: 142.49 | H125: 5272.13 | I125: 142.49 | J125: 5272.13 | K125: 0 | L125: 0 | M125: 0 | N125: 0 | O125: 0 | P125: 0 | Q125: 0 | R125: 0 | S125: 0 | T125: 0 | U125: 800 | V125: 124 | X125: 0 | Y125: 0 | Z125: 0 | AA125: 5272 | AB125: 5272 | AC125: 5272 | AD125: 0 | AE125: 0 | AF125: 0 | AH125: 0 | AI125: 142.49 | AK125: 0 | BC125: 142.49
A126: 801-06645 | C126: 801-06645 | D126: CONSTRUCTION SIGN, B | E126: 11 | F126: EACH | G126: 66.6 | H126: 732.6 | I126: 66.6 | J126: 732.6 | K126: 0 | L126: 0 | M126: 0 | N126: 0 | O126: 0 | P126: 0 | Q126: 0 | R126: 0 | S126: 0 | T126: 0 | U126: 800 | V126: 125 | X126: 0 | Y126: 0 | Z126: 0 | AA126: 733 | AB126: 733 | AC126: 733 | AD126: 0 | AE126: 0 | AF126: 0 | AH126: 0 | AI126: 66.6 | AK126: 0 | BC126: 66.6
A127: 801-06710 | C127: 801-06710 | D127: FLASHING ARROW SIGN | E127: 365 | F127: DAY | G127: 9.76 | H127: 3562.4 | I127: 9.76 | J127: 3562.4 | K127: 0 | L127: 0 | M127: 0 | N127: 0 | O127: 0 | P127: 0 | Q127: 0 | R127: 0 | S127: 0 | T127: 0 | U127: 800 | V127: 126 | X127: 0 | Y127: 0 | Z127: 0 | AA127: 3562 | AB127: 3562 | AC127: 3562 | AD127: 0 | AE127: 0 | AF127: 0 | AH127: 0 | AI127: 9.76 | AK127: 0 | BC127: 9.76
A128: 801-06775 | C128: 801-06775 | D128: MAINTAINING TRAFFIC | E128: 1 | F128: L.S. | G128: 47332.89 | H128: 47332.89 | I128: 47332.89 | J128: 47332.89 | K128: 0 | L128: 0 | M128: 0 | N128: 0 | O128: 0 | P128: 0 | Q128: 0 | R128: 0 | S128: 0 | T128: 0 | U128: 800 | V128: 127 | X128: 0 | Y128: 0 | Z128: 0 | AA128: 47333 | AB128: 47333 | AC128: 47333 | AD128: 0 | AE128: 0 | AF128: 0 | AH128: 1 | AI128: 47332.89 | AK128: 0 | BC128: 47332.89
A129: 801-07024 | C129: 801-07024 | D129: ENERGY ABSORBING TERMINAL, CZ, TL-3 | E129: 4 | F129: EACH | G129: 6587.49 | H129: 26349.96 | I129: 6587.49 | J129: 26349.96 | K129: 0 | L129: 0 | M129: 0 | N129: 0 | O129: 0 | P129: 0 | Q129: 0 | R129: 0 | S129: 0 | T129: 0 | U129: 800 | V129: 128 | X129: 0 | Y129: 0 | Z129: 0 | AA129: 26350 | AB129: 26350 | AC129: 26350 | AD129: 0 | AE129: 0 | AF129: 0 | AH129: 0 | AI129: 6587.49 | AK129: 0 | BC129: 6587.49
A130: 801-07119 | C130: 801-07119 | D130: BARRICADE, III-B | E130: 85 | F130: L.F. | G130: 14.32 | H130: 1217.2 | I130: 14.32 | J130: 1217.2 | K130: 0 | L130: 0 | M130: 0 | N130: 0 | O130: 0 | P130: 0 | Q130: 0 | R130: 0 | S130: 0 | T130: 0 | U130: 800 | V130: 129 | X130: 0 | Y130: 0 | Z130: 0 | AA130: 1217 | AB130: 1217 | AC130: 1217 | AD130: 0 | AE130: 0 | AF130: 0 | AH130: 0 | AI130: 14.32 | AK130: 0 | AL130: =IF(AND(AH130=1,AG130<>"x",AG130<>""),"You can only use x",IF(AND(AH130=1,AG130="",AJ130<>""),"Put x to Calculate","")) ->  | BC130: 14.32
A131: 801-08401 | C131: 801-08401 | D131: TEMPORARY TRAFFIC BARRIER, TYPE 2 | E131: 9500 | F131: L.F. | G131: 19.45 | H131: 184775 | I131: 19.45 | J131: 184775 | K131: 0 | L131: 0 | M131: 0 | N131: 0 | O131: 0 | P131: 0 | Q131: 0 | R131: 0 | S131: 0 | T131: 0 | U131: 800 | V131: 130 | X131: 0 | Y131: 0 | Z131: 0 | AA131: 184775 | AB131: 184775 | AC131: 184775 | AD131: 0 | AE131: 0 | AF131: 0 | AH131: =IF(OR(LEFT(F131,2)="LS",LEFT(F131,3)="L.S"),1,0) -> 0 | AI131: =IF(G131="","",IF(AND(AG131<>"",AH131=1),0,G131)) -> 19.45 | AK131: 0 | BC131: 19.45
A132: =LEFT(C132,9) -> 802-02158 | C132: 802-02158 | D132: SIGN, PANEL, REMOVE AND REINSTALL | E132: 1 | F132: EACH | G132: 412.5 | H132: 412.5 | I132: 412.5 | J132: 412.5 | K132: 0 | L132: 0 | M132: 0 | N132: 0 | O132: 0 | P132: 0 | Q132: 0 | R132: 0 | S132: 0 | T132: 0 | U132: 800 | V132: 131 | X132: 0 | Y132: 0 | Z132: 0 | AA132: 413 | AB132: 413 | AC132: 413 | AD132: 0 | AE132: 0 | AF132: 0 | AH132: 0 | AI132: 412.5 | AK132: 0 | BC132: 412.5
A133: 802-03783 | C133: 802-03783 | D133: SIGN, PANEL, REMOVE | E133: 13 | F133: EACH | G133: 135 | H133: 1755 | I133: 135 | J133: 1755 | K133: 0 | L133: 0 | M133: 0 | N133: 0 | O133: 0 | P133: 0 | Q133: 0 | R133: 0 | S133: 0 | T133: 0 | U133: 800 | V133: 132 | X133: 0 | Y133: 0 | Z133: 0 | AA133: 1755 | AB133: 1755 | AC133: 1755 | AD133: 0 | AE133: 0 | AF133: 0 | AH133: 0 | AI133: 135 | AK133: 0 | BC133: 135
A134: 802-05701 | C134: 802-05701 | D134: SIGN POST, SQUARE, TYPE 1, REINFORCED ANCHOR BASE | E134: 45 | F134: L.F. | G134: 11.08 | H134: 498.6 | I134: 11.08 | J134: 498.6 | K134: 0 | L134: 0 | M134: 0 | N134: 0 | O134: 0 | P134: 0 | Q134: 0 | R134: 0 | S134: 0 | T134: 0 | U134: 800 | V134: 133 | X134: 0 | Y134: 0 | Z134: 0 | AA134: 499 | AB134: 499 | AC134: 499 | AD134: 0 | AE134: 0 | AF134: 0 | AH134: 0 | AI134: 11.08 | AK134: 0 | BC134: 11.08
A135: 802-05702 | C135: 802-05702 | D135: SIGN POST, SQUARE, TYPE 2, REINFORCED ANCHOR BASE | E135: 350 | F135: L.F. | G135: 13.42 | H135: 4697 | I135: 13.42 | J135: 4697 | K135: 0 | L135: 0 | M135: 0 | N135: 0 | O135: 0 | P135: 0 | Q135: 0 | R135: 0 | S135: 0 | T135: 0 | U135: 800 | V135: 134 | X135: 0 | Y135: 0 | Z135: 0 | AA135: 4697 | AB135: 4697 | AC135: 4697 | AD135: 0 | AE135: 0 | AF135: 0 | AH135: 0 | AI135: 13.42 | AK135: 0 | BC135: 13.42
A136: 802-05703 | C136: 802-05703 | D136: SIGN POST, SQUARE, TYPE 3, REINFORCED ANCHOR BASE | E136: 56 | F136: L.F. | G136: 20 | H136: 1120 | I136: 20 | J136: 1120 | K136: 0 | L136: 0 | M136: 0 | N136: 0 | O136: 0 | P136: 0 | Q136: 0 | R136: 0 | S136: 0 | T136: 0 | U136: 800 | V136: 135 | X136: 0 | Y136: 0 | Z136: 0 | AA136: 1120 | AB136: 1120 | AC136: 1120 | AD136: 0 | AE136: 0 | AF136: 0 | AH136: 0 | AI136: 20 | AK136: 0 | BC136: 20
A137: 802-07057 | C137: 802-07057 | D137: SIGN, PANEL, WITH LEGEND | E137: 1050 | F137: S.F. | G137: 15.07 | H137: 15823.5 | I137: 15.07 | J137: 15823.5 | K137: 0 | L137: 0 | M137: 0 | N137: 0 | O137: 0 | P137: 0 | Q137: 0 | R137: 0 | S137: 0 | T137: 0 | U137: 800 | V137: 136 | X137: 0 | Y137: 0 | Z137: 0 | AA137: 15824 | AB137: 15824 | AC137: 15824 | AD137: 0 | AE137: 0 | AF137: 0 | AH137: 0 | AI137: 15.07 | AK137: 0 | BC137: 15.07
A138: 802-09709 | C138: 802-09709 | D138: BOX TRUSS SIGN STRUCTURE FOUNDATION 33 IN HEIGHT | E138: 10 | F138: EACH | G138: 0 | H138: 0 | I138: 0 | J138: 0 | K138: 0 | L138: 0 | M138: 0 | N138: 0 | O138: 0 | P138: 0 | Q138: 0 | R138: 0 | S138: 0 | T138: 0 | U138: 800 | V138: 137 | X138: 0 | Y138: 0 | Z138: 0 | AA138: 0 | AB138: 0 | AC138: 0 | AD138: 0 | AE138: 0 | AF138: 0 | AH138: 0 | AI138: 0 | AK138: 0 | BC138: 0
A139: 802-09715 | C139: 802-09715 | D139: OVERHEAD SIGN STRUCTURE, D | E139: 5 | F139: EACH | G139: 5000 | H139: 25000 | I139: 5000 | J139: 25000 | K139: 0 | L139: 0 | M139: 0 | N139: 0 | O139: 0 | P139: 0 | Q139: 0 | R139: 0 | S139: 0 | T139: 0 | U139: 800 | V139: 138 | X139: 0 | Y139: 0 | Z139: 0 | AA139: 25000 | AB139: 25000 | AC139: 25000 | AD139: 0 | AE139: 0 | AF139: 0 | AH139: 0 | AI139: 5000 | AK139: =IF(G139="","",IF(AND(AG139="x",AH139=1),AJ139*$AQ$1,0)) -> 0 | BC139: 5000
A140: 802-09838 | C140: 802-09838 | D140: SIGN, SHEET, WITH LEGEND 0.080" | E140: 210 | F140: S.F. | G140: 10.22 | H140: 2146.2 | I140: 10.22 | J140: 2146.2 | K140: 0 | L140: 0 | M140: 0 | N140: 0 | O140: 0 | P140: 0 | Q140: 0 | R140: 0 | S140: 0 | T140: 0 | U140: 800 | V140: 139 | X140: 0 | Y140: 0 | Z140: 0 | AA140: 2146 | AB140: 2146 | AC140: 2146 | AD140: 0 | AE140: 0 | AF140: 0 | AH140: 0 | AI140: 10.22 | AK140: 0 | BC140: 10.22
A141: 802-09840 | C141: 802-09840 | D141: SIGN, SHEET, WITH LEGEND 0.100 IN THICKNESS | E141: 44 | F141: S.F. | G141: 10.18 | H141: 447.92 | I141: 10.18 | J141: 447.92 | K141: 0 | L141: 0 | M141: 0 | N141: 0 | O141: 0 | P141: 0 | Q141: 0 | R141: 0 | S141: 0 | T141: 0 | U141: 800 | V141: 140 | X141: 0 | Y141: 0 | Z141: 0 | AA141: 448 | AB141: 448 | AC141: 448 | AD141: 0 | AE141: 0 | AF141: 0 | AH141: 0 | AI141: 10.18 | AK141: 0 | BC141: 10.18
A142: 804-06725 | C142: 804-06725 | D142: DELINEATOR WITH POST, D1 | E142: 130 | F142: EACH | G142: 27 | H142: 3510 | I142: 27 | J142: 3510 | K142: 0 | L142: 0 | M142: 0 | N142: 0 | O142: 0 | P142: 0 | Q142: 0 | R142: 0 | S142: 0 | T142: 0 | U142: 800 | V142: 141 | X142: 0 | Y142: 0 | Z142: 0 | AA142: 3510 | AB142: 3510 | AC142: 3510 | AD142: 0 | AE142: 0 | AF142: 0 | AH142: 0 | AI142: 27 | AK142: 0 | BC142: 27
A143: 804-06771 | C143: 804-06771 | D143: DELINEATOR POST, FLEXIBLE | E143: 75 | F143: EACH | G143: 43.18 | H143: 3238.5 | I143: 43.18 | J143: 3238.5 | K143: 0 | L143: 0 | M143: 0 | N143: 0 | O143: 0 | P143: 0 | Q143: 0 | R143: 0 | S143: 0 | T143: 0 | U143: 800 | V143: 142 | X143: 0 | Y143: 0 | Z143: 0 | AA143: 3239 | AB143: 3239 | AC143: 3239 | AD143: 0 | AE143: 0 | AF143: 0 | AH143: 0 | AI143: 43.18 | AK143: 0 | BC143: 43.18
A144: 805-02328 | C144: 805-02328 | D144: SIGNAL CABLE, 1C/14 GA | E144: 800 | F144: L.F. | G144: 0.32 | H144: 256 | I144: 0.32 | J144: 256 | K144: 0 | L144: 0 | M144: 0 | N144: 0 | O144: 0 | P144: 0 | Q144: 0 | R144: 0 | S144: 0 | T144: 0 | U144: 800 | V144: 143 | X144: 0 | Y144: 0 | Z144: 0 | AA144: 256 | AB144: 256 | AC144: 256 | AD144: 0 | AE144: 0 | AF144: 0 | AH144: 0 | AI144: 0.32 | AK144: 0 | BC144: 0.32
A145: 805-09042 | C145: 805-09042 | D145: Item Not Found in the Current Pay Item | E145: 230 | F145: L.F. | G145: 0.7 | H145: 161 | I145: 0.7 | J145: 161 | K145: 0 | L145: 0 | M145: 0 | N145: 0 | O145: 0 | P145: 0 | Q145: 0 | R145: 0 | S145: 0 | T145: 0 | U145: 800 | V145: 144 | X145: 0 | Y145: 0 | Z145: 0 | AA145: 161 | AB145: 161 | AC145: 161 | AD145: 0 | AE145: 0 | AF145: 0 | AH145: 0 | AI145: 0.7 | AK145: 0 | BC145: 0.7
A146: 805-78205 | C146: 805-78205 | D146: TRAFFIC SIGNAL HEAD, 3 FACE, 12 IN RED, AMBER, GREEN | E146: 2 | F146: EACH | G146: 527.76 | H146: 1055.52 | I146: 527.76 | J146: 1055.52 | K146: 0 | L146: 0 | M146: 0 | N146: 0 | O146: 0 | P146: 0 | Q146: 0 | R146: 0 | S146: 0 | T146: 0 | U146: 800 | V146: 145 | X146: 0 | Y146: 0 | Z146: 0 | AA146: 1056 | AB146: 1056 | AC146: 1056 | AD146: 0 | AE146: 0 | AF146: 0 | AH146: 0 | AI146: 527.76 | AK146: 0 | BC146: 527.76
A147: 805-78485 | C147: 805-78485 | D147: SIGNAL CABLE, 5C/14GA | E147: 175 | F147: L.F. | G147: 1.68 | H147: 294 | I147: 1.68 | J147: 294 | K147: 0 | L147: 0 | M147: 0 | N147: 0 | O147: 0 | P147: 0 | Q147: 0 | R147: 0 | S147: 0 | T147: 0 | U147: 800 | V147: 146 | X147: 0 | Y147: 0 | Z147: 0 | AA147: 294 | AB147: 294 | AC147: 294 | AD147: 0 | AE147: 0 | AF147: 0 | AH147: 0 | AI147: 1.68 | AK147: 0 | BC147: 1.68
A148: 805-78490 | C148: 805-78490 | D148: SIGNAL CABLE, 7C/14GA | E148: 210 | F148: L.F. | G148: 1.78 | H148: 373.8 | I148: 1.78 | J148: 373.8 | K148: 0 | L148: 0 | M148: 0 | N148: 0 | O148: 0 | P148: 0 | Q148: 0 | R148: 0 | S148: 0 | T148: 0 | U148: 800 | V148: 147 | X148: 0 | Y148: 0 | Z148: 0 | AA148: 374 | AB148: 374 | AC148: 374 | AD148: 0 | AE148: 0 | AF148: 0 | AH148: 0 | AI148: 1.78 | AK148: 0 | BC148: 1.78
A149: 805-78510 | C149: 805-78510 | D149: SIGNAL CABLE, 2C/16GA., SHIELDED | E149: 645 | F149: L.F. | G149: 0.97 | H149: 625.65 | I149: 0.97 | J149: 625.65 | K149: 0 | L149: 0 | M149: 0 | N149: 0 | O149: 0 | P149: 0 | Q149: 0 | R149: 0 | S149: 0 | T149: 0 | U149: 800 | V149: 148 | X149: 0 | Y149: 0 | Z149: 0 | AA149: 626 | AB149: 626 | AC149: 626 | AD149: 0 | AE149: 0 | AF149: 0 | AH149: 0 | AI149: 0.97 | AK149: 0 | BC149: 0.97
A150: 805-78785 | C150: 805-78785 | D150: SIGNAL DETECTOR HOUSING | E150: 2 | F150: EACH | G150: 655.21 | H150: 1310.42 | I150: 655.21 | J150: 1310.42 | K150: 0 | L150: 0 | M150: 0 | N150: 0 | O150: 0 | P150: 0 | Q150: 0 | R150: 0 | S150: 0 | T150: 0 | U150: 800 | V150: 149 | X150: 0 | Y150: 0 | Z150: 0 | AA150: 1310 | AB150: 1310 | AC150: 1310 | AD150: 0 | AE150: 0 | AF150: 0 | AH150: 0 | AI150: 655.21 | AK150: 0 | BC150: 655.21
A151: 805-78795 | C151: 805-78795 | D151: SAW CUT FOR ROADWAY LOOP AND SEALANT | E151: 232 | F151: L.F. | G151: 7.65 | H151: 1774.8 | I151: 7.65 | J151: 1774.8 | K151: 0 | L151: 0 | M151: 0 | N151: 0 | O151: 0 | P151: 0 | Q151: 0 | R151: 0 | S151: 0 | T151: 0 | U151: 800 | V151: 150 | X151: 0 | Y151: 0 | Z151: 0 | AA151: 1775 | AB151: 1775 | AC151: 1775 | AD151: 0 | AE151: 0 | AF151: 0 | AH151: 0 | AI151: 7.65 | AK151: 0 | BC151: 7.65
A152: 805-92504 | C152: 805-92504 | D152: LOOP DETECTOR DELAY AMPLIFIER, 2 CHANNEL | E152: 2 | F152: EACH | G152: 236.84 | H152: 473.68 | I152: 236.84 | J152: 473.68 | K152: 0 | L152: 0 | M152: 0 | N152: 0 | O152: 0 | P152: 0 | Q152: 0 | R152: 0 | S152: 0 | T152: 0 | U152: 800 | V152: 151 | X152: 0 | Y152: 0 | Z152: 0 | AA152: 474 | AB152: 474 | AC152: 474 | AD152: 0 | AE152: 0 | AF152: 0 | AH152: 0 | AI152: 236.84 | AK152: 0 | BC152: 236.84
A153: 807-01122 | C153: 807-01122 | D153: LIGHT POLE, HIGH MAST, RELOCATE | E153: 1 | F153: EACH | G153: 1520 | H153: 1520 | I153: 1520 | J153: 1520 | K153: 0 | L153: 0 | M153: 0 | N153: 0 | O153: 0 | P153: 0 | Q153: 0 | R153: 0 | S153: 0 | T153: 0 | U153: 800 | V153: 152 | X153: 0 | Y153: 0 | Z153: 0 | AA153: 1520 | AB153: 1520 | AC153: 1520 | AD153: 0 | AE153: 0 | AF153: 0 | AH153: 0 | AI153: 1520 | AK153: 0 | BC153: 1520
A154: 807-01606 | C154: 807-01606 | D154: HIGH MAST TOWER WINCH DRIVE | E154: 1 | F154: EACH | G154: 2534 | H154: 2534 | I154: 2534 | J154: 2534 | K154: 0 | L154: 0 | M154: 0 | N154: 0 | O154: 0 | P154: 0 | Q154: 0 | R154: 0 | S154: 0 | T154: 0 | U154: 800 | V154: 153 | X154: 0 | Y154: 0 | Z154: 0 | AA154: 2534 | AB154: 2534 | AC154: 2534 | AD154: 0 | AE154: 0 | AF154: 0 | AH154: 0 | AI154: 2534 | AK154: 0 | BC154: 2534
A155: 807-02191 | C155: 807-02191 | D155: HANDHOLE, LIGHTING | E155: 10 | F155: EACH | G155: 741.36 | H155: 7413.6 | I155: 741.36 | J155: 7413.6 | K155: 0 | L155: 0 | M155: 0 | N155: 0 | O155: 0 | P155: 0 | Q155: 0 | R155: 0 | S155: 0 | T155: 0 | U155: 800 | V155: 154 | X155: 0 | Y155: 0 | Z155: 0 | AA155: 7414 | AB155: 7414 | AC155: 7414 | AD155: 0 | AE155: 0 | AF155: 0 | AH155: 0 | AI155: 741.36 | AK155: 0 | BC155: 741.36
A156: 807-02193 | C156: 807-02193 | D156: LIGHT STANDARD FOUNDATION, 3FT DIAMETER X 8FT | E156: 17 | F156: EACH | G156: 825.62 | H156: 14035.54 | I156: 825.62 | J156: 14035.54 | K156: 0 | L156: 0 | M156: 0 | N156: 0 | O156: 0 | P156: 0 | Q156: 0 | R156: 0 | S156: 0 | T156: 0 | U156: 800 | V156: 155 | X156: 0 | Y156: 0 | Z156: 0 | AA156: 14036 | AB156: 14036 | AC156: 14036 | AD156: 0 | AE156: 0 | AF156: 0 | AH156: 0 | AI156: 825.62 | AK156: 0 | BC156: 825.62
A157: 807-02822 | C157: 807-02822 | D157: LIGHT POLE, STEEL, RELOCATE | E157: 17 | F157: EACH | G157: 1550 | H157: 26350 | I157: 1550 | J157: 26350 | K157: 0 | L157: 0 | M157: 0 | N157: 0 | O157: 0 | P157: 0 | Q157: 0 | R157: 0 | S157: 0 | T157: 0 | U157: 800 | V157: 156 | X157: 0 | Y157: 0 | Z157: 0 | AA157: 26350 | AB157: 26350 | AC157: 26350 | AD157: 0 | AE157: 0 | AF157: 0 | AH157: 0 | AI157: 1550 | AK157: 0 | BC157: 1550
A158: 807-06592 | C158: 807-06592 | D158: CONDUIT, STEEL, GALVANIZED, 2 IN | E158: 414 | F158: L.F. | G158: 13.62 | H158: 5638.68 | I158: 13.62 | J158: 5638.68 | K158: 0 | L158: 0 | M158: 0 | N158: 0 | O158: 0 | P158: 0 | Q158: 0 | R158: 0 | S158: 0 | T158: 0 | U158: 800 | V158: 157 | X158: 0 | Y158: 0 | Z158: 0 | AA158: 5639 | AB158: 5639 | AC158: 5639 | AD158: 0 | AE158: 0 | AF158: 0 | AH158: 0 | AI158: 13.62 | AK158: 0 | BC158: 13.62
A159: 807-09637 | C159: 807-09637 | D159: WIRE, NO 6 COPPER IN PLASTIC DUCT, IN CONDUIT 4 1/C | E159: 330 | F159: L.F. | G159: 10 | H159: 3300 | I159: 10 | J159: 3300 | K159: 0 | L159: 0 | M159: 0 | N159: 0 | O159: 0 | P159: 0 | Q159: 0 | R159: 0 | S159: 0 | T159: 0 | U159: 800 | V159: 158 | X159: 0 | Y159: 0 | Z159: 0 | AA159: 3300 | AB159: 3300 | AC159: 3300 | AD159: 0 | AE159: 0 | AF159: 0 | AH159: 0 | AI159: 10 | AK159: 0 | BC159: 10
A160: 807-09638 | C160: 807-09638 | D160: WIRE, NO 6 COPPER IN PLASTIC DUCT, IN TRENCH, 4 1/C | E160: 6200 | F160: L.F. | G160: 8 | H160: 49600 | I160: 8 | J160: 49600 | K160: 0 | L160: 0 | M160: 0 | N160: 0 | O160: 0 | P160: 0 | Q160: 0 | R160: 0 | S160: 0 | T160: 0 | U160: 800 | V160: 159 | X160: 0 | Y160: 0 | Z160: 0 | AA160: 49600 | AB160: 49600 | AC160: 49600 | AD160: 0 | AE160: 0 | AF160: 0 | AH160: 0 | AI160: 8 | AK160: 0 | BC160: 8
A161: 807-82320 | C161: 807-82320 | D161: LIGHT POLE, HIGH MAST, 115 FT E.M.H. | E161: 1 | F161: EACH | G161: 156 | H161: 156 | I161: 156 | J161: 156 | K161: 0 | L161: 0 | M161: 0 | N161: 0 | O161: 0 | P161: 0 | Q161: 0 | R161: 0 | S161: 0 | T161: 0 | U161: 800 | V161: 160 | X161: 0 | Y161: 0 | Z161: 0 | AA161: 156 | AB161: 156 | AC161: 156 | AD161: 0 | AE161: 0 | AF161: 0 | AH161: 0 | AI161: 156 | AK161: 0 | BC161: 156
A162: 807-86665 | C162: 807-86665 | D162: LUMINAIRE, HIGH MAST, HIGH PRESSURE SODIUM, 1000 WATT | E162: 6 | F162: EACH | G162: 607.46 | H162: 3644.76 | I162: 607.46 | J162: 3644.76 | K162: 0 | L162: 0 | M162: 0 | N162: 0 | O162: 0 | P162: 0 | Q162: 0 | R162: 0 | S162: 0 | T162: 0 | U162: 800 | V162: 161 | X162: 0 | Y162: 0 | Z162: 0 | AA162: 3645 | AB162: 3645 | AC162: 3645 | AD162: 0 | AE162: 0 | AF162: 0 | AH162: 0 | AI162: 607.46 | AK162: 0 | BC162: 607.46
A163: 807-86832 | C163: 807-86832 | D163: LIGHTING FOUNDATION, CONCRETE, WITH GROUNDING, HIGH MAST TOW | E163: 2 | F163: EACH | G163: 7219 | H163: 14438 | I163: 7219 | J163: 14438 | K163: 0 | L163: 0 | M163: 0 | N163: 0 | O163: 0 | P163: 0 | Q163: 0 | R163: 0 | S163: 0 | T163: 0 | U163: 800 | V163: 162 | X163: 0 | Y163: 0 | Z163: 0 | AA163: 14438 | AB163: 14438 | AC163: 14438 | AD163: 0 | AE163: 0 | AF163: 0 | AH163: 0 | AI163: 7219 | AK163: 0 | BC163: 7219
A164: 807-86910 | C164: 807-86910 | D164: CONNECTOR KIT, UNFUSED | E164: 17 | F164: EACH | G164: 24.75 | H164: 420.75 | I164: 24.75 | J164: 420.75 | K164: 0 | L164: 0 | M164: 0 | N164: 0 | O164: 0 | P164: 0 | Q164: 0 | R164: 0 | S164: 0 | T164: 0 | U164: 800 | V164: 163 | X164: 0 | Y164: 0 | Z164: 0 | AA164: 421 | AB164: 421 | AC164: 421 | AD164: 0 | AE164: 0 | AF164: 0 | AH164: 0 | AI164: 24.75 | AK164: 0 | BC164: 24.75
A165: 807-86915 | C165: 807-86915 | D165: CONNECTOR KIT, FUSED | E165: 17 | F165: EACH | G165: 26.59 | H165: 452.03 | I165: 26.59 | J165: 452.03 | K165: 0 | L165: 0 | M165: 0 | N165: 0 | O165: 0 | P165: 0 | Q165: 0 | R165: 0 | S165: 0 | T165: 0 | U165: 800 | V165: 164 | X165: 0 | Y165: 0 | Z165: 0 | AA165: 452 | AB165: 452 | AC165: 452 | AD165: 0 | AE165: 0 | AF165: 0 | AH165: 0 | AI165: 26.59 | AK165: 0 | BC165: 26.59
A166: 807-86925 | C166: 807-86925 | D166: MULTIPLE COMPRESSION FITTING, WATERPROOFED | E166: 50 | F166: EACH | G166: 31.47 | H166: 1573.5 | I166: 31.47 | J166: 1573.5 | K166: 0 | L166: 0 | M166: 0 | N166: 0 | O166: 0 | P166: 0 | Q166: 0 | R166: 0 | S166: 0 | T166: 0 | U166: 800 | V166: 165 | X166: 0 | Y166: 0 | Z166: 0 | AA166: 1574 | AB166: 1574 | AC166: 1574 | AD166: 0 | AE166: 0 | AF166: 0 | AH166: 0 | AI166: 31.47 | AK166: 0 | BC166: 31.47
A167: 807-86935 | C167: 807-86935 | D167: INSULATION LINK, WATERPROOFED | E167: 58 | F167: EACH | G167: 27.66 | H167: 1604.28 | I167: 27.66 | J167: 1604.28 | K167: 0 | L167: 0 | M167: 0 | N167: 0 | O167: 0 | P167: 0 | Q167: 0 | R167: 0 | S167: 0 | T167: 0 | U167: 800 | V167: 166 | X167: 0 | Y167: 0 | Z167: 0 | AA167: 1604 | AB167: 1604 | AC167: 1604 | AD167: 0 | AE167: 0 | AF167: 0 | AH167: 0 | AI167: 27.66 | AK167: 0 | BC167: 27.66
A168: 808-06701 | C168: 808-06701 | D168: LINE, THERMOPLASTIC, BROKEN, WHITE, 4 IN | E168: 600 | F168: L.F. | G168: 0.52 | H168: 312 | I168: 0.52 | J168: 312 | K168: 0 | L168: 0 | M168: 0 | N168: 0 | O168: 0 | P168: 0 | Q168: 0 | R168: 0 | S168: 0 | T168: 0 | U168: 800 | V168: 167 | X168: 0 | Y168: 0 | Z168: 0 | AA168: 312 | AB168: 312 | AC168: 312 | AD168: 0 | AE168: 0 | AF168: 0 | AH168: 0 | AI168: 0.52 | AK168: 0 | BC168: 0.52
A169: 808-06702 | C169: 808-06702 | D169: LINE, THERMOPLASTIC, BROKEN, WHITE, 5 IN | E169: 5800 | F169: L.F. | G169: 0.44 | H169: 2552 | I169: 0.44 | J169: 2552 | K169: 0 | L169: 0 | M169: 0 | N169: 0 | O169: 0 | P169: 0 | Q169: 0 | R169: 0 | S169: 0 | T169: 0 | U169: 800 | V169: 168 | X169: 0 | Y169: 0 | Z169: 0 | AA169: 2552 | AB169: 2552 | AC169: 2552 | AD169: 0 | AE169: 0 | AF169: 0 | AH169: 0 | AI169: 0.44 | AK169: 0 | BC169: 0.44
A170: 808-06703 | C170: 808-06703 | D170: LINE, THERMOPLASTIC, SOLID, WHITE, 4 IN. | E170: 29800 | F170: L.F. | G170: 0.41 | H170: 12218 | I170: 0.41 | J170: 12218 | K170: 0 | L170: 0 | M170: 0 | N170: 0 | O170: 0 | P170: 0 | Q170: 0 | R170: 0 | S170: 0 | T170: 0 | U170: 800 | V170: 169 | X170: 0 | Y170: 0 | Z170: 0 | AA170: 12218 | AB170: 12218 | AC170: 12218 | AD170: 0 | AE170: 0 | AF170: 0 | AH170: 0 | AI170: 0.41 | AK170: 0 | BC170: 0.41
A171: 808-06705 | C171: 808-06705 | D171: LINE, THERMOPLASTIC, SOLID, WHITE, 8 IN | E171: 5840 | F171: L.F. | G171: 1.01 | H171: 5898.4 | I171: 1.01 | J171: 5898.4 | K171: 0 | L171: 0 | M171: 0 | N171: 0 | O171: 0 | P171: 0 | Q171: 0 | R171: 0 | S171: 0 | T171: 0 | U171: 800 | V171: 170 | X171: 0 | Y171: 0 | Z171: 0 | AA171: 5898 | AB171: 5898 | AC171: 5898 | AD171: 0 | AE171: 0 | AF171: 0 | AH171: 0 | AI171: 1.01 | AK171: 0 | BC171: 1.01
A172: 808-06706 | C172: 808-06706 | D172: LINE, THERMOPLASTIC, SOLID, WHITE, 24 IN | E172: 595 | F172: L.F. | G172: 4.77 | H172: 2838.15 | I172: 4.77 | J172: 2838.15 | K172: 0 | L172: 0 | M172: 0 | N172: 0 | O172: 0 | P172: 0 | Q172: 0 | R172: 0 | S172: 0 | T172: 0 | U172: 800 | V172: 171 | X172: 0 | Y172: 0 | Z172: 0 | AA172: 2838 | AB172: 2838 | AC172: 2838 | AD172: 0 | AE172: 0 | AF172: 0 | AH172: 0 | AI172: 4.77 | AK172: 0 | BC172: 4.77
A173: 808-06716 | C173: 808-06716 | D173: LINE, REMOVE | E173: 9800 | F173: L.F. | G173: 0.28 | H173: 2744 | I173: 0.28 | J173: 2744 | K173: 0 | L173: 0 | M173: 0 | N173: 0 | O173: 0 | P173: 0 | Q173: 0 | R173: 0 | S173: 0 | T173: 0 | U173: 800 | V173: 172 | X173: 0 | Y173: 0 | Z173: 0 | AA173: 2744 | AB173: 2744 | AC173: 2744 | AD173: 0 | AE173: 0 | AF173: 0 | AH173: 0 | AI173: 0.28 | AK173: 0 | BC173: 0.28
A174: 808-75215 | C174: 808-75215 | D174: LINE, THERMOPLASTIC, SOLID, WHITE 12 IN | E174: 975 | F174: L.F. | G174: 2.67 | H174: 2603.25 | I174: 2.67 | J174: 2603.25 | K174: 0 | L174: 0 | M174: 0 | N174: 0 | O174: 0 | P174: 0 | Q174: 0 | R174: 0 | S174: 0 | T174: 0 | U174: 800 | V174: 173 | X174: 0 | Y174: 0 | Z174: 0 | AA174: 2603 | AB174: 2603 | AC174: 2603 | AD174: 0 | AE174: 0 | AF174: 0 | AH174: 0 | AI174: 2.67 | AK174: 0 | BC174: 2.67
A175: 808-75245 | C175: 808-75245 | D175: LINE, THERMOPLASTIC, SOLID, YELLOW, 4 IN | E175: 20440 | F175: L.F. | G175: 0.42 | H175: 8584.8 | I175: 0.42 | J175: 8584.8 | K175: 0 | L175: 0 | M175: 0 | N175: 0 | O175: 0 | P175: 0 | Q175: 0 | R175: 0 | S175: 0 | T175: 0 | U175: 800 | V175: 174 | X175: 0 | Y175: 0 | Z175: 0 | AA175: 8585 | AB175: 8585 | AC175: 8585 | AD175: 0 | AE175: 0 | AF175: 0 | AH175: 0 | AI175: 0.42 | AK175: 0 | BC175: 0.42
A176: 808-75297 | C176: 808-75297 | D176: TRANSVERSE MARKING, THERMOPLASTIC, STOP LINE, 24 IN | E176: 60 | F176: L.F. | G176: 5.2 | H176: 312 | I176: 5.2 | J176: 312 | K176: 0 | L176: 0 | M176: 0 | N176: 0 | O176: 0 | P176: 0 | Q176: 0 | R176: 0 | S176: 0 | T176: 0 | U176: 800 | V176: 175 | X176: 0 | Y176: 0 | Z176: 0 | AA176: 312 | AB176: 312 | AC176: 312 | AD176: 0 | AE176: 0 | AF176: 0 | AH176: 0 | AI176: 5.2 | AK176: 0 | BC176: 5.2
A177: 808-75320 | C177: 808-75320 | D177: PAVEMENT MESSAGE MARKING, THERMOPLASTIC, LANE INDICATION ARROW | E177: 12 | F177: EACH | G177: 78.62 | H177: 943.44 | I177: 78.62 | J177: 943.44 | K177: 0 | L177: 0 | M177: 0 | N177: 0 | O177: 0 | P177: 0 | Q177: 0 | R177: 0 | S177: 0 | T177: 0 | U177: 800 | V177: 176 | X177: 0 | Y177: 0 | Z177: 0 | AA177: 943 | AB177: 943 | AC177: 943 | AD177: 0 | AE177: 0 | AF177: 0 | AH177: 0 | AI177: 78.62 | AK177: 0 | BC177: 78.62
A178: 808-75325 | C178: 808-75325 | D178: PAVEMENT MESSAGE MARKING, THERMOPLASTIC, (ONLY) | E178: 4 | F178: EACH | G178: 94.34 | H178: 377.36 | I178: 94.34 | J178: 377.36 | K178: 0 | L178: 0 | M178: 0 | N178: 0 | O178: 0 | P178: 0 | Q178: 0 | R178: 0 | S178: 0 | T178: 0 | U178: 800 | V178: 177 | X178: 0 | Y178: 0 | Z178: 0 | AA178: 377 | AB178: 377 | AC178: 377 | AD178: 0 | AE178: 0 | AF178: 0 | AH178: 0 | AI178: 94.34 | AK178: 0 | BC178: 94.34
A179: 808-75998 | C179: 808-75998 | D179: SNOWPLOWABLE RAISED PAVEMENT MARKER | E179: 1130 | F179: EACH | G179: 16.56 | H179: 18712.8 | I179: 16.56 | J179: 18712.8 | K179: 0 | L179: 0 | M179: 0 | N179: 0 | O179: 0 | P179: 0 | Q179: 0 | R179: 0 | S179: 0 | T179: 0 | U179: 800 | V179: 178 | X179: 0 | Y179: 0 | Z179: 0 | AA179: 18713 | AB179: 18713 | AC179: 18713 | AD179: 0 | AE179: 0 | AF179: 0 | AH179: 0 | AI179: 16.56 | AK179: 0 | BC179: 16.56
AH180: 0
D181: TOTALS | H181: 15346414.94 | J181: 15346414.94 | N181: 0 | R181: 0 | Y181: 0 | AA181: 15346415 | AH181: 0
AH182: 0
AH183: 0
AH184: 0
AH185: 0
AH186: 0
AH187: 0
AH188: 0
AH189: 0
AH190: 0
AH191: 0
AH192: 0
AH193: 0
AH194: 0 | AL194: =IF(AND(AH194=1,AG194<>"x",AG194<>""),"You can only use x",IF(AND(AH194=1,AG194="",AJ194<>""),"Put x to Calculate","")) -> 
AH195: =IF(OR(LEFT(F195,2)="LS",LEFT(F195,3)="L.S"),1,0) -> 0 | AI195: =IF(G195="","",IF(AND(AG195<>"",AH195=1),0,G195)) -> 
A196: =LEFT(C196,9) ->  | AH196: 0
AH197: 0
AH198: 0
AH199: 0
AH200: 0
... 795 more rows
